Body,Body Name,Date,TransNo,Amount � (Excl VAT),Supplier name,Supplier ID,Expense Area,Expense Type,Expense Code
http://statistics.data.gov.uk/id/local-authority/00BF,London Borough of Sutton,10/06/2016,6885472,562.00,Angell Welding,21146,"Environment, Housing & Regeneration Directorate",Provisions - General,F150
http://statistics.data.gov.uk/id/local-authority/00BF,London Borough of Sutton,21/06/2016,6885607,618.00,777 Demolition & Haulage Co Ltd,25578,"Environment, Housing & Regeneration Directorate",Materials - General,F100
http://statistics.data.gov.uk/id/local-authority/00BF,London Borough of Sutton,21/06/2016,6885608,838.40,777 Demolition & Haulage Co Ltd,25578,"Environment, Housing & Regeneration Directorate",Materials - General,F100
http://statistics.data.gov.uk/id/local-authority/00BF,London Borough of Sutton,29/05/2016,1219173,"1,444.00",A Star Transport Ltd,24386,Peoples Services Directorate,Hired Peoples Transport (Children),E072
http://statistics.data.gov.uk/id/local-authority/00BF,London Borough of Sutton,08/06/2016,6884409,750.00,A T Sound Hire,10306,"Environment, Housing & Regeneration Directorate",Other Equipment-Hire,F070
http://statistics.data.gov.uk/id/local-authority/00BF,London Borough of Sutton,27/05/2016,6883890,665.00,Abbotts Advertising and Sponsorship Ltd,99891,"Environment, Housing & Regeneration Directorate",Fees - Consultants (Ad Hoc),F283
http://statistics.data.gov.uk/id/local-authority/00BF,London Borough of Sutton,21/03/2016,6885440,"7,653.00",Abritas Ltd,15186,"Environment, Housing & Regeneration Directorate",IT Equipment - Repair and Maintenance,F382
http://statistics.data.gov.uk/id/local-authority/00BF,London Borough of Sutton,21/03/2016,6885442,"8,755.00",Abritas Ltd,15186,"Environment, Housing & Regeneration Directorate",IT Equipment - Repair and Maintenance,F382
http://statistics.data.gov.uk/id/local-authority/00BF,London Borough of Sutton,08/05/2016,4947213,449.49,Absolute Care Services Ltd,10021,Peoples Services Directorate,Home Care,G334
http://statistics.data.gov.uk/id/local-authority/00BF,London Borough of Sutton,15/05/2016,4947214,449.49,Absolute Care Services Ltd,10021,Peoples Services Directorate,Home Care,G334
http://statistics.data.gov.uk/id/local-authority/00BF,London Borough of Sutton,08/05/2016,4947303,518.08,Absolute Care Services Ltd,10021,Peoples Services Directorate,Home Care,G334
http://statistics.data.gov.uk/id/local-authority/00BF,London Borough of Sutton,15/05/2016,4947304,518.08,Absolute Care Services Ltd,10021,Peoples Services Directorate,Home Care,G334
http://statistics.data.gov.uk/id/local-authority/00BF,London Borough of Sutton,08/05/2016,4947468,556.12,Absolute Care Services Ltd,10021,Peoples Services Directorate,Home Care,G334
http://statistics.data.gov.uk/id/local-authority/00BF,London Borough of Sutton,15/05/2016,4947469,556.12,Absolute Care Services Ltd,10021,Peoples Services Directorate,Home Care,G334
http://statistics.data.gov.uk/id/local-authority/00BF,London Borough of Sutton,08/05/2016,4947508,530.31,Absolute Care Services Ltd,10021,Peoples Services Directorate,Home Care,G334
http://statistics.data.gov.uk/id/local-authority/00BF,London Borough of Sutton,15/05/2016,4947509,615.68,Absolute Care Services Ltd,10021,Peoples Services Directorate,Home Care,G334
http://statistics.data.gov.uk/id/local-authority/00BF,London Borough of Sutton,08/05/2016,4947585,546.00,Absolute Care Services Ltd,10021,Peoples Services Directorate,Home Care,G334
http://statistics.data.gov.uk/id/local-authority/00BF,London Borough of Sutton,15/05/2016,4947586,546.00,Absolute Care Services Ltd,10021,Peoples Services Directorate,Home Care,G334
http://statistics.data.gov.uk/id/local-authority/00BF,London Borough of Sutton,08/05/2016,4947599,455.00,Absolute Care Services Ltd,10021,Peoples Services Directorate,Home Care,G334
http://statistics.data.gov.uk/id/local-authority/00BF,London Borough of Sutton,15/05/2016,4947600,455.00,Absolute Care Services Ltd,10021,Peoples Services Directorate,Home Care,G334
http://statistics.data.gov.uk/id/local-authority/00BF,London Borough of Sutton,08/05/2016,4947603,682.50,Absolute Care Services Ltd,10021,Peoples Services Directorate,Home Care,G334
http://statistics.data.gov.uk/id/local-authority/00BF,London Borough of Sutton,15/05/2016,4947604,682.50,Absolute Care Services Ltd,10021,Peoples Services Directorate,Home Care,G334
http://statistics.data.gov.uk/id/local-authority/00BF,London Borough of Sutton,08/05/2016,4947615,"2,415.00",Absolute Care Services Ltd,10021,Peoples Services Directorate,Home Care,G334
http://statistics.data.gov.uk/id/local-authority/00BF,London Borough of Sutton,15/05/2016,4947616,"2,415.00",Absolute Care Services Ltd,10021,Peoples Services Directorate,Home Care,G334
http://statistics.data.gov.uk/id/local-authority/00BF,London Borough of Sutton,07/02/2016,4947791,518.08,Absolute Care Services Ltd,10021,Peoples Services Directorate,Home Care,G334
http://statistics.data.gov.uk/id/local-authority/00BF,London Borough of Sutton,06/03/2016,4947792,518.08,Absolute Care Services Ltd,10021,Peoples Services Directorate,Home Care,G334
http://statistics.data.gov.uk/id/local-authority/00BF,London Borough of Sutton,07/02/2016,4948025,556.12,Absolute Care Services Ltd,10021,Peoples Services Directorate,Home Care,G334
http://statistics.data.gov.uk/id/local-authority/00BF,London Borough of Sutton,06/03/2016,4948026,556.12,Absolute Care Services Ltd,10021,Peoples Services Directorate,Home Care,G334
http://statistics.data.gov.uk/id/local-authority/00BF,London Borough of Sutton,07/02/2016,4948028,589.75,Absolute Care Services Ltd,10021,Peoples Services Directorate,Home Care,G334
http://statistics.data.gov.uk/id/local-authority/00BF,London Borough of Sutton,06/03/2016,4948029,666.25,Absolute Care Services Ltd,10021,Peoples Services Directorate,Home Care,G334
http://statistics.data.gov.uk/id/local-authority/00BF,London Borough of Sutton,06/03/2016,4948044,518.08,Absolute Care Services Ltd,10021,Peoples Services Directorate,Home Care,G334
http://statistics.data.gov.uk/id/local-authority/00BF,London Borough of Sutton,22/05/2016,4949766,546.00,Absolute Care Services Ltd,10021,Peoples Services Directorate,Home Care,G334
http://statistics.data.gov.uk/id/local-authority/00BF,London Borough of Sutton,22/05/2016,4949774,455.74,Absolute Care Services Ltd,10021,Peoples Services Directorate,Home Care,G334
http://statistics.data.gov.uk/id/local-authority/00BF,London Borough of Sutton,22/05/2016,4949824,556.12,Absolute Care Services Ltd,10021,Peoples Services Directorate,Home Care,G334
http://statistics.data.gov.uk/id/local-authority/00BF,London Borough of Sutton,22/05/2016,4949862,722.67,Absolute Care Services Ltd,10021,Peoples Services Directorate,Home Care,G334
http://statistics.data.gov.uk/id/local-authority/00BF,London Borough of Sutton,22/05/2016,4949874,518.08,Absolute Care Services Ltd,10021,Peoples Services Directorate,Home Care,G334
http://statistics.data.gov.uk/id/local-authority/00BF,London Borough of Sutton,22/05/2016,4950000,455.00,Absolute Care Services Ltd,10021,Peoples Services Directorate,Home Care,G334
http://statistics.data.gov.uk/id/local-authority/00BF,London Borough of Sutton,22/05/2016,4950002,682.50,Absolute Care Services Ltd,10021,Peoples Services Directorate,Home Care,G334
http://statistics.data.gov.uk/id/local-authority/00BF,London Borough of Sutton,22/05/2016,4950066,"2,415.00",Absolute Care Services Ltd,10021,Peoples Services Directorate,Home Care,G334
http://statistics.data.gov.uk/id/local-authority/00BF,London Borough of Sutton,20/06/2016,4952172,"1,277.25",Absolute Care Services Ltd,10021,Peoples Services Directorate,Home Care,G334
http://statistics.data.gov.uk/id/local-authority/00BF,London Borough of Sutton,20/06/2016,4952175,"5,200.70",Absolute Care Services Ltd,10021,Peoples Services Directorate,Home Care,G334
http://statistics.data.gov.uk/id/local-authority/00BF,London Borough of Sutton,15/06/2016,4952181,"1,098.46",Absolute Care Services Ltd,10021,Peoples Services Directorate,Home Care,G334
http://statistics.data.gov.uk/id/local-authority/00BF,London Borough of Sutton,20/06/2016,4952185,697.58,Absolute Care Services Ltd,10021,Peoples Services Directorate,Home Care,G334
http://statistics.data.gov.uk/id/local-authority/00BF,London Borough of Sutton,15/06/2016,4952187,"1,048.02",Absolute Care Services Ltd,10021,Peoples Services Directorate,Home Care,G334
http://statistics.data.gov.uk/id/local-authority/00BF,London Borough of Sutton,20/06/2016,4952189,"1,090.60",Absolute Care Services Ltd,10021,Peoples Services Directorate,Home Care,G334
http://statistics.data.gov.uk/id/local-authority/00BF,London Borough of Sutton,12/06/2016,4957548,416.00,Absolute Care Services Ltd,10021,Peoples Services Directorate,Home Care,G334
http://statistics.data.gov.uk/id/local-authority/00BF,London Borough of Sutton,29/05/2016,4957586,"2,415.00",Absolute Care Services Ltd,10021,Peoples Services Directorate,Home Care,G334
http://statistics.data.gov.uk/id/local-authority/00BF,London Borough of Sutton,05/06/2016,4957587,"2,415.00",Absolute Care Services Ltd,10021,Peoples Services Directorate,Home Care,G334
http://statistics.data.gov.uk/id/local-authority/00BF,London Borough of Sutton,12/06/2016,4957588,"2,415.00",Absolute Care Services Ltd,10021,Peoples Services Directorate,Home Care,G334
http://statistics.data.gov.uk/id/local-authority/00BF,London Borough of Sutton,05/06/2016,4957605,626.37,Absolute Care Services Ltd,10021,Peoples Services Directorate,Home Care,G334
http://statistics.data.gov.uk/id/local-authority/00BF,London Borough of Sutton,29/05/2016,4957764,546.00,Absolute Care Services Ltd,10021,Peoples Services Directorate,Home Care,G334
http://statistics.data.gov.uk/id/local-authority/00BF,London Borough of Sutton,05/06/2016,4957765,546.00,Absolute Care Services Ltd,10021,Peoples Services Directorate,Home Care,G334
http://statistics.data.gov.uk/id/local-authority/00BF,London Borough of Sutton,12/06/2016,4957766,546.00,Absolute Care Services Ltd,10021,Peoples Services Directorate,Home Care,G334
http://statistics.data.gov.uk/id/local-authority/00BF,London Borough of Sutton,29/05/2016,4957783,455.00,Absolute Care Services Ltd,10021,Peoples Services Directorate,Home Care,G334
http://statistics.data.gov.uk/id/local-authority/00BF,London Borough of Sutton,05/06/2016,4957784,455.00,Absolute Care Services Ltd,10021,Peoples Services Directorate,Home Care,G334
http://statistics.data.gov.uk/id/local-authority/00BF,London Borough of Sutton,12/06/2016,4957785,455.00,Absolute Care Services Ltd,10021,Peoples Services Directorate,Home Care,G334
http://statistics.data.gov.uk/id/local-authority/00BF,London Borough of Sutton,29/05/2016,4957789,682.50,Absolute Care Services Ltd,10021,Peoples Services Directorate,Home Care,G334
http://statistics.data.gov.uk/id/local-authority/00BF,London Borough of Sutton,05/06/2016,4957790,682.50,Absolute Care Services Ltd,10021,Peoples Services Directorate,Home Care,G334
http://statistics.data.gov.uk/id/local-authority/00BF,London Borough of Sutton,12/06/2016,4957791,663.00,Absolute Care Services Ltd,10021,Peoples Services Directorate,Home Care,G334
http://statistics.data.gov.uk/id/local-authority/00BF,London Borough of Sutton,30/05/2016,6883795,"6,902.75",Absolute Care Services Ltd,10021,Peoples Services Directorate,Home Care,G334
http://statistics.data.gov.uk/id/local-authority/00BF,London Borough of Sutton,30/05/2016,6883797,"4,620.00",Absolute Care Services Ltd,10021,Peoples Services Directorate,Home Care,G334
http://statistics.data.gov.uk/id/local-authority/00BF,London Borough of Sutton,01/06/2016,6884094,"1,469.76",Absolute Care Services Ltd,10021,Peoples Services Directorate,Home Care,G334
http://statistics.data.gov.uk/id/local-authority/00BF,London Borough of Sutton,06/06/2016,6884248,"4,828.75",Absolute Care Services Ltd,10021,Peoples Services Directorate,Home Care,G334
http://statistics.data.gov.uk/id/local-authority/00BF,London Borough of Sutton,31/05/2016,1219174,"1,596.00",Access Mobility Transport Ltd,27456,Peoples Services Directorate,Hired Peoples Transport (Children),E072
http://statistics.data.gov.uk/id/local-authority/00BF,London Borough of Sutton,31/05/2016,1219175,"3,120.00",Access Mobility Transport Ltd,27456,Peoples Services Directorate,Hired Peoples Transport (Children),E072
http://statistics.data.gov.uk/id/local-authority/00BF,London Borough of Sutton,31/05/2016,1219176,"1,856.00",Access Mobility Transport Ltd,27456,Peoples Services Directorate,Hired Peoples Transport (Children),E072
http://statistics.data.gov.uk/id/local-authority/00BF,London Borough of Sutton,11/04/2016,4950498,"4,096.34",Acorn Homes UK Ltd,25726,Peoples Services Directorate,Approved Lodgings,H323
http://statistics.data.gov.uk/id/local-authority/00BF,London Borough of Sutton,17/06/2016,4951701,"2,903.20",Acorn Lodge,15804,Peoples Services Directorate,Residential Care - Ext Provider,G310
http://statistics.data.gov.uk/id/local-authority/00BF,London Borough of Sutton,17/06/2016,4951957,"3,042.36",Acorn Residential Home,15828,Peoples Services Directorate,Residential Care - Ext Provider,G310
http://statistics.data.gov.uk/id/local-authority/00BF,London Borough of Sutton,23/05/2016,6885872,"1,225.00",Adaram Ltd T/A Rosehill Lodging,12014,"Environment, Housing & Regeneration Directorate",Bed and Breakfast Accommodation,G400
http://statistics.data.gov.uk/id/local-authority/00BF,London Borough of Sutton,23/05/2016,6885873,"1,150.00",Adaram Ltd T/A Rosehill Lodging,12014,"Environment, Housing & Regeneration Directorate",Bed and Breakfast Accommodation,G400
http://statistics.data.gov.uk/id/local-authority/00BF,London Borough of Sutton,23/05/2016,6885877,"1,225.00",Adaram Ltd T/A Rosehill Lodging,12014,"Environment, Housing & Regeneration Directorate",Bed and Breakfast Accommodation,G400
http://statistics.data.gov.uk/id/local-authority/00BF,London Borough of Sutton,17/06/2016,4951663,"2,237.14",Addiction Recovery Centres Ltd,23357,Peoples Services Directorate,Interim Placements - Ext Provider,G317
http://statistics.data.gov.uk/id/local-authority/00BF,London Borough of Sutton,04/05/2016,6884186,"202,259.56",Adecco Uk Ltd,10059,Resources Directorate,Suspense/Holding Accounts,X550
http://statistics.data.gov.uk/id/local-authority/00BF,London Borough of Sutton,11/05/2016,6884187,"213,104.93",Adecco Uk Ltd,10059,Resources Directorate,Suspense/Holding Accounts,X550
http://statistics.data.gov.uk/id/local-authority/00BF,London Borough of Sutton,13/05/2016,6884188,612.17,Adecco Uk Ltd,10059,Resources Directorate,Suspense/Holding Accounts,X550
http://statistics.data.gov.uk/id/local-authority/00BF,London Borough of Sutton,18/05/2016,6884189,"212,410.66",Adecco Uk Ltd,10059,Resources Directorate,Suspense/Holding Accounts,X550
http://statistics.data.gov.uk/id/local-authority/00BF,London Borough of Sutton,25/05/2016,6884195,"193,436.40",Adecco Uk Ltd,10059,Resources Directorate,Suspense/Holding Accounts,X550
http://statistics.data.gov.uk/id/local-authority/00BF,London Borough of Sutton,27/05/2016,6884196,656.31,Adecco Uk Ltd,10059,Resources Directorate,Suspense/Holding Accounts,X550
http://statistics.data.gov.uk/id/local-authority/00BF,London Borough of Sutton,01/06/2016,6884197,"224,895.98",Adecco Uk Ltd,10059,Resources Directorate,Suspense/Holding Accounts,X550
http://statistics.data.gov.uk/id/local-authority/00BF,London Borough of Sutton,01/06/2016,6884198,806.25,Affinity Workforce Ltd,26099,Peoples Services Directorate,Agency Staff - Adecco,A300
http://statistics.data.gov.uk/id/local-authority/00BF,London Borough of Sutton,08/06/2016,6884642,562.50,Affinity Workforce Ltd,26099,Peoples Services Directorate,Agency Staff - Adecco,A300
http://statistics.data.gov.uk/id/local-authority/00BF,London Borough of Sutton,18/05/2016,6883399,"2,845.92",Agilisys Contact Services Ltd,25894,Resources Directorate,Fees - Bailiffs,F302
http://statistics.data.gov.uk/id/local-authority/00BF,London Borough of Sutton,21/06/2016,6885362,"2,178.16",Agilisys Contact Services Ltd,25894,Resources Directorate,Fees - Bailiffs,F302
http://statistics.data.gov.uk/id/local-authority/00BF,London Borough of Sutton,21/06/2016,6885365,524.19,Agilisys Contact Services Ltd,25894,Resources Directorate,Fees - Bailiffs,F302
http://statistics.data.gov.uk/id/local-authority/00BF,London Borough of Sutton,17/06/2016,4951747,"7,511.00",Aims Care Partnership (Leighton House Ltd),12628,Peoples Services Directorate,Residential Care - Ext Provider,G310
http://statistics.data.gov.uk/id/local-authority/00BF,London Borough of Sutton,17/06/2016,4951705,"5,278.00",Aitch Care Homes,20446,Peoples Services Directorate,Residential Care - Ext Provider,G310
http://statistics.data.gov.uk/id/local-authority/00BF,London Borough of Sutton,17/06/2016,4951724,"8,400.16",Aitch Care Homes,20446,Peoples Services Directorate,Residential Care - Ext Provider,G310
http://statistics.data.gov.uk/id/local-authority/00BF,London Borough of Sutton,31/05/2016,6885379,581.00,Alere Toxicology Plc,24389,Peoples Services Directorate,Children Assessments,G329
http://statistics.data.gov.uk/id/local-authority/00BF,London Borough of Sutton,19/05/2016,6885382,455.00,Alere Toxicology Plc,24389,Peoples Services Directorate,Children Assessments,G329
http://statistics.data.gov.uk/id/local-authority/00BF,London Borough of Sutton,20/08/2015,6885383,909.00,Alere Toxicology Plc,24389,Peoples Services Directorate,Children Assessments,G329
http://statistics.data.gov.uk/id/local-authority/00BF,London Borough of Sutton,31/05/2016,6883897,"1,001.00",Allan White Motors Ltd,14584,"Environment, Housing & Regeneration Directorate",Centralised Transport Hire,E068
http://statistics.data.gov.uk/id/local-authority/00BF,London Borough of Sutton,10/06/2016,6884578,924.00,Allan White Motors Ltd,14584,"Environment, Housing & Regeneration Directorate",Centralised Transport Hire,E068
http://statistics.data.gov.uk/id/local-authority/00BF,London Borough of Sutton,13/06/2016,6884654,464.80,Allan White Motors Ltd,14584,"Environment, Housing & Regeneration Directorate",Centralised Transport Hire,E068
http://statistics.data.gov.uk/id/local-authority/00BF,London Borough of Sutton,28/06/2016,6885768,"1,001.00",Allan White Motors Ltd,14584,"Environment, Housing & Regeneration Directorate",Centralised Transport Hire,E068
http://statistics.data.gov.uk/id/local-authority/00BF,London Borough of Sutton,17/06/2016,4951698,"6,234.48",Allied Care (Mhs) Ltd,10145,Peoples Services Directorate,Residential Care - Ext Provider,G310
http://statistics.data.gov.uk/id/local-authority/00BF,London Borough of Sutton,23/06/2016,6885593,485.00,Alljos Services Ltd,28300,Peoples Services Directorate,Provisions - General,F150
http://statistics.data.gov.uk/id/local-authority/00BF,London Borough of Sutton,30/04/2016,6881737,951.84,Allstar Business Solutions,24482,"Environment, Housing & Regeneration Directorate",Fuel Etc,E030
http://statistics.data.gov.uk/id/local-authority/00BF,London Borough of Sutton,17/06/2016,4951766,"8,013.56",Allswell Care Services Ltd,20761,Peoples Services Directorate,Residential Care - Ext Provider,G310
http://statistics.data.gov.uk/id/local-authority/00BF,London Borough of Sutton,17/06/2016,4951644,"6,000.00",Alum Care Ltd t/a Kings Lodge,18966,Peoples Services Directorate,Nursing Care - Short Term Placements,G328
http://statistics.data.gov.uk/id/local-authority/00BF,London Borough of Sutton,06/06/2016,1219373,"10,021.38",Amy Johnson Day Nursery,22840,Peoples Services Directorate,Non-Maintained Childrens' Nurseries - 2 Year Olds,G404
http://statistics.data.gov.uk/id/local-authority/00BF,London Borough of Sutton,06/06/2016,1219438,"18,463.69",Amy Johnson Day Nursery,22840,Peoples Services Directorate,Non-Maintained Childrens' Nurseries - 3 Year Olds,G405
http://statistics.data.gov.uk/id/local-authority/00BF,London Borough of Sutton,15/06/2016,1219795,858.60,Amy Johnson Day Nursery,22840,Peoples Services Directorate,PVI - Pupil Premium,G407
http://statistics.data.gov.uk/id/local-authority/00BF,London Borough of Sutton,27/05/2016,6883782,483.00,Amy Johnson Play Service,23822,Peoples Services Directorate,C.C.A Daycare & Playschemes,H215
http://statistics.data.gov.uk/id/local-authority/00BF,London Borough of Sutton,30/06/2016,1220325,718.99,Anchor Housing,10181,"Environment, Housing & Regeneration Directorate",Supporting People - Older People Services,H244
http://statistics.data.gov.uk/id/local-authority/00BF,London Borough of Sutton,13/02/2016,4951612,697.60,Angel Home AS Ltd,10173,Peoples Services Directorate,Day Care,G337
http://statistics.data.gov.uk/id/local-authority/00BF,London Borough of Sutton,17/06/2016,4951686,"2,842.00",Angel Home AS Ltd,10173,Peoples Services Directorate,Residential Care - Ext Provider,G310
http://statistics.data.gov.uk/id/local-authority/00BF,London Borough of Sutton,17/06/2016,4952061,"2,458.96",Angel Home AS Ltd,10173,Peoples Services Directorate,Residential Care - Ext Provider,G310
http://statistics.data.gov.uk/id/local-authority/00BF,London Borough of Sutton,17/06/2016,4952086,"2,131.92",Angel Home AS Ltd,10173,Peoples Services Directorate,Residential Care - Ext Provider,G310
http://statistics.data.gov.uk/id/local-authority/00BF,London Borough of Sutton,17/06/2016,4952088,"2,200.00",Angel Home AS Ltd,10173,Peoples Services Directorate,Residential Care - Ext Provider,G310
http://statistics.data.gov.uk/id/local-authority/00BF,London Borough of Sutton,17/06/2016,4952109,"2,056.80",Angel Home AS Ltd,10173,Peoples Services Directorate,Residential Care - Ext Provider,G310
http://statistics.data.gov.uk/id/local-authority/00BF,London Borough of Sutton,13/06/2016,6884889,"2,972.00",Angel Lettings,18658,"Environment, Housing & Regeneration Directorate",General Office Expenses,F235
http://statistics.data.gov.uk/id/local-authority/00BF,London Borough of Sutton,13/06/2016,6884891,"1,448.00",Angel Lettings,18658,"Environment, Housing & Regeneration Directorate",General Office Expenses,F235
http://statistics.data.gov.uk/id/local-authority/00BF,London Borough of Sutton,13/06/2016,6885659,"1,636.00",Angel Lettings,18658,"Environment, Housing & Regeneration Directorate",General Office Expenses,F235
http://statistics.data.gov.uk/id/local-authority/00BF,London Borough of Sutton,06/06/2016,6884501,"4,250.00",Ann-Marie Drake,28928,Peoples Services Directorate,Contractual Consultant Fees,G430
http://statistics.data.gov.uk/id/local-authority/00BF,London Borough of Sutton,01/06/2016,6884036,435.00,Redacted,28358,Peoples Services Directorate,Play Groups,G322
http://statistics.data.gov.uk/id/local-authority/00BF,London Borough of Sutton,31/05/2016,5014479,"-3,677.50",Applied Geology LTD,28957,Peoples Services Directorate,Internal Fees - Structural Engin,Y170
http://statistics.data.gov.uk/id/local-authority/00BF,London Borough of Sutton,31/03/2016,6882402,"11,875.00",Applied Geology LTD,28957,Peoples Services Directorate,Internal Fees - Structural Engin,Y170
http://statistics.data.gov.uk/id/local-authority/00BF,London Borough of Sutton,31/05/2016,6884199,"3,677.50",Applied Geology LTD,28957,Peoples Services Directorate,Internal Fees - Structural Engin,Y170
http://statistics.data.gov.uk/id/local-authority/00BF,London Borough of Sutton,31/05/2016,6884508,"1,096.59",Applied Geology LTD,28957,Peoples Services Directorate,External Fees - Building Surveyors,Y132
http://statistics.data.gov.uk/id/local-authority/00BF,London Borough of Sutton,31/05/2016,6884508,"1,363.02",Applied Geology LTD,28957,Peoples Services Directorate,External Fees - Building Surveyors,Y132
http://statistics.data.gov.uk/id/local-authority/00BF,London Borough of Sutton,31/05/2016,6884508,"1,217.89",Applied Geology LTD,28957,Peoples Services Directorate,External Fees - Building Surveyors,Y132
http://statistics.data.gov.uk/id/local-authority/00BF,London Borough of Sutton,17/05/2016,6884509,"1,217.89",Applied Geology LTD,28957,Peoples Services Directorate,External Fees - Building Surveyors,Y132
http://statistics.data.gov.uk/id/local-authority/00BF,London Borough of Sutton,17/05/2016,6884509,"1,513.79",Applied Geology LTD,28957,Peoples Services Directorate,External Fees - Building Surveyors,Y132
http://statistics.data.gov.uk/id/local-authority/00BF,London Borough of Sutton,17/05/2016,6884509,"1,352.60",Applied Geology LTD,28957,Peoples Services Directorate,External Fees - Building Surveyors,Y132
http://statistics.data.gov.uk/id/local-authority/00BF,London Borough of Sutton,17/05/2016,6884510,"1,363.02",Applied Geology LTD,28957,Peoples Services Directorate,External Fees - Building Surveyors,Y132
http://statistics.data.gov.uk/id/local-authority/00BF,London Borough of Sutton,17/05/2016,6884510,"1,694.19",Applied Geology LTD,28957,Peoples Services Directorate,External Fees - Building Surveyors,Y132
http://statistics.data.gov.uk/id/local-authority/00BF,London Borough of Sutton,17/05/2016,6884510,"1,513.79",Applied Geology LTD,28957,Peoples Services Directorate,External Fees - Building Surveyors,Y132
http://statistics.data.gov.uk/id/local-authority/00BF,London Borough of Sutton,02/03/2016,6881753,"15,048.16",Architype Ltd,25419,Peoples Services Directorate,External Fees  - Architects,Y100
http://statistics.data.gov.uk/id/local-authority/00BF,London Borough of Sutton,10/05/2016,6883509,"81,446.00",Architype Ltd,25419,Peoples Services Directorate,External Fees  - Architects,Y100
http://statistics.data.gov.uk/id/local-authority/00BF,London Borough of Sutton,19/01/2016,6884220,"-4,995.90",Architype Ltd,25419,Peoples Services Directorate,External Fees  - Architects,Y100
http://statistics.data.gov.uk/id/local-authority/00BF,London Borough of Sutton,24/05/2016,6884221,"-1,006.25",Architype Ltd,25419,Peoples Services Directorate,External Fees  - Other,Y130
http://statistics.data.gov.uk/id/local-authority/00BF,London Borough of Sutton,17/05/2016,6884335,"9,083.41",Architype Ltd,25419,Peoples Services Directorate,External Fees  - Other,Y130
http://statistics.data.gov.uk/id/local-authority/00BF,London Borough of Sutton,24/05/2016,6884336,"5,000.00",Architype Ltd,25419,Peoples Services Directorate,External Fees  - Other,Y130
http://statistics.data.gov.uk/id/local-authority/00BF,London Borough of Sutton,08/06/2016,6884624,"182,953.00",Architype Ltd,25419,Peoples Services Directorate,External Fees  - Architects,Y100
http://statistics.data.gov.uk/id/local-authority/00BF,London Borough of Sutton,06/06/2016,6884892,"3,616.00",Architype Ltd,25419,Peoples Services Directorate,External Fees  - Architects,Y100
http://statistics.data.gov.uk/id/local-authority/00BF,London Borough of Sutton,09/06/2016,6884893,"1,587.37",Architype Ltd,25419,Peoples Services Directorate,External Fees  - Architects,Y100
http://statistics.data.gov.uk/id/local-authority/00BF,London Borough of Sutton,29/05/2016,6883788,460.00,Arianna Patrick,28919,Peoples Services Directorate,Agency Staff - Adecco,A300
http://statistics.data.gov.uk/id/local-authority/00BF,London Borough of Sutton,10/06/2016,6884579,920.00,Arianna Patrick,28919,Peoples Services Directorate,Agency Staff - Adecco,A300
http://statistics.data.gov.uk/id/local-authority/00BF,London Borough of Sutton,25/06/2016,6885689,920.00,Arianna Patrick,28919,Peoples Services Directorate,Agency Staff - Adecco,A300
http://statistics.data.gov.uk/id/local-authority/00BF,London Borough of Sutton,24/05/2016,6885490,"2,255.00",Ascendit Lifts Ltd,99815,"Environment, Housing & Regeneration Directorate",Grants -Made,Y610
http://statistics.data.gov.uk/id/local-authority/00BF,London Borough of Sutton,11/05/2016,6885824,826.77,Ashbrook House Ltd,23499,Peoples Services Directorate,Supported Living - Ext Provider,G306
http://statistics.data.gov.uk/id/local-authority/00BF,London Borough of Sutton,17/06/2016,4951651,"7,000.04",Ashcroft Care Services,22571,Peoples Services Directorate,Residential Care - Ext Provider,G310
http://statistics.data.gov.uk/id/local-authority/00BF,London Borough of Sutton,01/03/2016,4948228,"2,223.72",Ashlong House Ltd,23101,Peoples Services Directorate,Supported Living - Ext Provider,G306
http://statistics.data.gov.uk/id/local-authority/00BF,London Borough of Sutton,01/05/2016,4948229,"1,090.89",Ashlong House Ltd,23101,Peoples Services Directorate,Supported Living - Ext Provider,G306
http://statistics.data.gov.uk/id/local-authority/00BF,London Borough of Sutton,01/05/2016,4948230,"1,375.47",Ashlong House Ltd,23101,Peoples Services Directorate,Supported Living - Ext Provider,G306
http://statistics.data.gov.uk/id/local-authority/00BF,London Borough of Sutton,01/02/2016,4948232,884.48,Ashlong House Ltd,23101,Peoples Services Directorate,Supported Living - Ext Provider,G306
http://statistics.data.gov.uk/id/local-authority/00BF,London Borough of Sutton,01/06/2016,4951552,884.48,Ashlong House Ltd,23101,Peoples Services Directorate,Supported Living - Ext Provider,G306
http://statistics.data.gov.uk/id/local-authority/00BF,London Borough of Sutton,01/05/2016,4951568,884.48,Ashlong House Ltd,23101,Peoples Services Directorate,Supported Living - Ext Provider,G306
http://statistics.data.gov.uk/id/local-authority/00BF,London Borough of Sutton,01/06/2016,4951587,"2,306.08",Ashlong House Ltd,23101,Peoples Services Directorate,Supported Living - Ext Provider,G306
http://statistics.data.gov.uk/id/local-authority/00BF,London Borough of Sutton,01/05/2016,4951607,"2,306.08",Ashlong House Ltd,23101,Peoples Services Directorate,Supported Living - Ext Provider,G306
http://statistics.data.gov.uk/id/local-authority/00BF,London Borough of Sutton,29/04/2016,6883131,799.00,Assetgrove Lettings Ltd,28820,"Environment, Housing & Regeneration Directorate",Bed and Breakfast Accommodation,G400
http://statistics.data.gov.uk/id/local-authority/00BF,London Borough of Sutton,09/06/2016,6884521,480.00,Association of Democratic Services Officers,23679,Resources Directorate,Staff Advertising,A500
http://statistics.data.gov.uk/id/local-authority/00BF,London Borough of Sutton,17/06/2016,4951720,"3,639.72",Assurance Care Services Ltd T/A Christ the King Residential Care Homes,27458,Peoples Services Directorate,Residential Care - Ext Provider,G310
http://statistics.data.gov.uk/id/local-authority/00BF,London Borough of Sutton,31/05/2016,6885567,"4,215.66",ATS Euromaster Ltd,23885,"Environment, Housing & Regeneration Directorate",Tyre Expenditure,E015
http://statistics.data.gov.uk/id/local-authority/00BF,London Borough of Sutton,17/06/2016,4951690,"4,580.72",Autism & Aspergers Care Services,10327,Peoples Services Directorate,Residential Care - Ext Provider,G310
http://statistics.data.gov.uk/id/local-authority/00BF,London Borough of Sutton,17/06/2016,4951652,"2,432.00",Avery Homes (Nelson) Ltd - Adelaide Care Centre,25868,Peoples Services Directorate,Nursing Care - Ext Provider,G311
http://statistics.data.gov.uk/id/local-authority/00BF,London Borough of Sutton,27/06/2016,6885759,"11,400.00",Aztov Ltd (t/a Calcom),29021,Chief Executive's Directorate,Fees - Computer Software,F384
http://statistics.data.gov.uk/id/local-authority/00BF,London Borough of Sutton,06/06/2016,1219437,"16,469.36",B Mallen T/A The Adventure Pre-School,10072,Peoples Services Directorate,Non-Maintained Childrens' Nurseries - 3 Year Olds,G405
http://statistics.data.gov.uk/id/local-authority/00BF,London Borough of Sutton,14/06/2016,6884941,"40,599.87",Baily Garner LLP,21501,Peoples Services Directorate,External Fees  - Other,Y130
http://statistics.data.gov.uk/id/local-authority/00BF,London Borough of Sutton,17/06/2016,4951806,832.00,Balcombe Care Homes Ltd,10367,Peoples Services Directorate,Nursing Care - 3rd party top up payment,G360
http://statistics.data.gov.uk/id/local-authority/00BF,London Borough of Sutton,17/06/2016,4951808,"3,200.00",Balcombe Care Homes Ltd,10367,Peoples Services Directorate,Nursing Care - Ext Provider,G311
http://statistics.data.gov.uk/id/local-authority/00BF,London Borough of Sutton,24/05/2016,6884232,480.00,Balvin Electronics Ltd,10405,"Environment, Housing & Regeneration Directorate",Depositors,X460
http://statistics.data.gov.uk/id/local-authority/00BF,London Borough of Sutton,06/06/2016,1219374,"3,088.80",Bandon Hill Pre-School,10357,Peoples Services Directorate,Non-Maintained Childrens' Nurseries - 2 Year Olds,G404
http://statistics.data.gov.uk/id/local-authority/00BF,London Borough of Sutton,06/06/2016,1219439,"10,399.00",Bandon Hill Pre-School,10357,Peoples Services Directorate,Non-Maintained Childrens' Nurseries - 3 Year Olds,G405
http://statistics.data.gov.uk/id/local-authority/00BF,London Borough of Sutton,27/05/2016,6884318,"28,000.00",Bandon Hill Primary,10372,Peoples Services Directorate,Rent - General,D650
http://statistics.data.gov.uk/id/local-authority/00BF,London Borough of Sutton,20/06/2016,6885270,"4,500.00",Banstead Commons Conservators,10356,"Environment, Housing & Regeneration Directorate",Banstead Common Conservators,G126
http://statistics.data.gov.uk/id/local-authority/00BF,London Borough of Sutton,17/06/2016,4951891,"8,535.71",Barchester Healthcare (Epsom Beaumont Care Home),19157,Peoples Services Directorate,Nursing Care - Ext Provider,G311
http://statistics.data.gov.uk/id/local-authority/00BF,London Borough of Sutton,17/06/2016,4951682,"1,996.00",Barchester Healthcare (Tandridge Heights),16499,Peoples Services Directorate,Nursing Care - Ext Provider,G311
http://statistics.data.gov.uk/id/local-authority/00BF,London Borough of Sutton,16/05/2016,4948572,874.00,Barnardo's,10370,Peoples Services Directorate,Provider Contract Payments,F470
http://statistics.data.gov.uk/id/local-authority/00BF,London Borough of Sutton,16/05/2016,4948573,440.00,Barnardo's,10370,Peoples Services Directorate,Provider Contract Payments,F470
http://statistics.data.gov.uk/id/local-authority/00BF,London Borough of Sutton,16/05/2016,4948606,626.75,Barnardo's,10370,Peoples Services Directorate,Provider Contract Payments,F470
http://statistics.data.gov.uk/id/local-authority/00BF,London Borough of Sutton,16/05/2016,4948608,693.00,Barnardo's,10370,Peoples Services Directorate,Provider Contract Payments,F470
http://statistics.data.gov.uk/id/local-authority/00BF,London Borough of Sutton,16/05/2016,4948610,462.00,Barnardo's,10370,Peoples Services Directorate,Provider Contract Payments,F470
http://statistics.data.gov.uk/id/local-authority/00BF,London Borough of Sutton,16/05/2016,4948614,"1,196.00",Barnardo's,10370,Peoples Services Directorate,Provider Contract Payments,F470
http://statistics.data.gov.uk/id/local-authority/00BF,London Borough of Sutton,16/05/2016,4948615,572.00,Barnardo's,10370,Peoples Services Directorate,Provider Contract Payments,F470
http://statistics.data.gov.uk/id/local-authority/00BF,London Borough of Sutton,16/05/2016,4948616,504.00,Barnardo's,10370,Peoples Services Directorate,Provider Contract Payments,F470
http://statistics.data.gov.uk/id/local-authority/00BF,London Borough of Sutton,19/02/2015,4952199,805.00,Barnardo's,10370,Peoples Services Directorate,Provider Contract Payments,F470
http://statistics.data.gov.uk/id/local-authority/00BF,London Borough of Sutton,19/02/2015,4952200,644.00,Barnardo's,10370,Peoples Services Directorate,Provider Contract Payments,F470
http://statistics.data.gov.uk/id/local-authority/00BF,London Borough of Sutton,19/02/2015,4952201,460.00,Barnardo's,10370,Peoples Services Directorate,Provider Contract Payments,F470
http://statistics.data.gov.uk/id/local-authority/00BF,London Borough of Sutton,19/02/2015,4952217,621.00,Barnardo's,10370,Peoples Services Directorate,Provider Contract Payments,F470
http://statistics.data.gov.uk/id/local-authority/00BF,London Borough of Sutton,07/06/2016,6884421,"8,705.00",Barnett Waddingham LLP,28449,Non-Service Cost Centres Directorate,Investment Expenses,A931
http://statistics.data.gov.uk/id/local-authority/00BF,London Borough of Sutton,01/06/2016,6885120,"4,885.00",Barrow Hedges Primary School,10383,Peoples Services Directorate,Building Works -Main Contractor,Y350
http://statistics.data.gov.uk/id/local-authority/00BF,London Borough of Sutton,17/06/2016,4951775,"2,120.00",Beaumont Lodge Ltd,16849,Peoples Services Directorate,Nursing Care - Ext Provider,G311
http://statistics.data.gov.uk/id/local-authority/00BF,London Borough of Sutton,31/05/2016,6883907,930.40,Beech Grove Associates,99827,Resources Directorate,Training - Course Fees,A520
http://statistics.data.gov.uk/id/local-authority/00BF,London Borough of Sutton,17/06/2016,4951717,"3,692.28",Beech Lodge,22010,Peoples Services Directorate,Residential Care - Ext Provider,G310
http://statistics.data.gov.uk/id/local-authority/00BF,London Borough of Sutton,25/05/2016,6883742,970.00,Beechwood Investments Ltd,99898,"Environment, Housing & Regeneration Directorate",Depositors,X460
http://statistics.data.gov.uk/id/local-authority/00BF,London Borough of Sutton,10/06/2016,6884643,"3,500.00",Bell Philips Architects,28568,Peoples Services Directorate,External Fees  - Architects,Y100
http://statistics.data.gov.uk/id/local-authority/00BF,London Borough of Sutton,28/04/2016,6885375,"18,000.00",Bell Philips Architects,28568,Peoples Services Directorate,External Fees  - Architects,Y100
http://statistics.data.gov.uk/id/local-authority/00BF,London Borough of Sutton,28/04/2016,6885375,"6,000.00",Bell Philips Architects,28568,Peoples Services Directorate,External Fees  - Architects,Y100
http://statistics.data.gov.uk/id/local-authority/00BF,London Borough of Sutton,28/04/2016,6885375,"6,000.00",Bell Philips Architects,28568,Peoples Services Directorate,External Fees  - Architects,Y100
http://statistics.data.gov.uk/id/local-authority/00BF,London Borough of Sutton,28/04/2016,6885376,"1,750.00",Bell Philips Architects,28568,Peoples Services Directorate,External Fees  - Architects,Y100
http://statistics.data.gov.uk/id/local-authority/00BF,London Borough of Sutton,28/06/2016,6885775,"1,750.00",Bell Philips Architects,28568,Peoples Services Directorate,External Fees  - Architects,Y100
http://statistics.data.gov.uk/id/local-authority/00BF,London Borough of Sutton,06/06/2016,1219440,"6,337.40",Belmont Village Playgroup,17807,Peoples Services Directorate,Non-Maintained Childrens' Nurseries - 3 Year Olds,G405
http://statistics.data.gov.uk/id/local-authority/00BF,London Borough of Sutton,31/05/2016,6884054,"1,705.00",Belmontview House Ltd (Mrs R Mulalazi),28831,Peoples Services Directorate,C.C.A Rent & Utilities,H211
http://statistics.data.gov.uk/id/local-authority/00BF,London Borough of Sutton,01/04/2016,6884804,"1,160.00",Benhill & Belmont GP Centre,15665,Peoples Services Directorate,Provider Contract Payments,F470
http://statistics.data.gov.uk/id/local-authority/00BF,London Borough of Sutton,31/05/2016,6885353,"9,300.50",Bestcourt UK Ltd,10441,"Environment, Housing & Regeneration Directorate",Bed and Breakfast Accommodation,G400
http://statistics.data.gov.uk/id/local-authority/00BF,London Borough of Sutton,17/06/2016,4951800,"3,200.00",Beverley Lodge Nursing Home,10434,Peoples Services Directorate,Nursing Care - Ext Provider,G311
http://statistics.data.gov.uk/id/local-authority/00BF,London Borough of Sutton,17/06/2016,4951811,"2,800.00",Beverley Lodge Nursing Home,10434,Peoples Services Directorate,Nursing Care - Ext Provider,G311
http://statistics.data.gov.uk/id/local-authority/00BF,London Borough of Sutton,17/06/2016,4951892,"2,307.14",Beverley Lodge Nursing Home,10434,Peoples Services Directorate,Nursing Care - Ext Provider,G311
http://statistics.data.gov.uk/id/local-authority/00BF,London Borough of Sutton,17/06/2016,4951931,"2,019.96",Beverley Lodge Nursing Home,10434,Peoples Services Directorate,Nursing Care - Ext Provider,G311
http://statistics.data.gov.uk/id/local-authority/00BF,London Borough of Sutton,17/06/2016,4951936,"1,979.48",Beverley Lodge Nursing Home,10434,Peoples Services Directorate,Nursing Care - Ext Provider,G311
http://statistics.data.gov.uk/id/local-authority/00BF,London Borough of Sutton,17/06/2016,4951970,"2,459.04",Beverley Lodge Nursing Home,10434,Peoples Services Directorate,Nursing Care - Ext Provider,G311
http://statistics.data.gov.uk/id/local-authority/00BF,London Borough of Sutton,17/06/2016,4952077,"2,462.44",Beverley Lodge Nursing Home,10434,Peoples Services Directorate,Nursing Care - Ext Provider,G311
http://statistics.data.gov.uk/id/local-authority/00BF,London Borough of Sutton,17/06/2016,4952100,"2,226.40",Beverley Lodge Nursing Home,10434,Peoples Services Directorate,Nursing Care - Ext Provider,G311
http://statistics.data.gov.uk/id/local-authority/00BF,London Borough of Sutton,27/05/2016,6883925,445.44,Bibliotheca Ltd,28968,Peoples Services Directorate,Stationery,F220
http://statistics.data.gov.uk/id/local-authority/00BF,London Borough of Sutton,25/05/2016,6883975,429.02,Bidvest Foodservice,14589,Peoples Services Directorate,Refreshments,F155
http://statistics.data.gov.uk/id/local-authority/00BF,London Borough of Sutton,06/06/2016,1219376,"4,715.60",Bizzy Bees Day Nursery,10483,Peoples Services Directorate,Non-Maintained Childrens' Nurseries - 2 Year Olds,G404
http://statistics.data.gov.uk/id/local-authority/00BF,London Borough of Sutton,06/06/2016,1219441,"8,984.60",Bizzy Bees Day Nursery,10483,Peoples Services Directorate,Non-Maintained Childrens' Nurseries - 3 Year Olds,G405
http://statistics.data.gov.uk/id/local-authority/00BF,London Borough of Sutton,08/06/2016,1219822,"5,337.62",Blossom House Lower School,10507,Peoples Services Directorate,Independent Schools,G325
http://statistics.data.gov.uk/id/local-authority/00BF,London Borough of Sutton,15/06/2016,6885345,"4,120.00",Bond Solon Training Ltd,10537,"Environment, Housing & Regeneration Directorate",Training - Course Fees,A520
http://statistics.data.gov.uk/id/local-authority/00BF,London Borough of Sutton,24/03/2016,6885164,"3,802.85",Book Trust,10530,Peoples Services Directorate,LAC - Education,F269
http://statistics.data.gov.uk/id/local-authority/00BF,London Borough of Sutton,24/03/2016,6885164,"1,105.96",Book Trust,10530,Peoples Services Directorate,LAC - Education,F269
http://statistics.data.gov.uk/id/local-authority/00BF,London Borough of Sutton,06/06/2016,1219377,780.48,Brambles Pre-School,10612,Peoples Services Directorate,Non-Maintained Childrens' Nurseries - 2 Year Olds,G404
http://statistics.data.gov.uk/id/local-authority/00BF,London Borough of Sutton,06/06/2016,1219442,"3,291.76",Brambles Pre-School,10612,Peoples Services Directorate,Non-Maintained Childrens' Nurseries - 3 Year Olds,G405
http://statistics.data.gov.uk/id/local-authority/00BF,London Borough of Sutton,17/06/2016,4951734,"2,033.92",Bridge House Care Centre,10620,Peoples Services Directorate,Nursing Care - Ext Provider,G311
http://statistics.data.gov.uk/id/local-authority/00BF,London Borough of Sutton,17/06/2016,4951744,"3,000.00",Bridge House Care Centre,10620,Peoples Services Directorate,Nursing Care - Ext Provider,G311
http://statistics.data.gov.uk/id/local-authority/00BF,London Borough of Sutton,17/06/2016,4951779,"3,200.00",Bridge House Care Centre,10620,Peoples Services Directorate,Nursing Care - Ext Provider,G311
http://statistics.data.gov.uk/id/local-authority/00BF,London Borough of Sutton,17/06/2016,4951788,"3,400.00",Bridge House Care Centre,10620,Peoples Services Directorate,Nursing Care - Ext Provider,G311
http://statistics.data.gov.uk/id/local-authority/00BF,London Borough of Sutton,17/06/2016,4951839,"3,475.36",Bridge House Care Centre,10620,Peoples Services Directorate,Nursing Care - Ext Provider,G311
http://statistics.data.gov.uk/id/local-authority/00BF,London Borough of Sutton,17/06/2016,4951865,"3,400.00",Bridge House Care Centre,10620,Peoples Services Directorate,Nursing Care - Ext Provider,G311
http://statistics.data.gov.uk/id/local-authority/00BF,London Borough of Sutton,17/06/2016,4951980,"3,000.00",Bridge House Care Centre,10620,Peoples Services Directorate,Nursing Care - Ext Provider,G311
http://statistics.data.gov.uk/id/local-authority/00BF,London Borough of Sutton,17/06/2016,4951984,"2,005.84",Bridge House Care Centre,10620,Peoples Services Directorate,Nursing Care - Ext Provider,G311
http://statistics.data.gov.uk/id/local-authority/00BF,London Borough of Sutton,17/06/2016,4952018,"2,552.00",Bridge House Care Centre,10620,Peoples Services Directorate,Nursing Care - Ext Provider,G311
http://statistics.data.gov.uk/id/local-authority/00BF,London Borough of Sutton,17/06/2016,4952064,"2,034.96",Bridge House Care Centre,10620,Peoples Services Directorate,Nursing Care - Ext Provider,G311
http://statistics.data.gov.uk/id/local-authority/00BF,London Borough of Sutton,17/06/2016,4952089,"1,996.00",Bridge House Care Centre,10620,Peoples Services Directorate,Nursing Care - Ext Provider,G311
http://statistics.data.gov.uk/id/local-authority/00BF,London Borough of Sutton,17/06/2016,4952114,"1,942.48",Bridge House Care Centre,10620,Peoples Services Directorate,Nursing Care - Ext Provider,G311
http://statistics.data.gov.uk/id/local-authority/00BF,London Borough of Sutton,17/06/2016,4951752,"2,710.40",British Home & Hospital For Incurables,10589,Peoples Services Directorate,Nursing Care - Ext Provider,G311
http://statistics.data.gov.uk/id/local-authority/00BF,London Borough of Sutton,17/06/2016,4952024,"2,439.36",British Home & Hospital For Incurables,10589,Peoples Services Directorate,Nursing Care - Ext Provider,G311
http://statistics.data.gov.uk/id/local-authority/00BF,London Borough of Sutton,17/06/2016,4952025,"2,439.36",British Home & Hospital For Incurables,10589,Peoples Services Directorate,Nursing Care - Ext Provider,G311
http://statistics.data.gov.uk/id/local-authority/00BF,London Borough of Sutton,27/05/2016,6884325,"15,865.65",British Telecommunications Plc,10574,Resources Directorate,Purchase of IT Equipment,F380
http://statistics.data.gov.uk/id/local-authority/00BF,London Borough of Sutton,14/03/2016,6884251,540.00,British Youth Council,24619,Peoples Services Directorate,Other Services,F340
http://statistics.data.gov.uk/id/local-authority/00BF,London Borough of Sutton,17/06/2016,4951726,"2,019.96",Broadlands Nursing Home,10586,Peoples Services Directorate,Nursing Care - Ext Provider,G311
http://statistics.data.gov.uk/id/local-authority/00BF,London Borough of Sutton,17/06/2016,4951755,"3,277.16",Broadlands Nursing Home,10586,Peoples Services Directorate,Nursing Care - Ext Provider,G311
http://statistics.data.gov.uk/id/local-authority/00BF,London Borough of Sutton,17/06/2016,4951758,"2,088.64",Broadlands Nursing Home,10586,Peoples Services Directorate,Nursing Care - Ext Provider,G311
http://statistics.data.gov.uk/id/local-authority/00BF,London Borough of Sutton,17/06/2016,4951908,"1,077.22",Broadlands Nursing Home,10586,Peoples Services Directorate,Nursing Care - 3rd party top up payment,G360
http://statistics.data.gov.uk/id/local-authority/00BF,London Borough of Sutton,17/06/2016,4951934,"2,444.00",Broadlands Nursing Home,10586,Peoples Services Directorate,Nursing Care - Ext Provider,G311
http://statistics.data.gov.uk/id/local-authority/00BF,London Borough of Sutton,17/06/2016,4951937,"1,835.60",Broadlands Nursing Home,10586,Peoples Services Directorate,Nursing Care - Ext Provider,G311
http://statistics.data.gov.uk/id/local-authority/00BF,London Borough of Sutton,17/06/2016,4951732,"2,242.72",Brook Care Homes (BH),10582,Peoples Services Directorate,Residential Care - Ext Provider,G310
http://statistics.data.gov.uk/id/local-authority/00BF,London Borough of Sutton,17/06/2016,4951981,"2,279.56",Brook Care Homes (BH),10582,Peoples Services Directorate,Residential Care - Ext Provider,G310
http://statistics.data.gov.uk/id/local-authority/00BF,London Borough of Sutton,17/06/2016,4951998,"3,694.60",Brook Care Homes (BH),10582,Peoples Services Directorate,Residential Care - Ext Provider,G310
http://statistics.data.gov.uk/id/local-authority/00BF,London Borough of Sutton,17/06/2016,4952004,"1,924.40",Brook Care Homes (BH),10582,Peoples Services Directorate,Residential Care - Ext Provider,G310
http://statistics.data.gov.uk/id/local-authority/00BF,London Borough of Sutton,17/06/2016,4952007,"6,090.00",Brook Care Homes (BH),10582,Peoples Services Directorate,Residential Care - Ext Provider,G310
http://statistics.data.gov.uk/id/local-authority/00BF,London Borough of Sutton,17/06/2016,4952009,"4,222.40",Brook Care Homes (BH),10582,Peoples Services Directorate,Residential Care - Ext Provider,G310
http://statistics.data.gov.uk/id/local-authority/00BF,London Borough of Sutton,17/06/2016,4952020,"3,150.56",Brook Care Homes (BH),10582,Peoples Services Directorate,Residential Care - Ext Provider,G310
http://statistics.data.gov.uk/id/local-authority/00BF,London Borough of Sutton,17/06/2016,4952073,"4,400.92",Brook Care Homes (BH),10582,Peoples Services Directorate,Residential Care - Ext Provider,G310
http://statistics.data.gov.uk/id/local-authority/00BF,London Borough of Sutton,17/06/2016,4952087,"2,639.00",Brook Care Homes (BH),10582,Peoples Services Directorate,Residential Care - Ext Provider,G310
http://statistics.data.gov.uk/id/local-authority/00BF,London Borough of Sutton,01/06/2016,6885512,"1,670.00",Brookfield Primary School,10624,Peoples Services Directorate,Other,Y194
http://statistics.data.gov.uk/id/local-authority/00BF,London Borough of Sutton,27/05/2016,1220051,"3,252.00",Brunswick Cars 9761/1961276/Loc09,10611,Peoples Services Directorate,Hired Peoples Transport (Children),E072
http://statistics.data.gov.uk/id/local-authority/00BF,London Borough of Sutton,27/05/2016,1220052,"4,645.50",Brunswick Cars 9761/1961276/Loc09,10611,Peoples Services Directorate,Hired Peoples Transport (Children),E072
http://statistics.data.gov.uk/id/local-authority/00BF,London Borough of Sutton,27/05/2016,1220053,"9,082.00",Brunswick Cars 9761/1961276/Loc09,10611,Peoples Services Directorate,Hired Peoples Transport (Children),E072
http://statistics.data.gov.uk/id/local-authority/00BF,London Borough of Sutton,27/05/2016,1220054,"2,926.00",Brunswick Cars 9761/1961276/Loc09,10611,Peoples Services Directorate,Hired Peoples Transport (Children),E072
http://statistics.data.gov.uk/id/local-authority/00BF,London Borough of Sutton,27/05/2016,1220056,"3,519.00",Brunswick Cars 9761/1961276/Loc09,10611,Peoples Services Directorate,Hired Peoples Transport (Children),E072
http://statistics.data.gov.uk/id/local-authority/00BF,London Borough of Sutton,27/05/2016,1220057,"2,318.00",Brunswick Cars 9761/1961276/Loc09,10611,Peoples Services Directorate,Hired Peoples Transport (Children),E072
http://statistics.data.gov.uk/id/local-authority/00BF,London Borough of Sutton,27/05/2016,1220058,"3,591.00",Brunswick Cars 9761/1961276/Loc09,10611,Peoples Services Directorate,Hired Peoples Transport (Children),E072
http://statistics.data.gov.uk/id/local-authority/00BF,London Borough of Sutton,27/05/2016,1220059,"4,142.00",Brunswick Cars 9761/1961276/Loc09,10611,Peoples Services Directorate,Hired Peoples Transport (Children),E072
http://statistics.data.gov.uk/id/local-authority/00BF,London Borough of Sutton,27/05/2016,1220060,"5,785.50",Brunswick Cars 9761/1961276/Loc09,10611,Peoples Services Directorate,Hired Peoples Transport (Children),E072
http://statistics.data.gov.uk/id/local-authority/00BF,London Borough of Sutton,27/05/2016,1220061,"3,553.00",Brunswick Cars 9761/1961276/Loc09,10611,Peoples Services Directorate,Hired Peoples Transport (Children),E072
http://statistics.data.gov.uk/id/local-authority/00BF,London Borough of Sutton,27/05/2016,1220062,"4,415.00",Brunswick Cars 9761/1961276/Loc09,10611,Peoples Services Directorate,Hired Peoples Transport (Children),E072
http://statistics.data.gov.uk/id/local-authority/00BF,London Borough of Sutton,27/05/2016,1220063,"1,596.00",Brunswick Cars 9761/1961276/Loc09,10611,Peoples Services Directorate,Hired Peoples Transport (Children),E072
http://statistics.data.gov.uk/id/local-authority/00BF,London Borough of Sutton,27/05/2016,1220064,"1,140.00",Brunswick Cars 9761/1961276/Loc09,10611,Peoples Services Directorate,Hired Peoples Transport (Children),E072
http://statistics.data.gov.uk/id/local-authority/00BF,London Borough of Sutton,27/05/2016,1220065,"1,386.00",Brunswick Cars 9761/1961276/Loc09,10611,Peoples Services Directorate,Hired Peoples Transport (Children),E072
http://statistics.data.gov.uk/id/local-authority/00BF,London Borough of Sutton,27/05/2016,1220066,"1,843.00",Brunswick Cars 9761/1961276/Loc09,10611,Peoples Services Directorate,Hired Peoples Transport (Children),E072
http://statistics.data.gov.uk/id/local-authority/00BF,London Borough of Sutton,27/05/2016,1220067,"1,638.00",Brunswick Cars 9761/1961276/Loc09,10611,Peoples Services Directorate,Hired Peoples Transport (Children),E072
http://statistics.data.gov.uk/id/local-authority/00BF,London Borough of Sutton,27/05/2016,1220068,"1,805.00",Brunswick Cars 9761/1961276/Loc09,10611,Peoples Services Directorate,Hired Peoples Transport (Children),E072
http://statistics.data.gov.uk/id/local-authority/00BF,London Borough of Sutton,27/05/2016,1220069,"3,135.00",Brunswick Cars 9761/1961276/Loc09,10611,Peoples Services Directorate,Hired Peoples Transport (Children),E072
http://statistics.data.gov.uk/id/local-authority/00BF,London Borough of Sutton,27/05/2016,1220070,"4,174.00",Brunswick Cars 9761/1961276/Loc09,10611,Peoples Services Directorate,Hired Peoples Transport (Children),E072
http://statistics.data.gov.uk/id/local-authority/00BF,London Borough of Sutton,27/05/2016,1220071,"3,133.50",Brunswick Cars 9761/1961276/Loc09,10611,Peoples Services Directorate,Hired Peoples Transport (Children),E072
http://statistics.data.gov.uk/id/local-authority/00BF,London Borough of Sutton,27/05/2016,1220072,"1,672.00",Brunswick Cars 9761/1961276/Loc09,10611,Peoples Services Directorate,Hired Peoples Transport (Children),E072
http://statistics.data.gov.uk/id/local-authority/00BF,London Borough of Sutton,27/05/2016,1220073,"1,976.00",Brunswick Cars 9761/1961276/Loc09,10611,Peoples Services Directorate,Hired Peoples Transport (Children),E072
http://statistics.data.gov.uk/id/local-authority/00BF,London Borough of Sutton,27/05/2016,1220074,"2,090.00",Brunswick Cars 9761/1961276/Loc09,10611,Peoples Services Directorate,Hired Peoples Transport (Children),E072
http://statistics.data.gov.uk/id/local-authority/00BF,London Borough of Sutton,27/05/2016,1220075,"1,444.00",Brunswick Cars 9761/1961276/Loc09,10611,Peoples Services Directorate,Hired Peoples Transport (Children),E072
http://statistics.data.gov.uk/id/local-authority/00BF,London Borough of Sutton,27/05/2016,1220076,"2,130.00",Brunswick Cars 9761/1961276/Loc09,10611,Peoples Services Directorate,Hired Peoples Transport (Children),E072
http://statistics.data.gov.uk/id/local-authority/00BF,London Borough of Sutton,27/05/2016,1220077,"3,058.00",Brunswick Cars 9761/1961276/Loc09,10611,Peoples Services Directorate,Hired Peoples Transport (Children),E072
http://statistics.data.gov.uk/id/local-authority/00BF,London Borough of Sutton,27/05/2016,1220078,"1,995.00",Brunswick Cars 9761/1961276/Loc09,10611,Peoples Services Directorate,Hired Peoples Transport (Children),E072
http://statistics.data.gov.uk/id/local-authority/00BF,London Borough of Sutton,27/05/2016,1220079,590.00,Brunswick Cars 9761/1961276/Loc09,10611,Peoples Services Directorate,Hired Peoples Transport (Children),E072
http://statistics.data.gov.uk/id/local-authority/00BF,London Borough of Sutton,27/05/2016,1220080,"1,890.00",Brunswick Cars 9761/1961276/Loc09,10611,Peoples Services Directorate,Hired Peoples Transport (Children),E072
http://statistics.data.gov.uk/id/local-authority/00BF,London Borough of Sutton,27/05/2016,1220082,"2,925.00",Brunswick Cars 9761/1961276/Loc09,10611,Peoples Services Directorate,Hired Peoples Transport (Children),E072
http://statistics.data.gov.uk/id/local-authority/00BF,London Borough of Sutton,27/05/2016,1220083,"1,440.00",Brunswick Cars 9761/1961276/Loc09,10611,Peoples Services Directorate,Hired Peoples Transport (Children),E072
http://statistics.data.gov.uk/id/local-authority/00BF,London Borough of Sutton,27/05/2016,1220084,"2,300.00",Brunswick Cars 9761/1961276/Loc09,10611,Peoples Services Directorate,Hired Peoples Transport (Children),E072
http://statistics.data.gov.uk/id/local-authority/00BF,London Borough of Sutton,27/05/2016,1220085,"1,680.00",Brunswick Cars 9761/1961276/Loc09,10611,Peoples Services Directorate,Hired Peoples Transport (Children),E072
http://statistics.data.gov.uk/id/local-authority/00BF,London Borough of Sutton,27/05/2016,1220110,"5,023.50",Brunswick Cars 9761/1961276/Loc09,10611,Peoples Services Directorate,Hired Peoples Transport (Children),E072
http://statistics.data.gov.uk/id/local-authority/00BF,London Borough of Sutton,27/05/2016,1220111,"3,629.00",Brunswick Cars 9761/1961276/Loc09,10611,Peoples Services Directorate,Hired Peoples Transport (Children),E072
http://statistics.data.gov.uk/id/local-authority/00BF,London Borough of Sutton,27/05/2016,1220112,"3,325.00",Brunswick Cars 9761/1961276/Loc09,10611,Peoples Services Directorate,Hired Peoples Transport (Children),E072
http://statistics.data.gov.uk/id/local-authority/00BF,London Borough of Sutton,27/05/2016,1220113,"3,393.00",Brunswick Cars 9761/1961276/Loc09,10611,Peoples Services Directorate,Hired Peoples Transport (Children),E072
http://statistics.data.gov.uk/id/local-authority/00BF,London Borough of Sutton,27/05/2016,1220114,"5,472.00",Brunswick Cars 9761/1961276/Loc09,10611,Peoples Services Directorate,Hired Peoples Transport (Children),E072
http://statistics.data.gov.uk/id/local-authority/00BF,London Borough of Sutton,27/05/2016,1220150,"4,320.00",Brunswick Cars 9761/1961276/Loc09,10611,Peoples Services Directorate,Hired Peoples Transport (Children),E072
http://statistics.data.gov.uk/id/local-authority/00BF,London Borough of Sutton,27/05/2016,1220151,"5,379.00",Brunswick Cars 9761/1961276/Loc09,10611,Peoples Services Directorate,Hired Peoples Transport (Children),E072
http://statistics.data.gov.uk/id/local-authority/00BF,London Borough of Sutton,27/05/2016,1220276,"3,006.00",Brunswick Cars 9761/1961276/Loc09,10611,Peoples Services Directorate,Hired Peoples Transport (Children),E072
http://statistics.data.gov.uk/id/local-authority/00BF,London Borough of Sutton,27/05/2016,1220277,"3,064.50",Brunswick Cars 9761/1961276/Loc09,10611,Peoples Services Directorate,Hired Peoples Transport (Children),E072
http://statistics.data.gov.uk/id/local-authority/00BF,London Borough of Sutton,27/05/2016,1220278,"3,846.00",Brunswick Cars 9761/1961276/Loc09,10611,Peoples Services Directorate,Hired Peoples Transport (Children),E072
http://statistics.data.gov.uk/id/local-authority/00BF,London Borough of Sutton,27/05/2016,1220279,"4,284.00",Brunswick Cars 9761/1961276/Loc09,10611,Peoples Services Directorate,Hired Peoples Transport (Children),E072
http://statistics.data.gov.uk/id/local-authority/00BF,London Borough of Sutton,27/06/2016,1220281,"3,709.00",Brunswick Cars 9761/1961276/Loc09,10611,Peoples Services Directorate,Hired Peoples Transport (Children),E072
http://statistics.data.gov.uk/id/local-authority/00BF,London Borough of Sutton,02/06/2016,6884897,"365,067.89",Built Off-Site Ltd,28510,Peoples Services Directorate,Building Works -Main Contractor,Y350
http://statistics.data.gov.uk/id/local-authority/00BF,London Borough of Sutton,11/06/2016,6885629,"450,024.07",Built Off-Site Ltd,28510,Peoples Services Directorate,Building Works -Main Contractor,Y350
http://statistics.data.gov.uk/id/local-authority/00BF,London Borough of Sutton,06/06/2016,1219378,"19,512.00",Bumpsa Daisies Nurserys,10727,Peoples Services Directorate,Non-Maintained Childrens' Nurseries - 2 Year Olds,G404
http://statistics.data.gov.uk/id/local-authority/00BF,London Borough of Sutton,06/06/2016,1219443,"36,243.40",Bumpsa Daisies Nurserys,10727,Peoples Services Directorate,Non-Maintained Childrens' Nurseries - 3 Year Olds,G405
http://statistics.data.gov.uk/id/local-authority/00BF,London Borough of Sutton,17/06/2016,4951997,"1,868.00",Bupa Care Services,10175,Peoples Services Directorate,Residential Care - Ext Provider,G310
http://statistics.data.gov.uk/id/local-authority/00BF,London Borough of Sutton,17/06/2016,4952093,"1,971.80",Bupa Care Services,10175,Peoples Services Directorate,Nursing Care - Ext Provider,G311
http://statistics.data.gov.uk/id/local-authority/00BF,London Borough of Sutton,17/06/2016,4951714,"2,439.56",Burlington Nursing Home Ltd,19236,Peoples Services Directorate,Nursing Care - Ext Provider,G311
http://statistics.data.gov.uk/id/local-authority/00BF,London Borough of Sutton,06/06/2016,1219380,"1,950.80",Busy Bees Day Nurseries Ltd - Cheam,24079,Peoples Services Directorate,Non-Maintained Childrens' Nurseries - 2 Year Olds,G404
http://statistics.data.gov.uk/id/local-authority/00BF,London Borough of Sutton,06/06/2016,1219445,"14,455.48",Busy Bees Day Nurseries Ltd - Cheam,24079,Peoples Services Directorate,Non-Maintained Childrens' Nurseries - 3 Year Olds,G405
http://statistics.data.gov.uk/id/local-authority/00BF,London Borough of Sutton,06/06/2016,1219379,"1,788.20",Busy Bees Day Nursery at Carshalton,24082,Peoples Services Directorate,Non-Maintained Childrens' Nurseries - 2 Year Olds,G404
http://statistics.data.gov.uk/id/local-authority/00BF,London Borough of Sutton,06/06/2016,1219444,"16,730.08",Busy Bees Day Nursery at Carshalton,24082,Peoples Services Directorate,Non-Maintained Childrens' Nurseries - 3 Year Olds,G405
http://statistics.data.gov.uk/id/local-authority/00BF,London Borough of Sutton,06/06/2016,1219381,"2,243.16",Busy Bees Early Learning Ltd,25160,Peoples Services Directorate,Non-Maintained Childrens' Nurseries - 2 Year Olds,G404
http://statistics.data.gov.uk/id/local-authority/00BF,London Borough of Sutton,06/06/2016,1219446,"7,020.88",Busy Bees Early Learning Ltd,25160,Peoples Services Directorate,Non-Maintained Childrens' Nurseries - 3 Year Olds,G405
http://statistics.data.gov.uk/id/local-authority/00BF,London Borough of Sutton,15/06/2016,1219798,763.20,Busy Bees Early Learning Ltd,25160,Peoples Services Directorate,PVI - Pupil Premium,G407
http://statistics.data.gov.uk/id/local-authority/00BF,London Borough of Sutton,17/06/2016,4951660,"7,824.28",Butterfly's Care Homes Ltd,28860,Peoples Services Directorate,Residential Care - Ext Provider,G310
http://statistics.data.gov.uk/id/local-authority/00BF,London Borough of Sutton,31/05/2016,6883844,480.00,Caesar Investments UK Ltd,24923,"Environment, Housing & Regeneration Directorate",Bed and Breakfast Accommodation,G400
http://statistics.data.gov.uk/id/local-authority/00BF,London Borough of Sutton,06/06/2016,6884467,560.00,Caesar Investments UK Ltd,24923,"Environment, Housing & Regeneration Directorate",Bed and Breakfast Accommodation,G400
http://statistics.data.gov.uk/id/local-authority/00BF,London Borough of Sutton,13/01/2016,1219023,"4,551.28",Cambian Asperger Syndrome Services Ltd,12082,Peoples Services Directorate,Top-up Funding,G064
http://statistics.data.gov.uk/id/local-authority/00BF,London Borough of Sutton,13/01/2016,1219023,"6,285.10",Cambian Asperger Syndrome Services Ltd,12082,Peoples Services Directorate,Supported Living - Ext Provider,G306
http://statistics.data.gov.uk/id/local-authority/00BF,London Borough of Sutton,14/01/2016,1219024,"17,504.92",Cambian Asperger Syndrome Services Ltd,12082,Peoples Services Directorate,Top-up Funding,G064
http://statistics.data.gov.uk/id/local-authority/00BF,London Borough of Sutton,14/01/2016,1219024,"24,173.45",Cambian Asperger Syndrome Services Ltd,12082,Peoples Services Directorate,Supported Living - Ext Provider,G306
http://statistics.data.gov.uk/id/local-authority/00BF,London Borough of Sutton,13/03/2016,1219025,"17,504.92",Cambian Asperger Syndrome Services Ltd,12082,Peoples Services Directorate,Top-up Funding,G064
http://statistics.data.gov.uk/id/local-authority/00BF,London Borough of Sutton,13/03/2016,1219025,"24,173.45",Cambian Asperger Syndrome Services Ltd,12082,Peoples Services Directorate,Supported Living - Ext Provider,G306
http://statistics.data.gov.uk/id/local-authority/00BF,London Borough of Sutton,17/06/2016,4951769,"3,884.56",Canterbury Oast Trust,10755,Peoples Services Directorate,Residential Care - Ext Provider,G310
http://statistics.data.gov.uk/id/local-authority/00BF,London Borough of Sutton,14/06/2016,1220351,"6,140.04",Capel Manor College,20455,Peoples Services Directorate,Top-up Funding,G064
http://statistics.data.gov.uk/id/local-authority/00BF,London Borough of Sutton,15/04/2016,6885651,"2,235.20",Capita Property & Infrastructure Ltd,19428,HRA Directorate,Fees - Consultants (Ad Hoc),F283
http://statistics.data.gov.uk/id/local-authority/00BF,London Borough of Sutton,31/05/2016,6884790,795.00,Capital Traffic Management Ltd,24034,"Environment, Housing & Regeneration Directorate","Surveys, Trial Holes Etc",Y200
http://statistics.data.gov.uk/id/local-authority/00BF,London Borough of Sutton,17/06/2016,4951762,"2,267.40",Care Base(Redhill)Ltd t/a Acorn Court Care Home,24206,Peoples Services Directorate,Residential Care - Ext Provider,G310
http://statistics.data.gov.uk/id/local-authority/00BF,London Borough of Sutton,25/04/2016,6884067,640.00,Care Connections Ltd,10798,Peoples Services Directorate,Agency Staff - Adecco,A300
http://statistics.data.gov.uk/id/local-authority/00BF,London Borough of Sutton,01/06/2016,6884070,"5,585.08",Care Connections Ltd,10798,Peoples Services Directorate,Agency Staff - Adecco,A300
http://statistics.data.gov.uk/id/local-authority/00BF,London Borough of Sutton,01/02/2016,4951640,"3,035.71",Care Homes of Distinction,23643,Peoples Services Directorate,Nursing Care - Ext Provider,G311
http://statistics.data.gov.uk/id/local-authority/00BF,London Borough of Sutton,01/03/2016,4951641,"1,578.57",Care Homes of Distinction,23643,Peoples Services Directorate,Nursing Care - Ext Provider,G311
http://statistics.data.gov.uk/id/local-authority/00BF,London Borough of Sutton,17/06/2016,4951666,"26,015.85",Care Management Group,28952,Peoples Services Directorate,Residential Care - Ext Provider,G310
http://statistics.data.gov.uk/id/local-authority/00BF,London Borough of Sutton,31/05/2016,6884086,"1,931.25",Care Monitoring 2000 Ltd,20716,Peoples Services Directorate,Telephones - Other Expenses,F373
http://statistics.data.gov.uk/id/local-authority/00BF,London Borough of Sutton,31/05/2016,6884103,"2,204.20",Care Monitoring 2000 Ltd,20716,Peoples Services Directorate,Telephones - Other Expenses,F373
http://statistics.data.gov.uk/id/local-authority/00BF,London Borough of Sutton,17/06/2016,4951654,"3,600.00",Care UK Homecare Ltd,10853,Peoples Services Directorate,Nursing Care - Ext Provider,G311
http://statistics.data.gov.uk/id/local-authority/00BF,London Borough of Sutton,01/04/2016,4951548,"4,060.00",Care Unlimited Domcare Ltd,28906,Peoples Services Directorate,Supported Living - Ext Provider,G306
http://statistics.data.gov.uk/id/local-authority/00BF,London Borough of Sutton,01/06/2016,4951550,"14,196.00",Care Unlimited Domcare Ltd,28906,Peoples Services Directorate,Supported Living - Ext Provider,G306
http://statistics.data.gov.uk/id/local-authority/00BF,London Borough of Sutton,01/06/2016,4951565,"4,060.00",Care Unlimited Domcare Ltd,28906,Peoples Services Directorate,Supported Living - Ext Provider,G306
http://statistics.data.gov.uk/id/local-authority/00BF,London Borough of Sutton,01/06/2016,4951586,"4,060.00",Care Unlimited Domcare Ltd,28906,Peoples Services Directorate,Supported Living - Ext Provider,G306
http://statistics.data.gov.uk/id/local-authority/00BF,London Borough of Sutton,01/06/2016,4951597,"4,060.00",Care Unlimited Domcare Ltd,28906,Peoples Services Directorate,Supported Living - Ext Provider,G306
http://statistics.data.gov.uk/id/local-authority/00BF,London Borough of Sutton,01/06/2016,4951598,"4,060.00",Care Unlimited Domcare Ltd,28906,Peoples Services Directorate,Supported Living - Ext Provider,G306
http://statistics.data.gov.uk/id/local-authority/00BF,London Borough of Sutton,01/06/2016,4951605,"12,100.86",Care Unlimited Domcare Ltd,28906,Peoples Services Directorate,Supported Living - Ext Provider,G306
http://statistics.data.gov.uk/id/local-authority/00BF,London Borough of Sutton,01/06/2016,4951606,"4,060.00",Care Unlimited Domcare Ltd,28906,Peoples Services Directorate,Supported Living - Ext Provider,G306
http://statistics.data.gov.uk/id/local-authority/00BF,London Borough of Sutton,17/06/2016,4951664,714.29,Care Unlimited Group Ltd,10774,Peoples Services Directorate,Interim Placements - Ext Provider,G317
http://statistics.data.gov.uk/id/local-authority/00BF,London Borough of Sutton,17/06/2016,4951756,"2,940.00",Care Unlimited Group Ltd,10774,Peoples Services Directorate,Residential Care - Ext Provider,G310
http://statistics.data.gov.uk/id/local-authority/00BF,London Borough of Sutton,17/06/2016,4951778,"1,780.00",Care Unlimited Group Ltd,10774,Peoples Services Directorate,Residential Care - Ext Provider,G310
http://statistics.data.gov.uk/id/local-authority/00BF,London Borough of Sutton,17/06/2016,4951825,"1,692.00",Care Unlimited Group Ltd,10774,Peoples Services Directorate,Residential Care - Ext Provider,G310
http://statistics.data.gov.uk/id/local-authority/00BF,London Borough of Sutton,17/06/2016,4951879,"4,000.00",Care Unlimited Group Ltd,10774,Peoples Services Directorate,Interim Placements - Ext Provider,G317
http://statistics.data.gov.uk/id/local-authority/00BF,London Borough of Sutton,17/06/2016,4951880,"2,550.00",Care Unlimited Group Ltd,10774,Peoples Services Directorate,Interim Placements - Ext Provider,G317
http://statistics.data.gov.uk/id/local-authority/00BF,London Borough of Sutton,17/06/2016,4951923,"1,692.00",Care Unlimited Group Ltd,10774,Peoples Services Directorate,Interim Placements - Ext Provider,G317
http://statistics.data.gov.uk/id/local-authority/00BF,London Borough of Sutton,15/05/2016,4949895,538.62,Caremark (Sutton),25541,Peoples Services Directorate,Home Care,G334
http://statistics.data.gov.uk/id/local-authority/00BF,London Borough of Sutton,22/05/2016,4949896,538.62,Caremark (Sutton),25541,Peoples Services Directorate,Home Care,G334
http://statistics.data.gov.uk/id/local-authority/00BF,London Borough of Sutton,15/05/2016,4949907,538.62,Caremark (Sutton),25541,Peoples Services Directorate,Home Care,G334
http://statistics.data.gov.uk/id/local-authority/00BF,London Borough of Sutton,22/05/2016,4949908,486.15,Caremark (Sutton),25541,Peoples Services Directorate,Home Care,G334
http://statistics.data.gov.uk/id/local-authority/00BF,London Borough of Sutton,29/05/2016,4951098,479.16,Caremark (Sutton),25541,Peoples Services Directorate,Home Care,G334
http://statistics.data.gov.uk/id/local-authority/00BF,London Borough of Sutton,29/05/2016,4951278,538.62,Caremark (Sutton),25541,Peoples Services Directorate,Home Care,G334
http://statistics.data.gov.uk/id/local-authority/00BF,London Borough of Sutton,05/06/2016,4951279,538.62,Caremark (Sutton),25541,Peoples Services Directorate,Home Care,G334
http://statistics.data.gov.uk/id/local-authority/00BF,London Borough of Sutton,12/06/2016,4956639,538.62,Caremark (Sutton),25541,Peoples Services Directorate,Home Care,G334
http://statistics.data.gov.uk/id/local-authority/00BF,London Borough of Sutton,01/03/2016,4948253,"2,092.50",Caretech Community Services Ltd,10791,Peoples Services Directorate,One to One Care,G335
http://statistics.data.gov.uk/id/local-authority/00BF,London Borough of Sutton,01/05/2016,4951614,"2,092.50",Caretech Community Services Ltd,10791,Peoples Services Directorate,One to One Care,G335
http://statistics.data.gov.uk/id/local-authority/00BF,London Borough of Sutton,17/06/2016,4951753,"5,270.48",Caretech Community Services Ltd,10791,Peoples Services Directorate,Residential Care - Ext Provider,G310
http://statistics.data.gov.uk/id/local-authority/00BF,London Borough of Sutton,17/06/2016,4951924,"5,270.48",Caretech Community Services Ltd,10791,Peoples Services Directorate,Residential Care - Ext Provider,G310
http://statistics.data.gov.uk/id/local-authority/00BF,London Borough of Sutton,17/06/2016,4952047,"5,270.48",Caretech Community Services Ltd,10791,Peoples Services Directorate,Residential Care - Ext Provider,G310
http://statistics.data.gov.uk/id/local-authority/00BF,London Borough of Sutton,17/06/2016,4952067,"5,405.88",Caretech Community Services Ltd,10791,Peoples Services Directorate,Residential Care - Ext Provider,G310
http://statistics.data.gov.uk/id/local-authority/00BF,London Borough of Sutton,31/05/2016,4951616,"2,178.31",Carlene House,10763,Peoples Services Directorate,Day Care,G337
http://statistics.data.gov.uk/id/local-authority/00BF,London Borough of Sutton,31/05/2016,4951618,"2,178.31",Carlene House,10763,Peoples Services Directorate,Day Care,G337
http://statistics.data.gov.uk/id/local-authority/00BF,London Borough of Sutton,31/05/2016,4951619,"2,178.31",Carlene House,10763,Peoples Services Directorate,Day Care,G337
http://statistics.data.gov.uk/id/local-authority/00BF,London Borough of Sutton,31/05/2016,4951623,"2,178.31",Carlene House,10763,Peoples Services Directorate,Day Care,G337
http://statistics.data.gov.uk/id/local-authority/00BF,London Borough of Sutton,31/05/2016,4951624,"2,178.31",Carlene House,10763,Peoples Services Directorate,Day Care,G337
http://statistics.data.gov.uk/id/local-authority/00BF,London Borough of Sutton,31/05/2016,4951625,"2,178.31",Carlene House,10763,Peoples Services Directorate,Day Care,G337
http://statistics.data.gov.uk/id/local-authority/00BF,London Borough of Sutton,17/06/2016,4951767,"2,625.28",Carlene House,10763,Peoples Services Directorate,Residential Care - Ext Provider,G310
http://statistics.data.gov.uk/id/local-authority/00BF,London Borough of Sutton,17/06/2016,4951911,"2,654.68",Carlene House,10763,Peoples Services Directorate,Residential Care - Ext Provider,G310
http://statistics.data.gov.uk/id/local-authority/00BF,London Borough of Sutton,17/06/2016,4952019,"2,682.68",Carlene House,10763,Peoples Services Directorate,Residential Care - Ext Provider,G310
http://statistics.data.gov.uk/id/local-authority/00BF,London Borough of Sutton,17/06/2016,4952090,"2,625.28",Carlene House,10763,Peoples Services Directorate,Residential Care - Ext Provider,G310
http://statistics.data.gov.uk/id/local-authority/00BF,London Borough of Sutton,17/06/2016,4952096,"2,740.64",Carlene House,10763,Peoples Services Directorate,Residential Care - Ext Provider,G310
http://statistics.data.gov.uk/id/local-authority/00BF,London Borough of Sutton,17/06/2016,4952103,"4,440.00",Carlene House,10763,Peoples Services Directorate,Residential Care - Ext Provider,G310
http://statistics.data.gov.uk/id/local-authority/00BF,London Borough of Sutton,17/06/2016,4952112,"2,630.60",Carlene House,10763,Peoples Services Directorate,Residential Care - Ext Provider,G310
http://statistics.data.gov.uk/id/local-authority/00BF,London Borough of Sutton,06/06/2016,1219433,"1,463.20",Carly-Jo Etherington-Stanbrook,25990,Peoples Services Directorate,Non-Maintained Childrens' Nurseries - 2 Year Olds,G404
http://statistics.data.gov.uk/id/local-authority/00BF,London Borough of Sutton,06/06/2016,1219435,780.60,Caroline Brown,27834,Peoples Services Directorate,Non-Maintained Childrens' Nurseries - 2 Year Olds,G404
http://statistics.data.gov.uk/id/local-authority/00BF,London Borough of Sutton,06/06/2016,1219515,474.32,Caroline Brown,27834,Peoples Services Directorate,Non-Maintained Childrens' Nurseries - 3 Year Olds,G405
http://statistics.data.gov.uk/id/local-authority/00BF,London Borough of Sutton,20/06/2016,4952124,831.46,Carshalton News,10752,Peoples Services Directorate,Books,F006
http://statistics.data.gov.uk/id/local-authority/00BF,London Borough of Sutton,15/05/2016,4950508,"15,469.13",Castle Homes Ltd,10759,Peoples Services Directorate,Residential Care-Children,G330
http://statistics.data.gov.uk/id/local-authority/00BF,London Borough of Sutton,15/05/2016,4950532,"17,614.51",Castle Homes Ltd,10759,Peoples Services Directorate,Residential Care-Children,G330
http://statistics.data.gov.uk/id/local-authority/00BF,London Borough of Sutton,15/05/2016,4950540,"11,023.18",Castle Homes Ltd,10759,Peoples Services Directorate,Residential Care-Children,G330
http://statistics.data.gov.uk/id/local-authority/00BF,London Borough of Sutton,06/06/2016,1219447,"5,504.00",Caterpillar Pre-School,15386,Peoples Services Directorate,Non-Maintained Childrens' Nurseries - 3 Year Olds,G405
http://statistics.data.gov.uk/id/local-authority/00BF,London Borough of Sutton,06/06/2016,1219448,"10,031.60",Caterpillars Day Nursery,28020,Peoples Services Directorate,Non-Maintained Childrens' Nurseries - 3 Year Olds,G405
http://statistics.data.gov.uk/id/local-authority/00BF,London Borough of Sutton,12/05/2016,6883462,"1,055.95",Caysh Enterprise Cic,28016,Peoples Services Directorate,Approved Lodgings,H323
http://statistics.data.gov.uk/id/local-authority/00BF,London Borough of Sutton,12/06/2016,6885505,"1,055.95",Caysh Enterprise Cic,28016,Peoples Services Directorate,Approved Lodgings,H323
http://statistics.data.gov.uk/id/local-authority/00BF,London Borough of Sutton,30/06/2016,1220326,"29,666.67",Caysh Housing Project,23133,"Environment, Housing & Regeneration Directorate",Supporting People - Teenage Parent Services,H247
http://statistics.data.gov.uk/id/local-authority/00BF,London Borough of Sutton,31/05/2016,6883965,"2,417.30",Caysh Housing Project,23133,Peoples Services Directorate,Approved Lodgings,H323
http://statistics.data.gov.uk/id/local-authority/00BF,London Borough of Sutton,31/05/2016,6883966,"2,331.55",Caysh Housing Project,23133,Peoples Services Directorate,Approved Lodgings,H323
http://statistics.data.gov.uk/id/local-authority/00BF,London Borough of Sutton,02/06/2016,1219825,550.00,Central Surrey Health Ltd,20148,Peoples Services Directorate,Miscellaneous Training Courses,F304
http://statistics.data.gov.uk/id/local-authority/00BF,London Borough of Sutton,17/06/2016,6885729,"2,624.10",Certas Energy T/A Emo Oils Ltd,21143,"Environment, Housing & Regeneration Directorate",Fuel Etc,E030
http://statistics.data.gov.uk/id/local-authority/00BF,London Borough of Sutton,01/06/2016,1219572,"2,400.00",Channels & Choices Theraputic Fostering Ltd,25665,Peoples Services Directorate,Independent Schools,G325
http://statistics.data.gov.uk/id/local-authority/00BF,London Borough of Sutton,04/05/2016,6884860,"6,182.00",Charles Hunter Associates,28315,Peoples Services Directorate,Recruitment Expenses,A531
http://statistics.data.gov.uk/id/local-authority/00BF,London Borough of Sutton,17/06/2016,4951741,"6,988.00",Chatsworth Care,19984,Peoples Services Directorate,Residential Care - Ext Provider,G310
http://statistics.data.gov.uk/id/local-authority/00BF,London Borough of Sutton,17/06/2016,4951812,"8,400.00",Chatsworth Care,19984,Peoples Services Directorate,Residential Care - Ext Provider,G310
http://statistics.data.gov.uk/id/local-authority/00BF,London Borough of Sutton,17/06/2016,4952015,"9,176.88",Chatsworth Care,19984,Peoples Services Directorate,Residential Care - Ext Provider,G310
http://statistics.data.gov.uk/id/local-authority/00BF,London Borough of Sutton,06/06/2016,1219449,"13,035.36",Cheam Baptist Church Pre-School,10924,Peoples Services Directorate,Non-Maintained Childrens' Nurseries - 3 Year Olds,G405
http://statistics.data.gov.uk/id/local-authority/00BF,London Borough of Sutton,01/06/2016,6885533,"30,000.00",Cheam Fields Primary School,10909,Peoples Services Directorate,Building Works -Main Contractor,Y350
http://statistics.data.gov.uk/id/local-authority/00BF,London Borough of Sutton,05/05/2016,6883760,"4,302.00",Cheam Park Farm Junior School Academy,23882,Peoples Services Directorate,Materials - General,F100
http://statistics.data.gov.uk/id/local-authority/00BF,London Borough of Sutton,01/06/2016,6885358,"10,420.81",Cheam Park Farm Junior School Academy,23882,Peoples Services Directorate,External Fees  - Architects,Y100
http://statistics.data.gov.uk/id/local-authority/00BF,London Borough of Sutton,31/05/2016,6885823,443.70,Cheam Priory Day Centre,10894,Peoples Services Directorate,Home Care,G334
http://statistics.data.gov.uk/id/local-authority/00BF,London Borough of Sutton,31/05/2016,1220086,848.00,Cheam Station Cars,15604,Peoples Services Directorate,Hired Peoples Transport (Children),E072
http://statistics.data.gov.uk/id/local-authority/00BF,London Borough of Sutton,31/05/2016,1220087,450.00,Cheam Station Cars,15604,Peoples Services Directorate,Hired Peoples Transport (Children),E072
http://statistics.data.gov.uk/id/local-authority/00BF,London Borough of Sutton,31/05/2016,1220088,500.00,Cheam Station Cars,15604,Peoples Services Directorate,Hired Peoples Transport (Children),E072
http://statistics.data.gov.uk/id/local-authority/00BF,London Borough of Sutton,31/05/2016,1220090,770.00,Cheam Station Cars,15604,Peoples Services Directorate,Hired Peoples Transport (Children),E072
http://statistics.data.gov.uk/id/local-authority/00BF,London Borough of Sutton,31/05/2016,1220091,"2,964.00",Cheam Station Cars,15604,Peoples Services Directorate,Hired Peoples Transport (Children),E072
http://statistics.data.gov.uk/id/local-authority/00BF,London Borough of Sutton,31/05/2016,1220092,"2,850.00",Cheam Station Cars,15604,Peoples Services Directorate,Hired Peoples Transport (Children),E072
http://statistics.data.gov.uk/id/local-authority/00BF,London Borough of Sutton,31/05/2016,1220093,"1,365.00",Cheam Station Cars,15604,Peoples Services Directorate,Hired Peoples Transport (Children),E072
http://statistics.data.gov.uk/id/local-authority/00BF,London Borough of Sutton,31/05/2016,1220094,"1,765.00",Cheam Station Cars,15604,Peoples Services Directorate,Hired Peoples Transport (Children),E072
http://statistics.data.gov.uk/id/local-authority/00BF,London Borough of Sutton,31/05/2016,1220095,900.00,Cheam Station Cars,15604,Peoples Services Directorate,Hired Peoples Transport (Children),E072
http://statistics.data.gov.uk/id/local-authority/00BF,London Borough of Sutton,31/05/2016,1220096,462.00,Cheam Station Cars,15604,Peoples Services Directorate,Hired Peoples Transport (Children),E072
http://statistics.data.gov.uk/id/local-authority/00BF,London Borough of Sutton,31/05/2016,1220097,594.00,Cheam Station Cars,15604,Peoples Services Directorate,Hired Peoples Transport (Children),E072
http://statistics.data.gov.uk/id/local-authority/00BF,London Borough of Sutton,31/05/2016,1220098,925.00,Cheam Station Cars,15604,Peoples Services Directorate,Hired Peoples Transport (Children),E072
http://statistics.data.gov.uk/id/local-authority/00BF,London Borough of Sutton,31/05/2016,1220099,420.00,Cheam Station Cars,15604,Peoples Services Directorate,Hired Peoples Transport (Children),E072
http://statistics.data.gov.uk/id/local-authority/00BF,London Borough of Sutton,31/05/2016,1220101,504.00,Cheam Station Cars,15604,Peoples Services Directorate,Hired Peoples Transport (Children),E072
http://statistics.data.gov.uk/id/local-authority/00BF,London Borough of Sutton,31/05/2016,1220102,"2,181.00",Cheam Station Cars,15604,Peoples Services Directorate,Hired Peoples Transport (Children),E072
http://statistics.data.gov.uk/id/local-authority/00BF,London Borough of Sutton,31/05/2016,1220103,714.00,Cheam Station Cars,15604,Peoples Services Directorate,Hired Peoples Transport (Children),E072
http://statistics.data.gov.uk/id/local-authority/00BF,London Borough of Sutton,31/05/2016,1220104,925.00,Cheam Station Cars,15604,Peoples Services Directorate,Hired Peoples Transport (Children),E072
http://statistics.data.gov.uk/id/local-authority/00BF,London Borough of Sutton,31/05/2016,1220106,900.00,Cheam Station Cars,15604,Peoples Services Directorate,Hired Peoples Transport (Children),E072
http://statistics.data.gov.uk/id/local-authority/00BF,London Borough of Sutton,31/05/2016,1220107,"2,470.00",Cheam Station Cars,15604,Peoples Services Directorate,Hired Peoples Transport (Children),E072
http://statistics.data.gov.uk/id/local-authority/00BF,London Borough of Sutton,31/05/2016,1220108,952.00,Cheam Station Cars,15604,Peoples Services Directorate,Hired Peoples Transport (Children),E072
http://statistics.data.gov.uk/id/local-authority/00BF,London Borough of Sutton,31/05/2016,1220109,"2,876.00",Cheam Station Cars,15604,Peoples Services Directorate,Hired Peoples Transport (Children),E072
http://statistics.data.gov.uk/id/local-authority/00BF,London Borough of Sutton,31/05/2016,1220109,"4,650.00",Cheam Station Cars,15604,Peoples Services Directorate,Hired Peoples Transport (Children),E072
http://statistics.data.gov.uk/id/local-authority/00BF,London Borough of Sutton,31/05/2016,1220282,"3,630.00",Cheam Station Cars,15604,Peoples Services Directorate,Hired Peoples Transport (Children),E072
http://statistics.data.gov.uk/id/local-authority/00BF,London Borough of Sutton,31/05/2016,1220283,"2,232.00",Cheam Station Cars,15604,Peoples Services Directorate,Hired Peoples Transport (Children),E072
http://statistics.data.gov.uk/id/local-authority/00BF,London Borough of Sutton,31/05/2016,1220284,"1,540.00",Cheam Station Cars,15604,Peoples Services Directorate,Hired Peoples Transport (Children),E072
http://statistics.data.gov.uk/id/local-authority/00BF,London Borough of Sutton,17/06/2016,4951746,"2,800.00",Chegworth Nursing Home Bayswift Ltd,10908,Peoples Services Directorate,Nursing Care - Ext Provider,G311
http://statistics.data.gov.uk/id/local-authority/00BF,London Borough of Sutton,17/06/2016,4951782,"2,352.00",Chegworth Nursing Home Bayswift Ltd,10908,Peoples Services Directorate,Nursing Care - Ext Provider,G311
http://statistics.data.gov.uk/id/local-authority/00BF,London Borough of Sutton,17/06/2016,4951802,"2,467.96",Chegworth Nursing Home Bayswift Ltd,10908,Peoples Services Directorate,Nursing Care - Ext Provider,G311
http://statistics.data.gov.uk/id/local-authority/00BF,London Borough of Sutton,17/06/2016,4951850,"2,505.20",Chegworth Nursing Home Bayswift Ltd,10908,Peoples Services Directorate,Nursing Care - Ext Provider,G311
http://statistics.data.gov.uk/id/local-authority/00BF,London Borough of Sutton,17/06/2016,4951852,"2,904.00",Chegworth Nursing Home Bayswift Ltd,10908,Peoples Services Directorate,Nursing Care - Ext Provider,G311
http://statistics.data.gov.uk/id/local-authority/00BF,London Borough of Sutton,17/06/2016,4951905,"1,928.24",Chegworth Nursing Home Bayswift Ltd,10908,Peoples Services Directorate,Nursing Care - Ext Provider,G311
http://statistics.data.gov.uk/id/local-authority/00BF,London Borough of Sutton,17/06/2016,4951930,"2,539.84",Chegworth Nursing Home Bayswift Ltd,10908,Peoples Services Directorate,Nursing Care - Ext Provider,G311
http://statistics.data.gov.uk/id/local-authority/00BF,London Borough of Sutton,17/06/2016,4952002,"2,019.96",Chegworth Nursing Home Bayswift Ltd,10908,Peoples Services Directorate,Nursing Care - Ext Provider,G311
http://statistics.data.gov.uk/id/local-authority/00BF,London Borough of Sutton,17/06/2016,4952042,"2,781.64",Chegworth Nursing Home Bayswift Ltd,10908,Peoples Services Directorate,Nursing Care - Ext Provider,G311
http://statistics.data.gov.uk/id/local-authority/00BF,London Borough of Sutton,17/06/2016,4952048,"1,890.40",Chegworth Nursing Home Bayswift Ltd,10908,Peoples Services Directorate,Nursing Care - Ext Provider,G311
http://statistics.data.gov.uk/id/local-authority/00BF,London Borough of Sutton,17/04/2016,4948058,490.00,Chenash Homecare Specialists And Care Agency,25667,Peoples Services Directorate,Home Care,G334
http://statistics.data.gov.uk/id/local-authority/00BF,London Borough of Sutton,24/04/2016,4948059,490.00,Chenash Homecare Specialists And Care Agency,25667,Peoples Services Directorate,Home Care,G334
http://statistics.data.gov.uk/id/local-authority/00BF,London Borough of Sutton,27/03/2016,4948060,490.00,Chenash Homecare Specialists And Care Agency,25667,Peoples Services Directorate,Home Care,G334
http://statistics.data.gov.uk/id/local-authority/00BF,London Borough of Sutton,17/04/2016,4948084,441.00,Chenash Homecare Specialists And Care Agency,25667,Peoples Services Directorate,Home Care,G334
http://statistics.data.gov.uk/id/local-authority/00BF,London Borough of Sutton,24/04/2016,4948085,441.00,Chenash Homecare Specialists And Care Agency,25667,Peoples Services Directorate,Home Care,G334
http://statistics.data.gov.uk/id/local-authority/00BF,London Borough of Sutton,27/03/2016,4948086,441.00,Chenash Homecare Specialists And Care Agency,25667,Peoples Services Directorate,Home Care,G334
http://statistics.data.gov.uk/id/local-authority/00BF,London Borough of Sutton,17/04/2016,4948120,490.00,Chenash Homecare Specialists And Care Agency,25667,Peoples Services Directorate,Home Care,G334
http://statistics.data.gov.uk/id/local-authority/00BF,London Borough of Sutton,24/04/2016,4948121,490.00,Chenash Homecare Specialists And Care Agency,25667,Peoples Services Directorate,Home Care,G334
http://statistics.data.gov.uk/id/local-authority/00BF,London Borough of Sutton,27/03/2016,4948122,490.00,Chenash Homecare Specialists And Care Agency,25667,Peoples Services Directorate,Home Care,G334
http://statistics.data.gov.uk/id/local-authority/00BF,London Borough of Sutton,17/04/2016,4948150,518.00,Chenash Homecare Specialists And Care Agency,25667,Peoples Services Directorate,Home Care,G334
http://statistics.data.gov.uk/id/local-authority/00BF,London Borough of Sutton,24/04/2016,4948151,518.00,Chenash Homecare Specialists And Care Agency,25667,Peoples Services Directorate,Home Care,G334
http://statistics.data.gov.uk/id/local-authority/00BF,London Borough of Sutton,27/03/2016,4948152,518.00,Chenash Homecare Specialists And Care Agency,25667,Peoples Services Directorate,Home Care,G334
http://statistics.data.gov.uk/id/local-authority/00BF,London Borough of Sutton,17/04/2016,4948153,462.00,Chenash Homecare Specialists And Care Agency,25667,Peoples Services Directorate,Home Care,G334
http://statistics.data.gov.uk/id/local-authority/00BF,London Borough of Sutton,24/04/2016,4948154,462.00,Chenash Homecare Specialists And Care Agency,25667,Peoples Services Directorate,Home Care,G334
http://statistics.data.gov.uk/id/local-authority/00BF,London Borough of Sutton,27/03/2016,4948155,462.00,Chenash Homecare Specialists And Care Agency,25667,Peoples Services Directorate,Home Care,G334
http://statistics.data.gov.uk/id/local-authority/00BF,London Borough of Sutton,03/04/2016,4950820,490.00,Chenash Homecare Specialists And Care Agency,25667,Peoples Services Directorate,Home Care,G334
http://statistics.data.gov.uk/id/local-authority/00BF,London Borough of Sutton,10/04/2016,4950821,490.00,Chenash Homecare Specialists And Care Agency,25667,Peoples Services Directorate,Home Care,G334
http://statistics.data.gov.uk/id/local-authority/00BF,London Borough of Sutton,01/05/2016,4950822,490.00,Chenash Homecare Specialists And Care Agency,25667,Peoples Services Directorate,Home Care,G334
http://statistics.data.gov.uk/id/local-authority/00BF,London Borough of Sutton,08/05/2016,4950823,490.00,Chenash Homecare Specialists And Care Agency,25667,Peoples Services Directorate,Home Care,G334
http://statistics.data.gov.uk/id/local-authority/00BF,London Borough of Sutton,15/05/2016,4950824,490.00,Chenash Homecare Specialists And Care Agency,25667,Peoples Services Directorate,Home Care,G334
http://statistics.data.gov.uk/id/local-authority/00BF,London Borough of Sutton,03/04/2016,4950859,441.00,Chenash Homecare Specialists And Care Agency,25667,Peoples Services Directorate,Home Care,G334
http://statistics.data.gov.uk/id/local-authority/00BF,London Borough of Sutton,10/04/2016,4950860,441.00,Chenash Homecare Specialists And Care Agency,25667,Peoples Services Directorate,Home Care,G334
http://statistics.data.gov.uk/id/local-authority/00BF,London Borough of Sutton,01/05/2016,4950861,441.00,Chenash Homecare Specialists And Care Agency,25667,Peoples Services Directorate,Home Care,G334
http://statistics.data.gov.uk/id/local-authority/00BF,London Borough of Sutton,08/05/2016,4950862,441.00,Chenash Homecare Specialists And Care Agency,25667,Peoples Services Directorate,Home Care,G334
http://statistics.data.gov.uk/id/local-authority/00BF,London Borough of Sutton,15/05/2016,4950863,441.00,Chenash Homecare Specialists And Care Agency,25667,Peoples Services Directorate,Home Care,G334
http://statistics.data.gov.uk/id/local-authority/00BF,London Borough of Sutton,03/04/2016,4950904,518.00,Chenash Homecare Specialists And Care Agency,25667,Peoples Services Directorate,Home Care,G334
http://statistics.data.gov.uk/id/local-authority/00BF,London Borough of Sutton,10/04/2016,4950905,518.00,Chenash Homecare Specialists And Care Agency,25667,Peoples Services Directorate,Home Care,G334
http://statistics.data.gov.uk/id/local-authority/00BF,London Borough of Sutton,01/05/2016,4950906,518.00,Chenash Homecare Specialists And Care Agency,25667,Peoples Services Directorate,Home Care,G334
http://statistics.data.gov.uk/id/local-authority/00BF,London Borough of Sutton,08/05/2016,4950907,518.00,Chenash Homecare Specialists And Care Agency,25667,Peoples Services Directorate,Home Care,G334
http://statistics.data.gov.uk/id/local-authority/00BF,London Borough of Sutton,15/05/2016,4950908,518.00,Chenash Homecare Specialists And Care Agency,25667,Peoples Services Directorate,Home Care,G334
http://statistics.data.gov.uk/id/local-authority/00BF,London Borough of Sutton,03/04/2016,4950909,462.00,Chenash Homecare Specialists And Care Agency,25667,Peoples Services Directorate,Home Care,G334
http://statistics.data.gov.uk/id/local-authority/00BF,London Borough of Sutton,10/04/2016,4950910,462.00,Chenash Homecare Specialists And Care Agency,25667,Peoples Services Directorate,Home Care,G334
http://statistics.data.gov.uk/id/local-authority/00BF,London Borough of Sutton,01/05/2016,4950911,462.00,Chenash Homecare Specialists And Care Agency,25667,Peoples Services Directorate,Home Care,G334
http://statistics.data.gov.uk/id/local-authority/00BF,London Borough of Sutton,08/05/2016,4950912,462.00,Chenash Homecare Specialists And Care Agency,25667,Peoples Services Directorate,Home Care,G334
http://statistics.data.gov.uk/id/local-authority/00BF,London Borough of Sutton,15/05/2016,4950913,462.00,Chenash Homecare Specialists And Care Agency,25667,Peoples Services Directorate,Home Care,G334
http://statistics.data.gov.uk/id/local-authority/00BF,London Borough of Sutton,03/04/2016,4950929,490.00,Chenash Homecare Specialists And Care Agency,25667,Peoples Services Directorate,Home Care,G334
http://statistics.data.gov.uk/id/local-authority/00BF,London Borough of Sutton,10/04/2016,4950930,490.00,Chenash Homecare Specialists And Care Agency,25667,Peoples Services Directorate,Home Care,G334
http://statistics.data.gov.uk/id/local-authority/00BF,London Borough of Sutton,01/05/2016,4950931,490.00,Chenash Homecare Specialists And Care Agency,25667,Peoples Services Directorate,Home Care,G334
http://statistics.data.gov.uk/id/local-authority/00BF,London Borough of Sutton,08/05/2016,4950932,490.00,Chenash Homecare Specialists And Care Agency,25667,Peoples Services Directorate,Home Care,G334
http://statistics.data.gov.uk/id/local-authority/00BF,London Borough of Sutton,15/05/2016,4950933,490.00,Chenash Homecare Specialists And Care Agency,25667,Peoples Services Directorate,Home Care,G334
http://statistics.data.gov.uk/id/local-authority/00BF,London Borough of Sutton,22/05/2016,4957476,490.00,Chenash Homecare Specialists And Care Agency,25667,Peoples Services Directorate,Home Care,G334
http://statistics.data.gov.uk/id/local-authority/00BF,London Borough of Sutton,22/05/2016,4957801,490.00,Chenash Homecare Specialists And Care Agency,25667,Peoples Services Directorate,Home Care,G334
http://statistics.data.gov.uk/id/local-authority/00BF,London Borough of Sutton,22/05/2016,4957807,441.00,Chenash Homecare Specialists And Care Agency,25667,Peoples Services Directorate,Home Care,G334
http://statistics.data.gov.uk/id/local-authority/00BF,London Borough of Sutton,22/05/2016,4957810,518.00,Chenash Homecare Specialists And Care Agency,25667,Peoples Services Directorate,Home Care,G334
http://statistics.data.gov.uk/id/local-authority/00BF,London Borough of Sutton,22/05/2016,4957811,462.00,Chenash Homecare Specialists And Care Agency,25667,Peoples Services Directorate,Home Care,G334
http://statistics.data.gov.uk/id/local-authority/00BF,London Borough of Sutton,17/06/2016,4952027,"2,409.80",Cherry Lodge,10934,Peoples Services Directorate,Residential Care - Ext Provider,G310
http://statistics.data.gov.uk/id/local-authority/00BF,London Borough of Sutton,17/06/2016,4952068,"3,360.00",Cherry Lodge,10934,Peoples Services Directorate,Residential Care - Ext Provider,G310
http://statistics.data.gov.uk/id/local-authority/00BF,London Borough of Sutton,06/06/2016,1219382,487.60,Chiltern Day Nursery,10941,Peoples Services Directorate,Non-Maintained Childrens' Nurseries - 2 Year Olds,G404
http://statistics.data.gov.uk/id/local-authority/00BF,London Borough of Sutton,06/06/2016,1219450,"5,270.00",Chiltern Day Nursery,10941,Peoples Services Directorate,Non-Maintained Childrens' Nurseries - 3 Year Olds,G405
http://statistics.data.gov.uk/id/local-authority/00BF,London Borough of Sutton,25/05/2016,4948231,"1,240.00",Choice Care Group,22029,Peoples Services Directorate,Supported Living - Ext Provider,G306
http://statistics.data.gov.uk/id/local-authority/00BF,London Borough of Sutton,25/05/2016,4948248,"2,302.85",Choice Care Group,22029,Peoples Services Directorate,Supported Living - Ext Provider,G306
http://statistics.data.gov.uk/id/local-authority/00BF,London Borough of Sutton,17/06/2016,4951810,"7,682.20",Choice Care Group,22029,Peoples Services Directorate,Residential Care - Ext Provider,G310
http://statistics.data.gov.uk/id/local-authority/00BF,London Borough of Sutton,17/06/2016,4951921,"7,511.00",Choice Care Group,22029,Peoples Services Directorate,Residential Care - Ext Provider,G310
http://statistics.data.gov.uk/id/local-authority/00BF,London Borough of Sutton,17/06/2016,4952057,"7,511.00",Choice Care Group,22029,Peoples Services Directorate,Residential Care - Ext Provider,G310
http://statistics.data.gov.uk/id/local-authority/00BF,London Borough of Sutton,01/06/2016,4948196,739.20,Choice Support,22320,Peoples Services Directorate,Supported Living - Ext Provider,G306
http://statistics.data.gov.uk/id/local-authority/00BF,London Borough of Sutton,01/06/2016,4948196,"5,501.10",Choice Support,22320,Peoples Services Directorate,Supported Living - Ext Provider,G306
http://statistics.data.gov.uk/id/local-authority/00BF,London Borough of Sutton,01/06/2016,4948197,739.20,Choice Support,22320,Peoples Services Directorate,Supported Living - Ext Provider,G306
http://statistics.data.gov.uk/id/local-authority/00BF,London Borough of Sutton,01/06/2016,4948197,"4,761.90",Choice Support,22320,Peoples Services Directorate,Supported Living - Ext Provider,G306
http://statistics.data.gov.uk/id/local-authority/00BF,London Borough of Sutton,01/06/2016,4948198,739.20,Choice Support,22320,Peoples Services Directorate,Supported Living - Ext Provider,G306
http://statistics.data.gov.uk/id/local-authority/00BF,London Borough of Sutton,01/06/2016,4948198,"4,365.90",Choice Support,22320,Peoples Services Directorate,Supported Living - Ext Provider,G306
http://statistics.data.gov.uk/id/local-authority/00BF,London Borough of Sutton,01/06/2016,4948199,739.20,Choice Support,22320,Peoples Services Directorate,Supported Living - Ext Provider,G306
http://statistics.data.gov.uk/id/local-authority/00BF,London Borough of Sutton,01/06/2016,4948199,"5,111.70",Choice Support,22320,Peoples Services Directorate,Supported Living - Ext Provider,G306
http://statistics.data.gov.uk/id/local-authority/00BF,London Borough of Sutton,01/06/2016,4948200,739.20,Choice Support,22320,Peoples Services Directorate,Supported Living - Ext Provider,G306
http://statistics.data.gov.uk/id/local-authority/00BF,London Borough of Sutton,01/06/2016,4948200,"4,874.10",Choice Support,22320,Peoples Services Directorate,Supported Living - Ext Provider,G306
http://statistics.data.gov.uk/id/local-authority/00BF,London Borough of Sutton,01/06/2016,4948201,739.20,Choice Support,22320,Peoples Services Directorate,Supported Living - Ext Provider,G306
http://statistics.data.gov.uk/id/local-authority/00BF,London Borough of Sutton,01/06/2016,4948201,"5,091.90",Choice Support,22320,Peoples Services Directorate,Supported Living - Ext Provider,G306
http://statistics.data.gov.uk/id/local-authority/00BF,London Borough of Sutton,01/06/2016,4948202,739.20,Choice Support,22320,Peoples Services Directorate,Supported Living - Ext Provider,G306
http://statistics.data.gov.uk/id/local-authority/00BF,London Borough of Sutton,01/06/2016,4948202,"4,768.50",Choice Support,22320,Peoples Services Directorate,Supported Living - Ext Provider,G306
http://statistics.data.gov.uk/id/local-authority/00BF,London Borough of Sutton,01/06/2016,4948203,739.20,Choice Support,22320,Peoples Services Directorate,Supported Living - Ext Provider,G306
http://statistics.data.gov.uk/id/local-authority/00BF,London Borough of Sutton,01/06/2016,4948203,"6,035.70",Choice Support,22320,Peoples Services Directorate,Supported Living - Ext Provider,G306
http://statistics.data.gov.uk/id/local-authority/00BF,London Borough of Sutton,09/06/2016,4951553,763.84,Choice Support,22320,Peoples Services Directorate,Supported Living - Ext Provider,G306
http://statistics.data.gov.uk/id/local-authority/00BF,London Borough of Sutton,09/06/2016,4951553,"5,282.09",Choice Support,22320,Peoples Services Directorate,Supported Living - Ext Provider,G306
http://statistics.data.gov.uk/id/local-authority/00BF,London Borough of Sutton,09/06/2016,4951554,"2,546.61",Choice Support,22320,Peoples Services Directorate,Supported Living - Ext Provider,G306
http://statistics.data.gov.uk/id/local-authority/00BF,London Borough of Sutton,09/06/2016,4951554,545.24,Choice Support,22320,Peoples Services Directorate,Supported Living - Ext Provider,G306
http://statistics.data.gov.uk/id/local-authority/00BF,London Borough of Sutton,09/06/2016,4951554,"1,364.00",Choice Support,22320,Peoples Services Directorate,Supported Living - Ext Provider,G306
http://statistics.data.gov.uk/id/local-authority/00BF,London Borough of Sutton,09/06/2016,4951560,763.84,Choice Support,22320,Peoples Services Directorate,Supported Living - Ext Provider,G306
http://statistics.data.gov.uk/id/local-authority/00BF,London Borough of Sutton,09/06/2016,4951560,"4,920.63",Choice Support,22320,Peoples Services Directorate,Supported Living - Ext Provider,G306
http://statistics.data.gov.uk/id/local-authority/00BF,London Borough of Sutton,09/06/2016,4951561,"1,534.50",Choice Support,22320,Peoples Services Directorate,Supported Living - Ext Provider,G306
http://statistics.data.gov.uk/id/local-authority/00BF,London Borough of Sutton,09/06/2016,4951561,545.60,Choice Support,22320,Peoples Services Directorate,Supported Living - Ext Provider,G306
http://statistics.data.gov.uk/id/local-authority/00BF,London Borough of Sutton,09/06/2016,4951561,"1,602.70",Choice Support,22320,Peoples Services Directorate,Supported Living - Ext Provider,G306
http://statistics.data.gov.uk/id/local-authority/00BF,London Borough of Sutton,09/06/2016,4951562,"2,114.20",Choice Support,22320,Peoples Services Directorate,Supported Living - Ext Provider,G306
http://statistics.data.gov.uk/id/local-authority/00BF,London Borough of Sutton,09/06/2016,4951562,545.60,Choice Support,22320,Peoples Services Directorate,Supported Living - Ext Provider,G306
http://statistics.data.gov.uk/id/local-authority/00BF,London Borough of Sutton,09/06/2016,4951562,"1,364.00",Choice Support,22320,Peoples Services Directorate,Supported Living - Ext Provider,G306
http://statistics.data.gov.uk/id/local-authority/00BF,London Borough of Sutton,09/06/2016,4951569,763.84,Choice Support,22320,Peoples Services Directorate,Supported Living - Ext Provider,G306
http://statistics.data.gov.uk/id/local-authority/00BF,London Borough of Sutton,09/06/2016,4951569,"5,036.57",Choice Support,22320,Peoples Services Directorate,Supported Living - Ext Provider,G306
http://statistics.data.gov.uk/id/local-authority/00BF,London Borough of Sutton,09/06/2016,4951570,763.84,Choice Support,22320,Peoples Services Directorate,Supported Living - Ext Provider,G306
http://statistics.data.gov.uk/id/local-authority/00BF,London Borough of Sutton,09/06/2016,4951570,"4,511.43",Choice Support,22320,Peoples Services Directorate,Supported Living - Ext Provider,G306
http://statistics.data.gov.uk/id/local-authority/00BF,London Borough of Sutton,09/06/2016,4951580,763.84,Choice Support,22320,Peoples Services Directorate,Supported Living - Ext Provider,G306
http://statistics.data.gov.uk/id/local-authority/00BF,London Borough of Sutton,09/06/2016,4951580,"4,927.45",Choice Support,22320,Peoples Services Directorate,Supported Living - Ext Provider,G306
http://statistics.data.gov.uk/id/local-authority/00BF,London Borough of Sutton,09/06/2016,4951583,763.84,Choice Support,22320,Peoples Services Directorate,Supported Living - Ext Provider,G306
http://statistics.data.gov.uk/id/local-authority/00BF,London Borough of Sutton,09/06/2016,4951583,"5,684.47",Choice Support,22320,Peoples Services Directorate,Supported Living - Ext Provider,G306
http://statistics.data.gov.uk/id/local-authority/00BF,London Borough of Sutton,09/06/2016,4951584,763.84,Choice Support,22320,Peoples Services Directorate,Supported Living - Ext Provider,G306
http://statistics.data.gov.uk/id/local-authority/00BF,London Borough of Sutton,09/06/2016,4951584,"5,261.63",Choice Support,22320,Peoples Services Directorate,Supported Living - Ext Provider,G306
http://statistics.data.gov.uk/id/local-authority/00BF,London Borough of Sutton,09/06/2016,4951599,"3,240.16",Choice Support,22320,Peoples Services Directorate,Supported Living - Ext Provider,G306
http://statistics.data.gov.uk/id/local-authority/00BF,London Borough of Sutton,09/06/2016,4951599,545.29,Choice Support,22320,Peoples Services Directorate,Supported Living - Ext Provider,G306
http://statistics.data.gov.uk/id/local-authority/00BF,London Borough of Sutton,09/06/2016,4951599,"2,837.12",Choice Support,22320,Peoples Services Directorate,Supported Living - Ext Provider,G306
http://statistics.data.gov.uk/id/local-authority/00BF,London Borough of Sutton,09/06/2016,4951600,"2,366.54",Choice Support,22320,Peoples Services Directorate,Supported Living - Ext Provider,G306
http://statistics.data.gov.uk/id/local-authority/00BF,London Borough of Sutton,09/06/2016,4951600,545.60,Choice Support,22320,Peoples Services Directorate,Supported Living - Ext Provider,G306
http://statistics.data.gov.uk/id/local-authority/00BF,London Borough of Sutton,09/06/2016,4951600,"1,534.50",Choice Support,22320,Peoples Services Directorate,Supported Living - Ext Provider,G306
http://statistics.data.gov.uk/id/local-authority/00BF,London Borough of Sutton,09/06/2016,4951601,"1,493.58",Choice Support,22320,Peoples Services Directorate,Supported Living - Ext Provider,G306
http://statistics.data.gov.uk/id/local-authority/00BF,London Borough of Sutton,09/06/2016,4951601,545.60,Choice Support,22320,Peoples Services Directorate,Supported Living - Ext Provider,G306
http://statistics.data.gov.uk/id/local-authority/00BF,London Borough of Sutton,09/06/2016,4951601,"1,807.30",Choice Support,22320,Peoples Services Directorate,Supported Living - Ext Provider,G306
http://statistics.data.gov.uk/id/local-authority/00BF,London Borough of Sutton,09/06/2016,4951608,763.84,Choice Support,22320,Peoples Services Directorate,Supported Living - Ext Provider,G306
http://statistics.data.gov.uk/id/local-authority/00BF,London Borough of Sutton,09/06/2016,4951608,"6,236.89",Choice Support,22320,Peoples Services Directorate,Supported Living - Ext Provider,G306
http://statistics.data.gov.uk/id/local-authority/00BF,London Borough of Sutton,09/06/2016,4951609,"1,241.24",Choice Support,22320,Peoples Services Directorate,Supported Living - Ext Provider,G306
http://statistics.data.gov.uk/id/local-authority/00BF,London Borough of Sutton,09/06/2016,4951609,545.60,Choice Support,22320,Peoples Services Directorate,Supported Living - Ext Provider,G306
http://statistics.data.gov.uk/id/local-authority/00BF,London Borough of Sutton,09/06/2016,4951609,"1,677.72",Choice Support,22320,Peoples Services Directorate,Supported Living - Ext Provider,G306
http://statistics.data.gov.uk/id/local-authority/00BF,London Borough of Sutton,06/06/2016,1219383,487.60,Christchurch Fledgelings Pre-School,10896,Peoples Services Directorate,Non-Maintained Childrens' Nurseries - 2 Year Olds,G404
http://statistics.data.gov.uk/id/local-authority/00BF,London Borough of Sutton,06/06/2016,1219451,"7,948.20",Christchurch Fledgelings Pre-School,10896,Peoples Services Directorate,Non-Maintained Childrens' Nurseries - 3 Year Olds,G405
http://statistics.data.gov.uk/id/local-authority/00BF,London Borough of Sutton,29/02/2016,6884268,"4,805.00",CIPFA Business Limited,12335,Resources Directorate,Subscriptions - General,F450
http://statistics.data.gov.uk/id/local-authority/00BF,London Borough of Sutton,17/06/2016,6885697,"1,600.00",CIPFA Business Limited,12335,Resources Directorate,Fees - Consultants (Ad Hoc),F283
http://statistics.data.gov.uk/id/local-authority/00BF,London Borough of Sutton,01/06/2016,6884328,"120,239.50",Citizens Advice Bureau,10969,Chief Executive's Directorate,Provider Contract Payments,F470
http://statistics.data.gov.uk/id/local-authority/00BF,London Borough of Sutton,27/06/2016,6885750,"17,000.00",City Suburban Tree Surgeons,24817,"Environment, Housing & Regeneration Directorate",Surveys & Analysis,Y685
http://statistics.data.gov.uk/id/local-authority/00BF,London Borough of Sutton,01/04/2016,6883313,"25,826.00",Cityglen Ltd T/A Hytyme ltd,24115,"Environment, Housing & Regeneration Directorate",Bed and Breakfast Accommodation,G400
http://statistics.data.gov.uk/id/local-authority/00BF,London Borough of Sutton,01/05/2016,6883314,"26,978.00",Cityglen Ltd T/A Hytyme ltd,24115,"Environment, Housing & Regeneration Directorate",Bed and Breakfast Accommodation,G400
http://statistics.data.gov.uk/id/local-authority/00BF,London Borough of Sutton,01/06/2016,6884122,"1,085.00",Cityglen Ltd T/A Hytyme ltd,24115,Peoples Services Directorate,Approved Lodgings,H323
http://statistics.data.gov.uk/id/local-authority/00BF,London Borough of Sutton,26/05/2016,6883915,"8,100.00",Civica UK Ltd,10978,Resources Directorate,Equipment It,Y523
http://statistics.data.gov.uk/id/local-authority/00BF,London Borough of Sutton,17/05/2016,6884466,"15,000.00",Civica UK Ltd,10978,Non-Service Cost Centres Directorate,IT Licences,F385
http://statistics.data.gov.uk/id/local-authority/00BF,London Borough of Sutton,27/05/2016,6884475,"-7,500.00",Civica UK Ltd,10978,Non-Service Cost Centres Directorate,IT Licences,F385
http://statistics.data.gov.uk/id/local-authority/00BF,London Borough of Sutton,21/04/2016,6884903,900.00,Civica UK Ltd,10978,Resources Directorate,Equipment It,Y523
http://statistics.data.gov.uk/id/local-authority/00BF,London Borough of Sutton,17/06/2016,6885373,654.02,Civica UK Ltd,10978,Resources Directorate,Purchase of IT Equipment,F380
http://statistics.data.gov.uk/id/local-authority/00BF,London Borough of Sutton,01/06/2016,6884208,"1,350.00",CJS Plants,10997,Resources Directorate,Grounds Maintenance - DD,D860
http://statistics.data.gov.uk/id/local-authority/00BF,London Borough of Sutton,01/06/2016,6885078,"13,626.00",CJS Plants,10997,"Environment, Housing & Regeneration Directorate",Assistance to Voluntary Organisations,F471
http://statistics.data.gov.uk/id/local-authority/00BF,London Borough of Sutton,01/06/2016,6885079,"8,160.00",CJS Plants,10997,"Environment, Housing & Regeneration Directorate",Assistance to Voluntary Organisations,F471
http://statistics.data.gov.uk/id/local-authority/00BF,London Borough of Sutton,01/06/2016,6885080,"1,350.00",CJS Plants,10997,"Environment, Housing & Regeneration Directorate",Other-Materials,F115
http://statistics.data.gov.uk/id/local-authority/00BF,London Borough of Sutton,01/06/2016,6885081,"3,780.00",CJS Plants,10997,"Environment, Housing & Regeneration Directorate",Other-Materials,F115
http://statistics.data.gov.uk/id/local-authority/00BF,London Borough of Sutton,01/06/2016,6885082,"4,164.00",CJS Plants,10997,"Environment, Housing & Regeneration Directorate",Other-Materials,F115
http://statistics.data.gov.uk/id/local-authority/00BF,London Borough of Sutton,01/06/2016,6885083,"4,236.00",CJS Plants,10997,"Environment, Housing & Regeneration Directorate",Other-Materials,F115
http://statistics.data.gov.uk/id/local-authority/00BF,London Borough of Sutton,17/06/2016,4951939,"4,200.00",Claremont Care Svs Ltd,18724,Peoples Services Directorate,Nursing Care - Ext Provider,G311
http://statistics.data.gov.uk/id/local-authority/00BF,London Borough of Sutton,17/06/2016,4951956,"4,000.00",Claremont Care Svs Ltd,18724,Peoples Services Directorate,Nursing Care - Ext Provider,G311
http://statistics.data.gov.uk/id/local-authority/00BF,London Borough of Sutton,17/06/2016,4952062,"2,400.00",Claremont Care Svs Ltd,18724,Peoples Services Directorate,Interim Placements - Ext Provider,G317
http://statistics.data.gov.uk/id/local-authority/00BF,London Borough of Sutton,17/06/2016,4952079,"3,400.00",Claremont Care Svs Ltd,18724,Peoples Services Directorate,Nursing Care - Ext Provider,G311
http://statistics.data.gov.uk/id/local-authority/00BF,London Borough of Sutton,21/06/2016,6885506,440.49,Clear Channel Uk,20254,"Environment, Housing & Regeneration Directorate",Advertising/Publicity (non Staff),F240
http://statistics.data.gov.uk/id/local-authority/00BF,London Borough of Sutton,17/06/2016,4951740,"2,000.00",Cloyda Limited,20402,Peoples Services Directorate,Residential Care - Ext Provider,G310
http://statistics.data.gov.uk/id/local-authority/00BF,London Borough of Sutton,31/05/2016,4947050,"4,003.69",Cmg Homes Ltd,11026,Peoples Services Directorate,Supported Living - Ext Provider,G306
http://statistics.data.gov.uk/id/local-authority/00BF,London Borough of Sutton,31/05/2016,4947051,"4,592.43",Cmg Homes Ltd,11026,Peoples Services Directorate,Supported Living - Ext Provider,G306
http://statistics.data.gov.uk/id/local-authority/00BF,London Borough of Sutton,17/06/2016,4951963,"7,036.00",Cmg Homes Ltd,11026,Peoples Services Directorate,Residential Care - Ext Provider,G310
http://statistics.data.gov.uk/id/local-authority/00BF,London Borough of Sutton,17/06/2016,4952003,"5,416.92",Cmg Homes Ltd,11026,Peoples Services Directorate,Residential Care - Ext Provider,G310
http://statistics.data.gov.uk/id/local-authority/00BF,London Borough of Sutton,28/06/2016,4958177,"3,874.55",Cmg Homes Ltd,11026,Peoples Services Directorate,Supported Living - Ext Provider,G306
http://statistics.data.gov.uk/id/local-authority/00BF,London Borough of Sutton,28/06/2016,4958178,"9,036.71",Cmg Homes Ltd,11026,Peoples Services Directorate,Supported Living - Ext Provider,G306
http://statistics.data.gov.uk/id/local-authority/00BF,London Borough of Sutton,01/06/2016,6884310,"3,696.75",CNH Capital Europe Ltd,23033,"Environment, Housing & Regeneration Directorate",Hired Vehicles,E070
http://statistics.data.gov.uk/id/local-authority/00BF,London Borough of Sutton,06/06/2016,1219452,"10,486.30",Collingwood School,11094,Peoples Services Directorate,Non-Maintained Childrens' Nurseries - 3 Year Olds,G405
http://statistics.data.gov.uk/id/local-authority/00BF,London Borough of Sutton,01/06/2016,6883803,540.00,Comcir Radio Communications Ltd,22582,"Environment, Housing & Regeneration Directorate",Materials - General,F100
http://statistics.data.gov.uk/id/local-authority/00BF,London Borough of Sutton,01/03/2016,4947301,476.00,Community Home Care Provider,11097,Peoples Services Directorate,Home Care,G334
http://statistics.data.gov.uk/id/local-authority/00BF,London Borough of Sutton,28/06/2016,6885870,"2,250.00",Community Products (Uk) Ltd,11095,Peoples Services Directorate,Other Services,F340
http://statistics.data.gov.uk/id/local-authority/00BF,London Borough of Sutton,28/06/2016,6885870,618.00,Community Products (Uk) Ltd,11095,Peoples Services Directorate,Other Services,F340
http://statistics.data.gov.uk/id/local-authority/00BF,London Borough of Sutton,24/06/2016,6885719,"1,022.75",Connevans Limited,11046,Peoples Services Directorate,Administrative Equipment,F001
http://statistics.data.gov.uk/id/local-authority/00BF,London Borough of Sutton,23/06/2016,6885720,550.00,Connevans Limited,11046,Peoples Services Directorate,Administrative Equipment,F001
http://statistics.data.gov.uk/id/local-authority/00BF,London Borough of Sutton,06/06/2016,1219430,"2,926.80",Redacted,99338,Peoples Services Directorate,Non-Maintained Childrens' Nurseries - 2 Year Olds,G404
http://statistics.data.gov.uk/id/local-authority/00BF,London Borough of Sutton,09/06/2016,6885111,"1,515.95",Contract Security Services,23827,Chief Executive's Directorate,Security - Cash In Transit,G410
http://statistics.data.gov.uk/id/local-authority/00BF,London Borough of Sutton,06/06/2016,1219417,"3,869.20",Co-operative Childcare,24665,Peoples Services Directorate,Non-Maintained Childrens' Nurseries - 2 Year Olds,G404
http://statistics.data.gov.uk/id/local-authority/00BF,London Borough of Sutton,06/06/2016,1219493,"16,320.19",Co-operative Childcare,24665,Peoples Services Directorate,Non-Maintained Childrens' Nurseries - 3 Year Olds,G405
http://statistics.data.gov.uk/id/local-authority/00BF,London Borough of Sutton,28/08/2015,6884666,546.00,Core Assets Children's Services Ltd,27511,Peoples Services Directorate,Children Assessments,G329
http://statistics.data.gov.uk/id/local-authority/00BF,London Borough of Sutton,28/04/2015,6884669,481.00,Core Assets Children's Services Ltd,27511,Peoples Services Directorate,Children Assessments,G329
http://statistics.data.gov.uk/id/local-authority/00BF,London Borough of Sutton,28/05/2015,6885854,612.00,Core Assets Children's Services Ltd,27511,Peoples Services Directorate,Day Care,G337
http://statistics.data.gov.uk/id/local-authority/00BF,London Borough of Sutton,27/05/2016,6884043,"8,493.90",Corelogic Ltd,24747,Peoples Services Directorate,Fees - Computer Software,F384
http://statistics.data.gov.uk/id/local-authority/00BF,London Borough of Sutton,27/05/2016,6884044,"10,717.00",Corelogic Ltd,24747,Peoples Services Directorate,Fees - Computer Software,F384
http://statistics.data.gov.uk/id/local-authority/00BF,London Borough of Sutton,22/04/2016,6884326,"8,494.30",Corelogic Ltd,24747,Peoples Services Directorate,Fees - Computer Software,F384
http://statistics.data.gov.uk/id/local-authority/00BF,London Borough of Sutton,03/06/2016,6884577,"10,877.00",Corelogic Ltd,24747,Peoples Services Directorate,Fees - Computer Software,F384
http://statistics.data.gov.uk/id/local-authority/00BF,London Borough of Sutton,13/06/2016,1220349,"3,533.76",Cornerways Childrens Services Ltd,18435,Peoples Services Directorate,Independent Schools,G325
http://statistics.data.gov.uk/id/local-authority/00BF,London Borough of Sutton,31/03/2016,6880210,"23,220.31",Corporate Document Services Ltd,11098,Resources Directorate,Suspense/Holding Accounts,X550
http://statistics.data.gov.uk/id/local-authority/00BF,London Borough of Sutton,29/04/2016,6882675,"28,244.46",Corporate Document Services Ltd,11098,Resources Directorate,Suspense/Holding Accounts,X550
http://statistics.data.gov.uk/id/local-authority/00BF,London Borough of Sutton,31/05/2016,6883832,"2,017.50",Corporate Document Services Ltd,11098,"Environment, Housing & Regeneration Directorate",Advertising/Publicity (non Staff),F240
http://statistics.data.gov.uk/id/local-authority/00BF,London Borough of Sutton,30/09/2015,6884267,500.00,Corporate Document Services Ltd,11098,"Environment, Housing & Regeneration Directorate",Advertising/Publicity (non Staff),F240
http://statistics.data.gov.uk/id/local-authority/00BF,London Borough of Sutton,17/06/2016,4951925,"3,053.24",Cottisbraine House,11058,Peoples Services Directorate,Residential Care - Ext Provider,G310
http://statistics.data.gov.uk/id/local-authority/00BF,London Borough of Sutton,06/06/2016,6884278,"8,457.00",Craemer UK Ltd,23733,"Environment, Housing & Regeneration Directorate",Materials - General,F100
http://statistics.data.gov.uk/id/local-authority/00BF,London Borough of Sutton,17/06/2016,4951855,"1,735.71",Cranstoun,11184,Peoples Services Directorate,Interim Placements - Ext Provider,G317
http://statistics.data.gov.uk/id/local-authority/00BF,London Borough of Sutton,17/06/2016,4951870,"2,700.00",Cranstoun,11184,Peoples Services Directorate,Interim Placements - Ext Provider,G317
http://statistics.data.gov.uk/id/local-authority/00BF,London Borough of Sutton,17/06/2016,4951878,"1,832.14",Cranstoun,11184,Peoples Services Directorate,Interim Placements - Ext Provider,G317
http://statistics.data.gov.uk/id/local-authority/00BF,London Borough of Sutton,17/06/2016,4951881,"3,953.57",Cranstoun,11184,Peoples Services Directorate,Interim Placements - Ext Provider,G317
http://statistics.data.gov.uk/id/local-authority/00BF,London Borough of Sutton,17/06/2016,4951882,"2,700.00",Cranstoun,11184,Peoples Services Directorate,Interim Placements - Ext Provider,G317
http://statistics.data.gov.uk/id/local-authority/00BF,London Borough of Sutton,17/06/2016,4951890,"1,060.71",Cranstoun,11184,Peoples Services Directorate,Interim Placements - Ext Provider,G317
http://statistics.data.gov.uk/id/local-authority/00BF,London Borough of Sutton,01/06/2016,6884950,"166,565.17",Cranstoun,11184,Peoples Services Directorate,Provider Contract Payments,F470
http://statistics.data.gov.uk/id/local-authority/00BF,London Borough of Sutton,09/06/2016,6884851,819.50,Crelling Harnesses Ltd,18957,Peoples Services Directorate,Materials - General,F100
http://statistics.data.gov.uk/id/local-authority/00BF,London Borough of Sutton,23/11/2015,1219022,"18,017.67",Cressey Oasis Education Ltd,27626,Peoples Services Directorate,Independent Schools,G325
http://statistics.data.gov.uk/id/local-authority/00BF,London Borough of Sutton,20/06/2016,1220345,"3,969.54",Cressey Oasis Education Ltd,27626,Peoples Services Directorate,Independent Schools,G325
http://statistics.data.gov.uk/id/local-authority/00BF,London Borough of Sutton,20/06/2016,1220346,"3,307.95",Cressey Oasis Education Ltd,27626,Peoples Services Directorate,Independent Schools,G325
http://statistics.data.gov.uk/id/local-authority/00BF,London Borough of Sutton,01/06/2016,6884231,"11,944.00",Cromwood Ltd,26178,"Environment, Housing & Regeneration Directorate",Bed and Breakfast Accommodation,G400
http://statistics.data.gov.uk/id/local-authority/00BF,London Borough of Sutton,17/06/2016,4952043,"2,326.92",Crossways Community,11187,Peoples Services Directorate,Residential Care - Ext Provider,G310
http://statistics.data.gov.uk/id/local-authority/00BF,London Borough of Sutton,01/06/2016,6884250,950.00,Croydon Care Solutions Ltd,24776,Peoples Services Directorate,Equipment,H250
http://statistics.data.gov.uk/id/local-authority/00BF,London Borough of Sutton,30/06/2016,1220327,"1,832.14",Croydon Churches Housing Association,19583,"Environment, Housing & Regeneration Directorate",Supporting People - Older People Services,H244
http://statistics.data.gov.uk/id/local-authority/00BF,London Borough of Sutton,26/04/2016,6885435,"3,770.00",Croydon Churches Housing Association,19583,Peoples Services Directorate,Rent - General,D650
http://statistics.data.gov.uk/id/local-authority/00BF,London Borough of Sutton,13/05/2016,6883558,"237,124.00",Croydon Council,11227,Peoples Services Directorate,Equipment,H250
http://statistics.data.gov.uk/id/local-authority/00BF,London Borough of Sutton,13/05/2016,6883559,"278,000.00",Croydon Council,11227,Peoples Services Directorate,Equipment,H250
http://statistics.data.gov.uk/id/local-authority/00BF,London Borough of Sutton,01/06/2016,1219981,"11,241.72",Croydon Day Opportunities Ltd,24451,Peoples Services Directorate,Miscellaneous Training Courses,F304
http://statistics.data.gov.uk/id/local-authority/00BF,London Borough of Sutton,27/05/2016,6883869,"10,000.00",Croydon Savers Credit Union Ltd,23008,Resources Directorate,Agency Services,G431
http://statistics.data.gov.uk/id/local-authority/00BF,London Borough of Sutton,27/05/2016,1219177,"3,135.00",Cruisers Ltd,18087,Peoples Services Directorate,Hired Peoples Transport (Children),E072
http://statistics.data.gov.uk/id/local-authority/00BF,London Borough of Sutton,27/05/2016,6883939,"16,550.00",Crystal Palace Fc Foundation,11216,Peoples Services Directorate,Provider Contract Payments,F470
http://statistics.data.gov.uk/id/local-authority/00BF,London Borough of Sutton,17/06/2016,4951707,"8,926.00",CSS Ltd t/a Grove Care,19184,Peoples Services Directorate,Residential Care - Ext Provider,G310
http://statistics.data.gov.uk/id/local-authority/00BF,London Borough of Sutton,06/06/2016,1219384,"2,926.80",Culvers House Primary School,11252,Peoples Services Directorate,Non-Maintained Childrens' Nurseries - 2 Year Olds,G404
http://statistics.data.gov.uk/id/local-authority/00BF,London Borough of Sutton,28/04/2016,6881564,"18,351.12",Curl La Tourelle Architects,18610,"Environment, Housing & Regeneration Directorate",External Fees  - Architects,Y100
http://statistics.data.gov.uk/id/local-authority/00BF,London Borough of Sutton,19/05/2016,6883258,639.63,Curl La Tourelle Architects,18610,Resources Directorate,External Fees  - Architects,Y100
http://statistics.data.gov.uk/id/local-authority/00BF,London Borough of Sutton,26/05/2016,6883700,"7,285.26",Curl La Tourelle Architects,18610,Resources Directorate,External Fees  - Architects,Y100
http://statistics.data.gov.uk/id/local-authority/00BF,London Borough of Sutton,16/06/2016,6885095,806.25,Curl La Tourelle Architects,18610,"Environment, Housing & Regeneration Directorate",External Fees  - Architects,Y100
http://statistics.data.gov.uk/id/local-authority/00BF,London Borough of Sutton,16/06/2016,6885096,698.75,Curl La Tourelle Architects,18610,Resources Directorate,External Fees  - Architects,Y100
http://statistics.data.gov.uk/id/local-authority/00BF,London Borough of Sutton,31/05/2016,6884050,"8,335.65",Cygnet IT Services CIC,25840,Peoples Services Directorate,Equipment It,Y523
http://statistics.data.gov.uk/id/local-authority/00BF,London Borough of Sutton,26/05/2016,4950520,"10,911.91",Daley Bread Ltd T/A Daley Care,28917,Peoples Services Directorate,Approved Lodgings,H323
http://statistics.data.gov.uk/id/local-authority/00BF,London Borough of Sutton,26/05/2016,4950521,"5,959.92",Daley Bread Ltd T/A Daley Care,28917,Peoples Services Directorate,Accommodation - Supported Living,H201
http://statistics.data.gov.uk/id/local-authority/00BF,London Borough of Sutton,21/06/2016,6885371,650.00,Damien Kidd t/a The Tree Associates,28281,Peoples Services Directorate,"Trees, Plants and Shrubs",F101
http://statistics.data.gov.uk/id/local-authority/00BF,London Borough of Sutton,26/05/2016,6885114,"4,675.00",Datasource Partners Ltd,25391,Resources Directorate,Consultants/Hons,A310
http://statistics.data.gov.uk/id/local-authority/00BF,London Borough of Sutton,26/05/2016,6885115,"4,845.00",Datasource Partners Ltd,25391,Resources Directorate,Consultants/Hons,A310
http://statistics.data.gov.uk/id/local-authority/00BF,London Borough of Sutton,26/03/2016,6885116,"15,257.50",Datasource Partners Ltd,25391,Resources Directorate,Consultants/Hons,A310
http://statistics.data.gov.uk/id/local-authority/00BF,London Borough of Sutton,09/03/2016,6885117,"3,060.00",Datasource Partners Ltd,25391,Resources Directorate,Consultants/Hons,A310
http://statistics.data.gov.uk/id/local-authority/00BF,London Borough of Sutton,09/03/2016,6885118,"5,610.00",Datasource Partners Ltd,25391,Resources Directorate,Consultants/Hons,A310
http://statistics.data.gov.uk/id/local-authority/00BF,London Borough of Sutton,31/05/2016,6883827,900.00,Ddd Enterprises Ltd,28748,Peoples Services Directorate,Training - Course Fees,A520
http://statistics.data.gov.uk/id/local-authority/00BF,London Borough of Sutton,13/06/2016,6884697,"1,200.00",Ddd Enterprises Ltd,28748,Peoples Services Directorate,Training - Course Fees,A520
http://statistics.data.gov.uk/id/local-authority/00BF,London Borough of Sutton,25/06/2016,6885692,900.00,Ddd Enterprises Ltd,28748,Peoples Services Directorate,Training - Course Fees,A520
http://statistics.data.gov.uk/id/local-authority/00BF,London Borough of Sutton,04/04/2016,6884012,555.50,Deborah Klee Consultancy Ltd,25029,Peoples Services Directorate,Consultants/Hons,A310
http://statistics.data.gov.uk/id/local-authority/00BF,London Borough of Sutton,01/06/2016,6884162,"2,611.00",Deborah Klee Consultancy Ltd,25029,Peoples Services Directorate,Contractual Consultant Fees,G430
http://statistics.data.gov.uk/id/local-authority/00BF,London Borough of Sutton,31/05/2016,6884306,449.22,Deepstore Ltd,21074,Resources Directorate,Offsite Storage,F231
http://statistics.data.gov.uk/id/local-authority/00BF,London Borough of Sutton,31/05/2016,6884331,594.96,Deepstore Ltd,21074,Resources Directorate,Offsite Storage,F231
http://statistics.data.gov.uk/id/local-authority/00BF,London Borough of Sutton,31/05/2016,6884333,425.87,Deepstore Ltd,21074,Resources Directorate,Offsite Storage,F231
http://statistics.data.gov.uk/id/local-authority/00BF,London Borough of Sutton,15/05/2016,6883800,"5,400.00",Delta T Management Ltd,25790,"Environment, Housing & Regeneration Directorate",External Fees  - Other,Y130
http://statistics.data.gov.uk/id/local-authority/00BF,London Borough of Sutton,24/05/2016,6883602,439.35,Dennis Eagle,11416,"Environment, Housing & Regeneration Directorate",Materials - General,F100
http://statistics.data.gov.uk/id/local-authority/00BF,London Borough of Sutton,24/05/2016,6883663,"8,247.47",Dennis Eagle,11416,"Environment, Housing & Regeneration Directorate",Labour,E010
http://statistics.data.gov.uk/id/local-authority/00BF,London Borough of Sutton,26/05/2016,6883710,632.83,Dennis Eagle,11416,"Environment, Housing & Regeneration Directorate",Materials - General,F100
http://statistics.data.gov.uk/id/local-authority/00BF,London Borough of Sutton,01/06/2016,6885421,"1,250.00",Development Connections & Associates Ltd,26224,Peoples Services Directorate,Training - Course Fees,A520
http://statistics.data.gov.uk/id/local-authority/00BF,London Borough of Sutton,28/06/2016,6885878,"1,000.00",Development Connections & Associates Ltd,26224,Peoples Services Directorate,Training - Course Fees,A520
http://statistics.data.gov.uk/id/local-authority/00BF,London Borough of Sutton,26/05/2016,6884085,"3,111.00",Devin Consulting Ltd,23749,Peoples Services Directorate,External Fees  - Other,Y130
http://statistics.data.gov.uk/id/local-authority/00BF,London Borough of Sutton,01/06/2016,4950534,"24,645.00",Devon County Council,11301,Peoples Services Directorate,Secure Accommodation,G332
http://statistics.data.gov.uk/id/local-authority/00BF,London Borough of Sutton,31/05/2016,6884583,"6,400.00",Devoteam UK Ltd,24057,Chief Executive's Directorate,Fees - Computer Software,F384
http://statistics.data.gov.uk/id/local-authority/00BF,London Borough of Sutton,23/04/2016,6885395,430.00,Dewberry Redpoint Ltd,11314,Peoples Services Directorate,Training - Course Fees,A520
http://statistics.data.gov.uk/id/local-authority/00BF,London Borough of Sutton,03/06/2016,4951506,"2,356.31",Direct Care And Support Services,23268,Peoples Services Directorate,Supported Living - Ext Provider,G306
http://statistics.data.gov.uk/id/local-authority/00BF,London Borough of Sutton,03/06/2016,4951521,"2,497.98",Direct Care And Support Services,23268,Peoples Services Directorate,Supported Living - Ext Provider,G306
http://statistics.data.gov.uk/id/local-authority/00BF,London Borough of Sutton,03/06/2016,4951532,"2,343.60",Direct Care And Support Services,23268,Peoples Services Directorate,Supported Living - Ext Provider,G306
http://statistics.data.gov.uk/id/local-authority/00BF,London Borough of Sutton,03/06/2016,4951617,"3,496.00",Direct Care And Support Services,23268,Peoples Services Directorate,Supported Living - Ext Provider,G306
http://statistics.data.gov.uk/id/local-authority/00BF,London Borough of Sutton,20/06/2016,6885515,"10,657.92",Direct Care And Support Services,23268,Peoples Services Directorate,Supported Living - Ext Provider,G306
http://statistics.data.gov.uk/id/local-authority/00BF,London Borough of Sutton,31/05/2016,6885147,"9,657.00",Disclosure & Barring Service (DBS),11206,Resources Directorate,DBS Checks,A506
http://statistics.data.gov.uk/id/local-authority/00BF,London Borough of Sutton,31/05/2016,6885147,"9,657.00",Disclosure & Barring Service (DBS),11206,Resources Directorate,DBS Checks,A506
http://statistics.data.gov.uk/id/local-authority/00BF,London Borough of Sutton,29/04/2016,6885920,"5,027.50",DMA Signs Limited,20534,"Environment, Housing & Regeneration Directorate",Building Works -Main Contractor,Y350
http://statistics.data.gov.uk/id/local-authority/00BF,London Borough of Sutton,22/06/2016,6885432,525.00,Dod's Parliamentary Communications Ltd,17904,Peoples Services Directorate,Training - Course Fees,A520
http://statistics.data.gov.uk/id/local-authority/00BF,London Borough of Sutton,06/06/2016,1219385,"1,951.40",Dolphin Day Nursery,11373,Peoples Services Directorate,Non-Maintained Childrens' Nurseries - 2 Year Olds,G404
http://statistics.data.gov.uk/id/local-authority/00BF,London Borough of Sutton,06/06/2016,1219453,"4,828.20",Dolphin Day Nursery,11373,Peoples Services Directorate,Non-Maintained Childrens' Nurseries - 3 Year Olds,G405
http://statistics.data.gov.uk/id/local-authority/00BF,London Borough of Sutton,17/03/2016,6884587,660.00,Dr  Kangalingam Sugumar,25742,Peoples Services Directorate,Provider Contract Payments,F470
http://statistics.data.gov.uk/id/local-authority/00BF,London Borough of Sutton,12/04/2016,6880504,570.00,Dr Danielle Shbero,28728,Peoples Services Directorate,Personal Requisites,F106
http://statistics.data.gov.uk/id/local-authority/00BF,London Borough of Sutton,01/05/2016,6882131,475.00,Dr Danielle Shbero,28728,Peoples Services Directorate,Personal Requisites,F106
http://statistics.data.gov.uk/id/local-authority/00BF,London Borough of Sutton,09/05/2016,6882305,475.00,Dr Lucy Vento,26184,Peoples Services Directorate,Personal Requisites,F106
http://statistics.data.gov.uk/id/local-authority/00BF,London Borough of Sutton,01/04/2016,6884276,"1,520.00",Dr R Seyan & Dr A Saffar & Dr M Rodin,25745,Peoples Services Directorate,Provider Contract Payments,F470
http://statistics.data.gov.uk/id/local-authority/00BF,London Borough of Sutton,19/05/2016,6883298,"22,170.50",Dr Rajashekar Krishnaiah,25754,Peoples Services Directorate,Fees - Other,F299
http://statistics.data.gov.uk/id/local-authority/00BF,London Borough of Sutton,31/03/2016,6884675,"1,400.00",Dr S Grice & Partners,25737,Peoples Services Directorate,Provider Contract Payments,F470
http://statistics.data.gov.uk/id/local-authority/00BF,London Borough of Sutton,21/06/2016,6885486,"2,500.00",Drury & Cole,99898,"Environment, Housing & Regeneration Directorate",Depositors,X460
http://statistics.data.gov.uk/id/local-authority/00BF,London Borough of Sutton,20/05/2016,6883340,"1,925.93",DSI Billing Services Ltd,17962,Resources Directorate,Postages - General,F350
http://statistics.data.gov.uk/id/local-authority/00BF,London Borough of Sutton,25/05/2016,6883666,"1,628.33",DSI Billing Services Ltd,17962,Resources Directorate,Postages - General,F350
http://statistics.data.gov.uk/id/local-authority/00BF,London Borough of Sutton,03/06/2016,6884323,"1,000.18",DSI Billing Services Ltd,17962,Resources Directorate,Postages - General,F350
http://statistics.data.gov.uk/id/local-authority/00BF,London Borough of Sutton,09/06/2016,6884850,851.75,DSI Billing Services Ltd,17962,Resources Directorate,Postages - General,F350
http://statistics.data.gov.uk/id/local-authority/00BF,London Borough of Sutton,16/06/2016,6885123,"1,393.60",DSI Billing Services Ltd,17962,Resources Directorate,Postages - General,F350
http://statistics.data.gov.uk/id/local-authority/00BF,London Borough of Sutton,17/06/2016,4951661,"2,444.00",Dulwich Care Centre,28383,Peoples Services Directorate,Nursing Care - Ext Provider,G311
http://statistics.data.gov.uk/id/local-authority/00BF,London Borough of Sutton,16/05/2016,6884216,"2,500.00",Dunfield & Mead Ltd,28055,Peoples Services Directorate,Approved Lodgings,H323
http://statistics.data.gov.uk/id/local-authority/00BF,London Borough of Sutton,08/02/2016,4951620,"2,711.17",Dunheved Lodge,11403,Peoples Services Directorate,One to One Care,G335
http://statistics.data.gov.uk/id/local-authority/00BF,London Borough of Sutton,08/02/2016,4951622,"2,840.53",Dunheved Lodge,11403,Peoples Services Directorate,One to One Care,G335
http://statistics.data.gov.uk/id/local-authority/00BF,London Borough of Sutton,17/06/2016,4952001,"2,999.92",Dunheved Lodge,11403,Peoples Services Directorate,Residential Care - Ext Provider,G310
http://statistics.data.gov.uk/id/local-authority/00BF,London Borough of Sutton,20/04/2016,6885821,"2,899.82",Dunheved Lodge,11403,Peoples Services Directorate,One to One Care,G335
http://statistics.data.gov.uk/id/local-authority/00BF,London Borough of Sutton,03/03/2016,6885822,"2,576.42",Dunheved Lodge,11403,Peoples Services Directorate,One to One Care,G335
http://statistics.data.gov.uk/id/local-authority/00BF,London Borough of Sutton,24/05/2016,6883508,850.00,E & S Training & Consultancy,26106,Peoples Services Directorate,Training - Course Fees,A520
http://statistics.data.gov.uk/id/local-authority/00BF,London Borough of Sutton,17/06/2016,4951653,"3,300.00",Eastcroft Nursing Home,11420,Peoples Services Directorate,Nursing Care - Ext Provider,G311
http://statistics.data.gov.uk/id/local-authority/00BF,London Borough of Sutton,31/05/2016,6883842,"5,726.75",EcoLocal,10872,Peoples Services Directorate,Provider Contract Payments,F470
http://statistics.data.gov.uk/id/local-authority/00BF,London Borough of Sutton,21/06/2016,6885341,"10,000.00",EcoLocal,10872,"Environment, Housing & Regeneration Directorate",Materials - General,F100
http://statistics.data.gov.uk/id/local-authority/00BF,London Borough of Sutton,08/06/2016,6884470,646.25,Ecolocal Services Ltd,11438,Resources Directorate,Courier Post,F355
http://statistics.data.gov.uk/id/local-authority/00BF,London Borough of Sutton,21/06/2016,6885309,660.00,Ede's (UK) Ltd,16609,Peoples Services Directorate,Other Services,F340
http://statistics.data.gov.uk/id/local-authority/00BF,London Borough of Sutton,23/06/2016,6885609,"9,878.76",Ede's (UK) Ltd,16609,Peoples Services Directorate,Building Works-Sub Contractor,Y360
http://statistics.data.gov.uk/id/local-authority/00BF,London Borough of Sutton,26/05/2016,6885935,"1,400.00",Ede's (UK) Ltd,16609,Peoples Services Directorate,"Bulk Refuse Containers, Paladin Bins and Refuse Ch",D810
http://statistics.data.gov.uk/id/local-authority/00BF,London Borough of Sutton,29/04/2016,6882682,"1,581.13",EDF Energy (Seeboard),13999,Peoples Services Directorate,Gas - General,D610
http://statistics.data.gov.uk/id/local-authority/00BF,London Borough of Sutton,11/05/2016,6884428,-425.56,EDF Energy (Seeboard),13999,HRA Directorate,Electricity - Anti Hypothermia Heating,D622
http://statistics.data.gov.uk/id/local-authority/00BF,London Borough of Sutton,18/05/2016,6884439,518.96,EDF Energy (Seeboard),13999,HRA Directorate,Electricity - Anti Hypothermia Heating,D622
http://statistics.data.gov.uk/id/local-authority/00BF,London Borough of Sutton,06/05/2016,6885181,"1,240.56",EDF Energy (Seeboard),13999,HRA Directorate,Electricity - Anti Hypothermia Heating,D622
http://statistics.data.gov.uk/id/local-authority/00BF,London Borough of Sutton,03/06/2016,6885182,427.80,EDF Energy (Seeboard),13999,HRA Directorate,Electricity - Anti Hypothermia Heating,D622
http://statistics.data.gov.uk/id/local-authority/00BF,London Borough of Sutton,10/06/2016,6885183,840.36,EDF Energy (Seeboard),13999,HRA Directorate,Electricity - Anti Hypothermia Heating,D622
http://statistics.data.gov.uk/id/local-authority/00BF,London Borough of Sutton,10/06/2016,6885183,-427.30,EDF Energy (Seeboard),13999,HRA Directorate,Electricity - Anti Hypothermia Heating,D622
http://statistics.data.gov.uk/id/local-authority/00BF,London Borough of Sutton,03/06/2016,6885194,478.40,EDF Energy (Seeboard),13999,HRA Directorate,Electricity - Anti Hypothermia Heating,D622
http://statistics.data.gov.uk/id/local-authority/00BF,London Borough of Sutton,03/06/2016,6885198,720.33,EDF Energy (Seeboard),13999,HRA Directorate,Electricity - Anti Hypothermia Heating,D622
http://statistics.data.gov.uk/id/local-authority/00BF,London Borough of Sutton,25/05/2016,1219018,950.00,Educational Excellence & Wellbeing Ltd,28404,Peoples Services Directorate,Independent Schools,G325
http://statistics.data.gov.uk/id/local-authority/00BF,London Borough of Sutton,30/04/2016,6884361,"4,000.00",Eldercare,22163,Peoples Services Directorate,Agency Services,G431
http://statistics.data.gov.uk/id/local-authority/00BF,London Borough of Sutton,31/05/2016,6885711,"4,000.00",Eldercare,22163,Peoples Services Directorate,Agency Services,G431
http://statistics.data.gov.uk/id/local-authority/00BF,London Borough of Sutton,17/06/2016,4951691,"4,484.80",Eleanor Nursing & Social Care Ltd,25134,Peoples Services Directorate,Residential Care - Ext Provider,G310
http://statistics.data.gov.uk/id/local-authority/00BF,London Borough of Sutton,01/05/2016,4948137,441.00,Elite CarePlus Ltd,26199,Peoples Services Directorate,Home Care,G334
http://statistics.data.gov.uk/id/local-authority/00BF,London Borough of Sutton,01/05/2016,4948138,539.00,Elite CarePlus Ltd,26199,Peoples Services Directorate,Home Care,G334
http://statistics.data.gov.uk/id/local-authority/00BF,London Borough of Sutton,15/05/2016,4949771,539.00,Elite CarePlus Ltd,26199,Peoples Services Directorate,Home Care,G334
http://statistics.data.gov.uk/id/local-authority/00BF,London Borough of Sutton,22/05/2016,4949772,539.00,Elite CarePlus Ltd,26199,Peoples Services Directorate,Home Care,G334
http://statistics.data.gov.uk/id/local-authority/00BF,London Borough of Sutton,31/05/2016,6884296,"1,782.48",Elizabethan Security,22830,"Environment, Housing & Regeneration Directorate",Special,D535
http://statistics.data.gov.uk/id/local-authority/00BF,London Borough of Sutton,31/05/2016,6884296,"1,782.48",Elizabethan Security,22830,"Environment, Housing & Regeneration Directorate",Special,D535
http://statistics.data.gov.uk/id/local-authority/00BF,London Borough of Sutton,06/06/2016,1219454,"3,067.16",Elm Grove Pre-School,11474,Peoples Services Directorate,Non-Maintained Childrens' Nurseries - 3 Year Olds,G405
http://statistics.data.gov.uk/id/local-authority/00BF,London Borough of Sutton,10/02/2016,6884861,560.00,Elmtree Press Ltd,25138,"Environment, Housing & Regeneration Directorate",Advertising/Publicity (non Staff),F240
http://statistics.data.gov.uk/id/local-authority/00BF,London Borough of Sutton,06/06/2016,1219386,975.20,Elmwood Nursery,21238,Peoples Services Directorate,Non-Maintained Childrens' Nurseries - 2 Year Olds,G404
http://statistics.data.gov.uk/id/local-authority/00BF,London Borough of Sutton,06/06/2016,1219455,"5,344.80",Elmwood Nursery,21238,Peoples Services Directorate,Non-Maintained Childrens' Nurseries - 3 Year Olds,G405
http://statistics.data.gov.uk/id/local-authority/00BF,London Borough of Sutton,31/05/2016,6884424,"2,550.00",Emma James,28802,Peoples Services Directorate,Contractual Consultant Fees,G430
http://statistics.data.gov.uk/id/local-authority/00BF,London Borough of Sutton,12/02/2016,6884989,750.00,Emmaus Teaching School Alliance,28722,Peoples Services Directorate,Contractual Consultant Fees,G430
http://statistics.data.gov.uk/id/local-authority/00BF,London Borough of Sutton,12/02/2016,6884990,"2,500.00",Emmaus Teaching School Alliance,28722,Peoples Services Directorate,Contractual Consultant Fees,G430
http://statistics.data.gov.uk/id/local-authority/00BF,London Borough of Sutton,27/04/2016,6881514,"49,404.26",Energy Saving Trust,23828,"Environment, Housing & Regeneration Directorate",Other Long Term Debtors,X150
http://statistics.data.gov.uk/id/local-authority/00BF,London Borough of Sutton,29/04/2016,6884351,"11,000.00",Enviro Technology Services PLC,23455,"Environment, Housing & Regeneration Directorate",Operational Equipment - Environmental Health,F011
http://statistics.data.gov.uk/id/local-authority/00BF,London Borough of Sutton,30/03/2016,4948519,872.16,Enviva Paediatric Care/formerlyPNL Nursing Link Ltd (Pnl),28212,Peoples Services Directorate,Provider Contract Payments,F470
http://statistics.data.gov.uk/id/local-authority/00BF,London Borough of Sutton,18/05/2016,4948571,654.12,Enviva Paediatric Care/formerlyPNL Nursing Link Ltd (Pnl),28212,Peoples Services Directorate,Provider Contract Payments,F470
http://statistics.data.gov.uk/id/local-authority/00BF,London Borough of Sutton,25/05/2016,4952211,908.50,Enviva Paediatric Care/formerlyPNL Nursing Link Ltd (Pnl),28212,Peoples Services Directorate,Provider Contract Payments,F470
http://statistics.data.gov.uk/id/local-authority/00BF,London Borough of Sutton,01/06/2016,4952215,581.44,Enviva Paediatric Care/formerlyPNL Nursing Link Ltd (Pnl),28212,Peoples Services Directorate,Provider Contract Payments,F470
http://statistics.data.gov.uk/id/local-authority/00BF,London Borough of Sutton,09/06/2016,4952235,654.12,Enviva Paediatric Care/formerlyPNL Nursing Link Ltd (Pnl),28212,Peoples Services Directorate,Provider Contract Payments,F470
http://statistics.data.gov.uk/id/local-authority/00BF,London Borough of Sutton,05/04/2016,6885817,"1,126.54",Enviva Paediatric Care/formerlyPNL Nursing Link Ltd (Pnl),28212,Peoples Services Directorate,Day Care,G337
http://statistics.data.gov.uk/id/local-authority/00BF,London Borough of Sutton,15/04/2016,6885818,"1,907.85",Enviva Paediatric Care/formerlyPNL Nursing Link Ltd (Pnl),28212,Peoples Services Directorate,Day Care,G337
http://statistics.data.gov.uk/id/local-authority/00BF,London Borough of Sutton,09/06/2016,6885819,"1,526.28",Enviva Paediatric Care/formerlyPNL Nursing Link Ltd (Pnl),28212,Peoples Services Directorate,Day Care,G337
http://statistics.data.gov.uk/id/local-authority/00BF,London Borough of Sutton,01/06/2016,6885857,499.68,Enviva Paediatric Care/formerlyPNL Nursing Link Ltd (Pnl),28212,Peoples Services Directorate,Day Care,G337
http://statistics.data.gov.uk/id/local-authority/00BF,London Borough of Sutton,17/06/2016,4951860,"1,525.71",Eothen Homes Ltd,11539,Peoples Services Directorate,Interim Placements - Ext Provider,G317
http://statistics.data.gov.uk/id/local-authority/00BF,London Borough of Sutton,17/06/2016,4951969,"1,724.16",Eothen Homes Ltd,11539,Peoples Services Directorate,Residential Care - Ext Provider,G310
http://statistics.data.gov.uk/id/local-authority/00BF,London Borough of Sutton,17/06/2016,4952031,"1,724.16",Eothen Homes Ltd,11539,Peoples Services Directorate,Interim Placements - Ext Provider,G317
http://statistics.data.gov.uk/id/local-authority/00BF,London Borough of Sutton,17/06/2016,4952050,"2,948.00",Eothen Homes Ltd,11539,Peoples Services Directorate,Residential Care - Ext Provider,G310
http://statistics.data.gov.uk/id/local-authority/00BF,London Borough of Sutton,04/04/2016,6885436,"99,400.00",Epsom & Ewell Borough Council,11540,"Environment, Housing & Regeneration Directorate",Nonsuch Management Committee,G127
http://statistics.data.gov.uk/id/local-authority/00BF,London Borough of Sutton,06/06/2016,1219425,975.60,Epsom & St Helier Nhs Trust,11542,Peoples Services Directorate,Non-Maintained Childrens' Nurseries - 2 Year Olds,G404
http://statistics.data.gov.uk/id/local-authority/00BF,London Borough of Sutton,06/06/2016,1219426,975.20,Epsom & St Helier Nhs Trust,11542,Peoples Services Directorate,Non-Maintained Childrens' Nurseries - 2 Year Olds,G404
http://statistics.data.gov.uk/id/local-authority/00BF,London Borough of Sutton,06/06/2016,1219501,"24,633.08",Epsom & St Helier Nhs Trust,11542,Peoples Services Directorate,Non-Maintained Childrens' Nurseries - 3 Year Olds,G405
http://statistics.data.gov.uk/id/local-authority/00BF,London Borough of Sutton,06/06/2016,1219502,"10,307.12",Epsom & St Helier Nhs Trust,11542,Peoples Services Directorate,Non-Maintained Childrens' Nurseries - 3 Year Olds,G405
http://statistics.data.gov.uk/id/local-authority/00BF,London Borough of Sutton,26/05/2016,6884240,"2,250.00",Equinox Care,11546,Peoples Services Directorate,Provider Contract Payments,F470
http://statistics.data.gov.uk/id/local-authority/00BF,London Borough of Sutton,26/05/2016,6884241,"2,700.00",Equinox Care,11546,Peoples Services Directorate,Provider Contract Payments,F470
http://statistics.data.gov.uk/id/local-authority/00BF,London Borough of Sutton,26/05/2016,6884242,"2,025.00",Equinox Care,11546,Peoples Services Directorate,Provider Contract Payments,F470
http://statistics.data.gov.uk/id/local-authority/00BF,London Borough of Sutton,04/05/2016,6884027,620.77,Ernest Doe & Sons Ltd,11372,"Environment, Housing & Regeneration Directorate",Materials - General,F100
http://statistics.data.gov.uk/id/local-authority/00BF,London Borough of Sutton,14/06/2016,6884929,"1,706.63",Ernest Doe & Sons Ltd,11372,"Environment, Housing & Regeneration Directorate",Operational Equipment - Environmental Health,F011
http://statistics.data.gov.uk/id/local-authority/00BF,London Borough of Sutton,24/05/2016,6884487,"108,299.02",F M Conway Limited,97060,"Environment, Housing & Regeneration Directorate",Roads & Sewers Etc-Main Contract,Y300
http://statistics.data.gov.uk/id/local-authority/00BF,London Borough of Sutton,31/05/2016,6885150,"1,339.50",F M Conway Limited,97060,"Environment, Housing & Regeneration Directorate",Traffic Management - Special Works,D590
http://statistics.data.gov.uk/id/local-authority/00BF,London Borough of Sutton,10/06/2016,6885252,"18,492.79",F M Conway Limited,97060,"Environment, Housing & Regeneration Directorate",Roads & Sewers Etc-Main Contract,Y300
http://statistics.data.gov.uk/id/local-authority/00BF,London Borough of Sutton,06/06/2016,1219387,"8,584.88",Fairlands Pre-School,11598,Peoples Services Directorate,Non-Maintained Childrens' Nurseries - 2 Year Olds,G404
http://statistics.data.gov.uk/id/local-authority/00BF,London Borough of Sutton,06/06/2016,1219456,"7,202.16",Fairlands Pre-School,11598,Peoples Services Directorate,Non-Maintained Childrens' Nurseries - 3 Year Olds,G405
http://statistics.data.gov.uk/id/local-authority/00BF,London Borough of Sutton,10/05/2016,6883853,"13,234.50",Faithorn Farrell Timms Llp,27878,Peoples Services Directorate,External Fees  - Architects,Y100
http://statistics.data.gov.uk/id/local-authority/00BF,London Borough of Sutton,06/06/2016,1219431,487.60,Hayleigh Jelley,25638,Peoples Services Directorate,Non-Maintained Childrens' Nurseries - 2 Year Olds,G404
http://statistics.data.gov.uk/id/local-authority/00BF,London Borough of Sutton,11/04/2016,6885222,"5,350.00",Falconbury Ltd,28981,Resources Directorate,Training - Course Fees,A520
http://statistics.data.gov.uk/id/local-authority/00BF,London Borough of Sutton,31/05/2016,4950538,"5,757.14",Family First Fostering,27926,Peoples Services Directorate,Foster Parents,G326
http://statistics.data.gov.uk/id/local-authority/00BF,London Borough of Sutton,30/06/2016,1220328,"25,916.67",Family Mosaic Housing,21012,"Environment, Housing & Regeneration Directorate",Supporting People - Mental Health Services,H243
http://statistics.data.gov.uk/id/local-authority/00BF,London Borough of Sutton,30/06/2016,1220329,"18,833.33",Family Mosaic Housing,21012,"Environment, Housing & Regeneration Directorate",Supporting People - Generic Services,H241
http://statistics.data.gov.uk/id/local-authority/00BF,London Borough of Sutton,17/06/2016,4951658,"3,400.00",Family Star Ltd,19653,Peoples Services Directorate,Nursing Care - Ext Provider,G311
http://statistics.data.gov.uk/id/local-authority/00BF,London Borough of Sutton,17/05/2016,6883125,"1,800.00",Femaile Fireworks LTD,99863,Peoples Services Directorate,Fees - Consultants (Ad Hoc),F283
http://statistics.data.gov.uk/id/local-authority/00BF,London Borough of Sutton,20/05/2016,6884630,"12,280.00",FFT Education Ltd,20736,Peoples Services Directorate,Materials - General,F100
http://statistics.data.gov.uk/id/local-authority/00BF,London Borough of Sutton,11/06/2016,6884691,600.00,Financial Data Management PLC,28773,Resources Directorate,Stationery,F220
http://statistics.data.gov.uk/id/local-authority/00BF,London Borough of Sutton,06/06/2016,6884312,559.99,Findel Education Ltd,11665,Peoples Services Directorate,Materials - General,F100
http://statistics.data.gov.uk/id/local-authority/00BF,London Borough of Sutton,17/06/2016,4951857,"1,475.00",Fircroft Homes,11660,Peoples Services Directorate,Residential Care - Ext Provider,G310
http://statistics.data.gov.uk/id/local-authority/00BF,London Borough of Sutton,17/06/2016,4951972,"3,438.00",Fircroft Homes,11660,Peoples Services Directorate,Residential Care - Ext Provider,G310
http://statistics.data.gov.uk/id/local-authority/00BF,London Borough of Sutton,06/06/2016,1219388,"4,227.20",First Little Steps Pre-school,28656,Peoples Services Directorate,Non-Maintained Childrens' Nurseries - 2 Year Olds,G404
http://statistics.data.gov.uk/id/local-authority/00BF,London Borough of Sutton,06/06/2016,1219457,"5,735.40",First Little Steps Pre-school,28656,Peoples Services Directorate,Non-Maintained Childrens' Nurseries - 3 Year Olds,G405
http://statistics.data.gov.uk/id/local-authority/00BF,London Borough of Sutton,17/06/2016,4951845,"2,600.00",Firtree House Nursing Home,11653,Peoples Services Directorate,Nursing Care - Ext Provider,G311
http://statistics.data.gov.uk/id/local-authority/00BF,London Borough of Sutton,17/06/2016,4951885,"3,729.43",Firtree House Nursing Home,11653,Peoples Services Directorate,Nursing Care - Short Term Placements,G328
http://statistics.data.gov.uk/id/local-authority/00BF,London Borough of Sutton,17/06/2016,4952081,"2,439.56",Firtree House Nursing Home,11653,Peoples Services Directorate,Nursing Care - Ext Provider,G311
http://statistics.data.gov.uk/id/local-authority/00BF,London Borough of Sutton,01/05/2016,4948261,"1,224.28",Fitzroy,11657,Peoples Services Directorate,Day Care,G337
http://statistics.data.gov.uk/id/local-authority/00BF,London Borough of Sutton,17/06/2016,4951710,"3,758.08",Fitzroy,11657,Peoples Services Directorate,Residential Care - Ext Provider,G310
http://statistics.data.gov.uk/id/local-authority/00BF,London Borough of Sutton,01/05/2016,6882591,575.87,Forest of Dean Gymnastics and Fitness,99863,Peoples Services Directorate,Personal Requisites,F106
http://statistics.data.gov.uk/id/local-authority/00BF,London Borough of Sutton,08/06/2016,6884502,"1,956.00",Foster Refrigerator (Uk) Ltd,11720,Peoples Services Directorate,Other Equipment - Purchase,F015
http://statistics.data.gov.uk/id/local-authority/00BF,London Borough of Sutton,17/06/2016,4951749,"1,780.00",Foxley Lodge,16555,Peoples Services Directorate,Residential Care - Ext Provider,G310
http://statistics.data.gov.uk/id/local-authority/00BF,London Borough of Sutton,09/06/2016,6885163,"1,327.50",Fresh Acres Nurseries Ltd,23698,"Environment, Housing & Regeneration Directorate","Trees, Plants and Shrubs",F101
http://statistics.data.gov.uk/id/local-authority/00BF,London Borough of Sutton,26/05/2016,4950539,"5,757.14",Freshstart Care Solutions,28855,Peoples Services Directorate,Approved Lodgings,H323
http://statistics.data.gov.uk/id/local-authority/00BF,London Borough of Sutton,17/06/2016,4951900,"1,840.00",Friends Of The Elderly,11766,Peoples Services Directorate,Residential Care - Ext Provider,G310
http://statistics.data.gov.uk/id/local-authority/00BF,London Borough of Sutton,17/06/2016,4951933,"1,692.00",Friends Of The Elderly,11766,Peoples Services Directorate,Residential Care - Ext Provider,G310
http://statistics.data.gov.uk/id/local-authority/00BF,London Borough of Sutton,17/06/2016,4952014,"1,674.20",Friends Of The Elderly,11766,Peoples Services Directorate,Residential Care - Ext Provider,G310
http://statistics.data.gov.uk/id/local-authority/00BF,London Borough of Sutton,17/06/2016,4952044,"1,660.00",Friends Of The Elderly,11766,Peoples Services Directorate,Residential Care - Ext Provider,G310
http://statistics.data.gov.uk/id/local-authority/00BF,London Borough of Sutton,17/06/2016,4952076,"1,692.00",Friends Of The Elderly,11766,Peoples Services Directorate,Residential Care - Ext Provider,G310
http://statistics.data.gov.uk/id/local-authority/00BF,London Borough of Sutton,16/05/2016,4948213,"5,723.20",Frontier Support Services,28792,Peoples Services Directorate,Supported Living - Ext Provider,G306
http://statistics.data.gov.uk/id/local-authority/00BF,London Borough of Sutton,23/05/2016,6883473,617.40,Redacted,99827,Resources Directorate,Debtors Control Account - General Debts,X220
http://statistics.data.gov.uk/id/local-authority/00BF,London Borough of Sutton,01/05/2016,6884919,"24,989.40",G Burley & Sons Ltd,10701,"Environment, Housing & Regeneration Directorate",Grass Verges - Maintenance,D561
http://statistics.data.gov.uk/id/local-authority/00BF,London Borough of Sutton,17/06/2016,4951750,"2,294.12",Gable Lodge,11789,Peoples Services Directorate,Nursing Care - Ext Provider,G311
http://statistics.data.gov.uk/id/local-authority/00BF,London Borough of Sutton,17/06/2016,4951907,"3,000.00",Galleon Care Homes Ltd,23693,Peoples Services Directorate,Nursing Care - Ext Provider,G311
http://statistics.data.gov.uk/id/local-authority/00BF,London Borough of Sutton,06/06/2016,6884414,"4,560.15",Gandlake Limited,18183,Resources Directorate,IT Equipment - Repair and Maintenance,F382
http://statistics.data.gov.uk/id/local-authority/00BF,London Borough of Sutton,06/06/2016,6884414,"4,560.15",Gandlake Limited,18183,Resources Directorate,IT Equipment - Repair and Maintenance,F382
http://statistics.data.gov.uk/id/local-authority/00BF,London Borough of Sutton,06/06/2016,6884415,810.69,Gandlake Limited,18183,Resources Directorate,IT Licences,F385
http://statistics.data.gov.uk/id/local-authority/00BF,London Borough of Sutton,22/01/2016,6884843,457.24,Gas Advisory Service Ltd,97313,Peoples Services Directorate,Building Works -Main Contractor,Y350
http://statistics.data.gov.uk/id/local-authority/00BF,London Borough of Sutton,17/06/2016,4951849,"2,400.00",Gate Lodge Care Home,16164,Peoples Services Directorate,Interim Placements - Ext Provider,G317
http://statistics.data.gov.uk/id/local-authority/00BF,London Borough of Sutton,17/06/2016,4952092,"1,744.00",Gate Lodge Care Home,16164,Peoples Services Directorate,Residential Care - Ext Provider,G310
http://statistics.data.gov.uk/id/local-authority/00BF,London Borough of Sutton,06/05/2016,6885269,"7,764.00",Gatenby Sanderson,18532,Peoples Services Directorate,Agency Staff - Other,A301
http://statistics.data.gov.uk/id/local-authority/00BF,London Borough of Sutton,12/04/2016,6885953,"11,646.00",Gatenby Sanderson,18532,Peoples Services Directorate,Agency Staff - Other,A301
http://statistics.data.gov.uk/id/local-authority/00BF,London Borough of Sutton,08/06/2016,6885954,"10,028.50",Gatenby Sanderson,18532,Peoples Services Directorate,Agency Staff - Other,A301
http://statistics.data.gov.uk/id/local-authority/00BF,London Borough of Sutton,19/04/2016,4951611,793.28,Geneva Road Ltd,23449,Peoples Services Directorate,Day Care,G337
http://statistics.data.gov.uk/id/local-authority/00BF,London Borough of Sutton,06/06/2016,1219459,"15,627.60",Glaisdale Day Nursery,21887,Peoples Services Directorate,Non-Maintained Childrens' Nurseries - 3 Year Olds,G405
http://statistics.data.gov.uk/id/local-authority/00BF,London Borough of Sutton,29/03/2016,6884258,"4,800.00",Glen Hellings,99815,"Environment, Housing & Regeneration Directorate",Grants -Made,Y610
http://statistics.data.gov.uk/id/local-authority/00BF,London Borough of Sutton,29/03/2016,6884274,"4,800.00",Glen Hellings,99815,"Environment, Housing & Regeneration Directorate",Grants -Made,Y610
http://statistics.data.gov.uk/id/local-authority/00BF,London Borough of Sutton,20/05/2016,6884473,"119,552.50",Glenthorne High School (Academy),24072,Peoples Services Directorate,Building Works -Main Contractor,Y350
http://statistics.data.gov.uk/id/local-authority/00BF,London Borough of Sutton,05/05/2016,6882298,"1,458.46",Gls Educational Supplies Ltd,11842,Peoples Services Directorate,Furniture & Fittings,Y500
http://statistics.data.gov.uk/id/local-authority/00BF,London Borough of Sutton,25/05/2016,6883646,479.98,Gls Educational Supplies Ltd,11842,Peoples Services Directorate,Furniture & Fittings,Y500
http://statistics.data.gov.uk/id/local-authority/00BF,London Borough of Sutton,26/05/2016,6883709,609.99,Gls Educational Supplies Ltd,11842,Peoples Services Directorate,Furniture & Fittings,Y500
http://statistics.data.gov.uk/id/local-authority/00BF,London Borough of Sutton,01/06/2016,6884291,-459.99,Gls Educational Supplies Ltd,11842,Peoples Services Directorate,Furniture & Fittings,Y500
http://statistics.data.gov.uk/id/local-authority/00BF,London Borough of Sutton,20/05/2016,6883903,550.00,Go Plant Environmental,11867,"Environment, Housing & Regeneration Directorate",Centralised Transport Hire,E068
http://statistics.data.gov.uk/id/local-authority/00BF,London Borough of Sutton,20/05/2016,6883926,585.00,Go Plant Environmental,11867,"Environment, Housing & Regeneration Directorate",Centralised Transport Hire,E068
http://statistics.data.gov.uk/id/local-authority/00BF,London Borough of Sutton,20/05/2016,6883928,650.00,Go Plant Environmental,11867,"Environment, Housing & Regeneration Directorate",Centralised Transport Hire,E068
http://statistics.data.gov.uk/id/local-authority/00BF,London Borough of Sutton,20/05/2016,6883929,650.00,Go Plant Environmental,11867,"Environment, Housing & Regeneration Directorate",Centralised Transport Hire,E068
http://statistics.data.gov.uk/id/local-authority/00BF,London Borough of Sutton,27/05/2016,6884720,650.00,Go Plant Environmental,11867,"Environment, Housing & Regeneration Directorate",Centralised Transport Hire,E068
http://statistics.data.gov.uk/id/local-authority/00BF,London Borough of Sutton,27/05/2016,6884721,650.00,Go Plant Environmental,11867,"Environment, Housing & Regeneration Directorate",Centralised Transport Hire,E068
http://statistics.data.gov.uk/id/local-authority/00BF,London Borough of Sutton,27/05/2016,6884722,575.00,Go Plant Environmental,11867,"Environment, Housing & Regeneration Directorate",Centralised Transport Hire,E068
http://statistics.data.gov.uk/id/local-authority/00BF,London Borough of Sutton,27/05/2016,6884726,585.00,Go Plant Environmental,11867,"Environment, Housing & Regeneration Directorate",Centralised Transport Hire,E068
http://statistics.data.gov.uk/id/local-authority/00BF,London Borough of Sutton,27/05/2016,6884737,550.00,Go Plant Environmental,11867,"Environment, Housing & Regeneration Directorate",Centralised Transport Hire,E068
http://statistics.data.gov.uk/id/local-authority/00BF,London Borough of Sutton,03/06/2016,6884824,585.00,Go Plant Environmental,11867,"Environment, Housing & Regeneration Directorate",Centralised Transport Hire,E068
http://statistics.data.gov.uk/id/local-authority/00BF,London Borough of Sutton,03/06/2016,6884826,575.00,Go Plant Environmental,11867,"Environment, Housing & Regeneration Directorate",Centralised Transport Hire,E068
http://statistics.data.gov.uk/id/local-authority/00BF,London Borough of Sutton,03/06/2016,6884827,650.00,Go Plant Environmental,11867,"Environment, Housing & Regeneration Directorate",Centralised Transport Hire,E068
http://statistics.data.gov.uk/id/local-authority/00BF,London Borough of Sutton,03/06/2016,6884828,650.00,Go Plant Environmental,11867,"Environment, Housing & Regeneration Directorate",Centralised Transport Hire,E068
http://statistics.data.gov.uk/id/local-authority/00BF,London Borough of Sutton,03/06/2016,6884833,550.00,Go Plant Environmental,11867,"Environment, Housing & Regeneration Directorate",Centralised Transport Hire,E068
http://statistics.data.gov.uk/id/local-authority/00BF,London Borough of Sutton,08/06/2016,6884852,432.90,Go Plant Environmental,11867,"Environment, Housing & Regeneration Directorate",Labour,E010
http://statistics.data.gov.uk/id/local-authority/00BF,London Borough of Sutton,10/06/2016,6885041,550.00,Go Plant Environmental,11867,"Environment, Housing & Regeneration Directorate",Centralised Transport Hire,E068
http://statistics.data.gov.uk/id/local-authority/00BF,London Borough of Sutton,10/06/2016,6885042,650.00,Go Plant Environmental,11867,"Environment, Housing & Regeneration Directorate",Centralised Transport Hire,E068
http://statistics.data.gov.uk/id/local-authority/00BF,London Borough of Sutton,10/06/2016,6885043,585.00,Go Plant Environmental,11867,"Environment, Housing & Regeneration Directorate",Centralised Transport Hire,E068
http://statistics.data.gov.uk/id/local-authority/00BF,London Borough of Sutton,10/06/2016,6885045,575.00,Go Plant Environmental,11867,"Environment, Housing & Regeneration Directorate",Centralised Transport Hire,E068
http://statistics.data.gov.uk/id/local-authority/00BF,London Borough of Sutton,10/06/2016,6885046,650.00,Go Plant Environmental,11867,"Environment, Housing & Regeneration Directorate",Centralised Transport Hire,E068
http://statistics.data.gov.uk/id/local-authority/00BF,London Borough of Sutton,20/05/2016,6885130,575.00,Go Plant Environmental,11867,"Environment, Housing & Regeneration Directorate",Centralised Transport Hire,E068
http://statistics.data.gov.uk/id/local-authority/00BF,London Borough of Sutton,06/05/2016,6885133,575.00,Go Plant Environmental,11867,"Environment, Housing & Regeneration Directorate",Centralised Transport Hire,E068
http://statistics.data.gov.uk/id/local-authority/00BF,London Borough of Sutton,06/09/2013,6885153,-715.00,Go Plant Environmental,11867,"Environment, Housing & Regeneration Directorate",Centralised Transport Hire,E068
http://statistics.data.gov.uk/id/local-authority/00BF,London Borough of Sutton,17/06/2016,6885737,585.00,Go Plant Environmental,11867,"Environment, Housing & Regeneration Directorate",Centralised Transport Hire,E068
http://statistics.data.gov.uk/id/local-authority/00BF,London Borough of Sutton,17/06/2016,6885738,550.00,Go Plant Environmental,11867,"Environment, Housing & Regeneration Directorate",Centralised Transport Hire,E068
http://statistics.data.gov.uk/id/local-authority/00BF,London Borough of Sutton,17/06/2016,6885743,650.00,Go Plant Environmental,11867,"Environment, Housing & Regeneration Directorate",Centralised Transport Hire,E068
http://statistics.data.gov.uk/id/local-authority/00BF,London Borough of Sutton,17/06/2016,6885744,650.00,Go Plant Environmental,11867,"Environment, Housing & Regeneration Directorate",Centralised Transport Hire,E068
http://statistics.data.gov.uk/id/local-authority/00BF,London Borough of Sutton,17/06/2016,6885745,575.00,Go Plant Environmental,11867,"Environment, Housing & Regeneration Directorate",Centralised Transport Hire,E068
http://statistics.data.gov.uk/id/local-authority/00BF,London Borough of Sutton,17/06/2016,4951718,"1,964.30",Grange Cottage Ltd,11892,Peoples Services Directorate,Residential Care - Ext Provider,G310
http://statistics.data.gov.uk/id/local-authority/00BF,London Borough of Sutton,17/06/2016,4951723,"1,964.30",Grange Cottage Ltd,11892,Peoples Services Directorate,Residential Care - Ext Provider,G310
http://statistics.data.gov.uk/id/local-authority/00BF,London Borough of Sutton,17/06/2016,4951858,"2,600.00",Grange Cottage Ltd,11892,Peoples Services Directorate,Residential Care - Ext Provider,G310
http://statistics.data.gov.uk/id/local-authority/00BF,London Borough of Sutton,17/06/2016,4951894,"3,238.40",Grange Cottage Ltd,11892,Peoples Services Directorate,Residential Care - Ext Provider,G310
http://statistics.data.gov.uk/id/local-authority/00BF,London Borough of Sutton,17/06/2016,4951941,"1,914.15",Grange Cottage Ltd,11892,Peoples Services Directorate,Residential Care - Ext Provider,G310
http://statistics.data.gov.uk/id/local-authority/00BF,London Borough of Sutton,24/03/2016,6884626,"5,250.00",Grant Thornton Uk LLP,27828,Resources Directorate,External Audit Fees,F291
http://statistics.data.gov.uk/id/local-authority/00BF,London Borough of Sutton,17/06/2016,4951729,"1,712.32",Grasmere Rest Home,11893,Peoples Services Directorate,Residential Care - Ext Provider,G310
http://statistics.data.gov.uk/id/local-authority/00BF,London Borough of Sutton,17/06/2016,4951738,"1,801.36",Grasmere Rest Home,11893,Peoples Services Directorate,Residential Care - Ext Provider,G310
http://statistics.data.gov.uk/id/local-authority/00BF,London Borough of Sutton,17/06/2016,4951797,"2,700.00",Grasmere Rest Home,11893,Peoples Services Directorate,Residential Care - Ext Provider,G310
http://statistics.data.gov.uk/id/local-authority/00BF,London Borough of Sutton,17/06/2016,4951813,"2,700.00",Grasmere Rest Home,11893,Peoples Services Directorate,Residential Care - Ext Provider,G310
http://statistics.data.gov.uk/id/local-authority/00BF,London Borough of Sutton,17/06/2016,4951987,"2,274.96",Grasmere Rest Home,11893,Peoples Services Directorate,Residential Care - Ext Provider,G310
http://statistics.data.gov.uk/id/local-authority/00BF,London Borough of Sutton,17/06/2016,4951991,"1,680.16",Grasmere Rest Home,11893,Peoples Services Directorate,Residential Care - Ext Provider,G310
http://statistics.data.gov.uk/id/local-authority/00BF,London Borough of Sutton,17/06/2016,4952010,"1,801.36",Grasmere Rest Home,11893,Peoples Services Directorate,Residential Care - Ext Provider,G310
http://statistics.data.gov.uk/id/local-authority/00BF,London Borough of Sutton,17/06/2016,4952012,"2,408.56",Grasmere Rest Home,11893,Peoples Services Directorate,Interim Placements - Ext Provider,G317
http://statistics.data.gov.uk/id/local-authority/00BF,London Borough of Sutton,17/06/2016,4952038,"1,764.92",Grasmere Rest Home,11893,Peoples Services Directorate,Residential Care - Ext Provider,G310
http://statistics.data.gov.uk/id/local-authority/00BF,London Borough of Sutton,17/06/2016,4952083,"1,712.32",Grasmere Rest Home,11893,Peoples Services Directorate,Residential Care - Ext Provider,G310
http://statistics.data.gov.uk/id/local-authority/00BF,London Borough of Sutton,09/06/2016,6884538,"1,750.00",Greater London Authority,11908,HRA Directorate,General Office Expenses,F235
http://statistics.data.gov.uk/id/local-authority/00BF,London Borough of Sutton,17/06/2016,6885113,"-51,261.00",Greater London Authority,11908,Unknown Directorate,Collection Fund,X740
http://statistics.data.gov.uk/id/local-authority/00BF,London Borough of Sutton,17/06/2016,4951678,"5,616.08",Greenfield Care Homes Limited,22712,Peoples Services Directorate,Residential Care - Ext Provider,G310
http://statistics.data.gov.uk/id/local-authority/00BF,London Borough of Sutton,04/05/2016,6884584,900.00,Guardian News & Media,15893,Peoples Services Directorate,Staff Advertising,A500
http://statistics.data.gov.uk/id/local-authority/00BF,London Borough of Sutton,27/04/2016,6883914,"2,968.00",Guys and St Thomas NHS Foundation Trust,25430,Peoples Services Directorate,Provider Contract Payments,F470
http://statistics.data.gov.uk/id/local-authority/00BF,London Borough of Sutton,10/05/2016,6884400,"2,909.00",Guys and St Thomas NHS Foundation Trust,25430,Peoples Services Directorate,Provider Contract Payments,F470
http://statistics.data.gov.uk/id/local-authority/00BF,London Borough of Sutton,26/05/2016,6884462,874.58,Haddon Electrical Electrical Ltd,97640,Peoples Services Directorate,Building Works -Main Contractor,Y350
http://statistics.data.gov.uk/id/local-authority/00BF,London Borough of Sutton,27/05/2016,6884463,674.53,Haddon Electrical Electrical Ltd,97640,Peoples Services Directorate,Building Works -Main Contractor,Y350
http://statistics.data.gov.uk/id/local-authority/00BF,London Borough of Sutton,31/05/2016,6884464,976.21,Haddon Electrical Electrical Ltd,97640,Peoples Services Directorate,Building Works -Main Contractor,Y350
http://statistics.data.gov.uk/id/local-authority/00BF,London Borough of Sutton,31/05/2016,6884465,874.58,Haddon Electrical Electrical Ltd,97640,Peoples Services Directorate,Building Works -Main Contractor,Y350
http://statistics.data.gov.uk/id/local-authority/00BF,London Borough of Sutton,26/05/2016,6883924,"19,183.67",Hall Fuels Ltd,11982,"Environment, Housing & Regeneration Directorate",Fuel Etc,E030
http://statistics.data.gov.uk/id/local-authority/00BF,London Borough of Sutton,15/06/2016,6885225,"20,295.23",Hall Fuels Ltd,11982,"Environment, Housing & Regeneration Directorate",Fuel Etc,E030
http://statistics.data.gov.uk/id/local-authority/00BF,London Borough of Sutton,17/06/2016,4951662,"5,000.00",Hastings Court Ltd,26246,Peoples Services Directorate,Nursing Care - Ext Provider,G311
http://statistics.data.gov.uk/id/local-authority/00BF,London Borough of Sutton,17/06/2016,4952017,"4,263.00",Haydon Park Lodge,12002,Peoples Services Directorate,Residential Care - Ext Provider,G310
http://statistics.data.gov.uk/id/local-authority/00BF,London Borough of Sutton,17/06/2016,4952054,"3,316.88",Haydon Park Lodge,12002,Peoples Services Directorate,Residential Care - Ext Provider,G310
http://statistics.data.gov.uk/id/local-authority/00BF,London Borough of Sutton,06/06/2016,1219503,"2,402.60",Ilona Angelova,25943,Peoples Services Directorate,Non-Maintained Childrens' Nurseries - 3 Year Olds,G405
http://statistics.data.gov.uk/id/local-authority/00BF,London Borough of Sutton,31/03/2016,6883971,"1,620.00",Haymarket Media Group Ltd,28235,"Environment, Housing & Regeneration Directorate",General Office Expenses,F235
http://statistics.data.gov.uk/id/local-authority/00BF,London Borough of Sutton,21/04/2016,6881062,487.84,Hays Specialist Recruitment Ltd,18016,Resources Directorate,Consultants/Hons,A310
http://statistics.data.gov.uk/id/local-authority/00BF,London Borough of Sutton,26/04/2016,6881246,609.80,Hays Specialist Recruitment Ltd,18016,Resources Directorate,Consultants/Hons,A310
http://statistics.data.gov.uk/id/local-authority/00BF,London Borough of Sutton,26/04/2016,6881250,609.80,Hays Specialist Recruitment Ltd,18016,Resources Directorate,Consultants/Hons,A310
http://statistics.data.gov.uk/id/local-authority/00BF,London Borough of Sutton,28/04/2016,6881712,426.86,Hays Specialist Recruitment Ltd,18016,Resources Directorate,Consultants/Hons,A310
http://statistics.data.gov.uk/id/local-authority/00BF,London Borough of Sutton,10/05/2016,6882488,"1,575.00",Hays Specialist Recruitment Ltd,18016,Peoples Services Directorate,Agency Staff - Adecco,A300
http://statistics.data.gov.uk/id/local-authority/00BF,London Borough of Sutton,16/05/2016,6882995,"1,575.00",Hays Specialist Recruitment Ltd,18016,Peoples Services Directorate,Agency Staff - Adecco,A300
http://statistics.data.gov.uk/id/local-authority/00BF,London Borough of Sutton,23/05/2016,6883499,"1,575.00",Hays Specialist Recruitment Ltd,18016,Peoples Services Directorate,Agency Staff - Adecco,A300
http://statistics.data.gov.uk/id/local-authority/00BF,London Borough of Sutton,31/05/2016,6883865,"1,575.00",Hays Specialist Recruitment Ltd,18016,Peoples Services Directorate,Agency Staff - Adecco,A300
http://statistics.data.gov.uk/id/local-authority/00BF,London Borough of Sutton,07/03/2016,6884155,"1,575.00",Hays Specialist Recruitment Ltd,18016,Peoples Services Directorate,Agency Staff - Adecco,A300
http://statistics.data.gov.uk/id/local-authority/00BF,London Borough of Sutton,08/06/2016,6885315,"1,212.39",Hays Specialist Recruitment Ltd,18016,Resources Directorate,Agency Staff - Adecco,A300
http://statistics.data.gov.uk/id/local-authority/00BF,London Borough of Sutton,15/06/2016,6885510,"1,550.27",Hays Specialist Recruitment Ltd,18016,Resources Directorate,Agency Staff - Adecco,A300
http://statistics.data.gov.uk/id/local-authority/00BF,London Borough of Sutton,17/06/2016,6885532,"1,575.00",Hays Specialist Recruitment Ltd,18016,Peoples Services Directorate,Agency Staff - Adecco,A300
http://statistics.data.gov.uk/id/local-authority/00BF,London Borough of Sutton,21/06/2016,6885746,"1,575.00",Hays Specialist Recruitment Ltd,18016,Peoples Services Directorate,Agency Staff - Adecco,A300
http://statistics.data.gov.uk/id/local-authority/00BF,London Borough of Sutton,18/05/2016,6885867,487.84,Hays Specialist Recruitment Ltd,18016,Resources Directorate,Consultants/Hons,A310
http://statistics.data.gov.uk/id/local-authority/00BF,London Borough of Sutton,14/06/2016,6885076,"4,166.00",Health and Social Care Information Centre,26014,Peoples Services Directorate,Fees - Computer Software,F384
http://statistics.data.gov.uk/id/local-authority/00BF,London Borough of Sutton,31/05/2016,6884209,"1,767.00",Health Management Ltd,12086,Resources Directorate,Contractual Consultant Fees,G430
http://statistics.data.gov.uk/id/local-authority/00BF,London Borough of Sutton,24/05/2016,6884211,"4,211.25",Health Management Ltd,12086,Resources Directorate,Contractual Consultant Fees,G430
http://statistics.data.gov.uk/id/local-authority/00BF,London Borough of Sutton,24/05/2016,6884212,"3,750.75",Health Management Ltd,12086,Resources Directorate,Staff Welfare Schemes,A700
http://statistics.data.gov.uk/id/local-authority/00BF,London Borough of Sutton,31/05/2016,6884213,"4,726.40",Health Management Ltd,12086,Resources Directorate,Staff Welfare Schemes,A700
http://statistics.data.gov.uk/id/local-authority/00BF,London Borough of Sutton,31/05/2016,6884214,"2,384.00",Health Management Ltd,12086,Resources Directorate,Staff Welfare Schemes,A700
http://statistics.data.gov.uk/id/local-authority/00BF,London Borough of Sutton,31/05/2016,6884215,472.70,Health Management Ltd,12086,Resources Directorate,Staff Welfare Schemes,A700
http://statistics.data.gov.uk/id/local-authority/00BF,London Borough of Sutton,17/06/2016,4951774,"2,492.44",Heatherwood Nursing Home,17510,Peoples Services Directorate,Nursing Care - Ext Provider,G311
http://statistics.data.gov.uk/id/local-authority/00BF,London Borough of Sutton,17/06/2016,4951787,"3,600.00",Heatherwood Nursing Home,17510,Peoples Services Directorate,Nursing Care - Ext Provider,G311
http://statistics.data.gov.uk/id/local-authority/00BF,London Borough of Sutton,17/06/2016,4951836,"3,340.00",Heatherwood Nursing Home,17510,Peoples Services Directorate,Nursing Care - Ext Provider,G311
http://statistics.data.gov.uk/id/local-authority/00BF,London Borough of Sutton,26/05/2016,4948496,435.78,Help for Carers,22413,Peoples Services Directorate,Provider Contract Payments,F470
http://statistics.data.gov.uk/id/local-authority/00BF,London Borough of Sutton,26/05/2016,4948566,548.76,Help for Carers,22413,Peoples Services Directorate,Provider Contract Payments,F470
http://statistics.data.gov.uk/id/local-authority/00BF,London Borough of Sutton,26/04/2016,6885710,"3,000.00",Hemming Group Limited,12050,Resources Directorate,Recruitment Expenses,A531
http://statistics.data.gov.uk/id/local-authority/00BF,London Borough of Sutton,17/06/2016,4951861,"3,600.00",Hendford Nursing Home,12071,Peoples Services Directorate,Nursing Care - Ext Provider,G311
http://statistics.data.gov.uk/id/local-authority/00BF,London Borough of Sutton,30/05/2016,1220348,891.00,Henfold Bait and Tackle,28763,Peoples Services Directorate,Independent Schools,G325
http://statistics.data.gov.uk/id/local-authority/00BF,London Borough of Sutton,01/05/2016,4948057,483.63,Heritage Care Ltd,21702,Peoples Services Directorate,Home Care,G334
http://statistics.data.gov.uk/id/local-authority/00BF,London Borough of Sutton,01/05/2016,4948164,516.75,Heritage Care Ltd,21702,Peoples Services Directorate,Home Care,G334
http://statistics.data.gov.uk/id/local-authority/00BF,London Borough of Sutton,08/05/2016,4949825,516.75,Heritage Care Ltd,21702,Peoples Services Directorate,Home Care,G334
http://statistics.data.gov.uk/id/local-authority/00BF,London Borough of Sutton,15/05/2016,4949826,516.75,Heritage Care Ltd,21702,Peoples Services Directorate,Home Care,G334
http://statistics.data.gov.uk/id/local-authority/00BF,London Borough of Sutton,22/05/2016,4949827,516.75,Heritage Care Ltd,21702,Peoples Services Directorate,Home Care,G334
http://statistics.data.gov.uk/id/local-authority/00BF,London Borough of Sutton,08/05/2016,4949831,435.79,Heritage Care Ltd,21702,Peoples Services Directorate,Home Care,G334
http://statistics.data.gov.uk/id/local-authority/00BF,London Borough of Sutton,15/05/2016,4949832,437.89,Heritage Care Ltd,21702,Peoples Services Directorate,Home Care,G334
http://statistics.data.gov.uk/id/local-authority/00BF,London Borough of Sutton,22/05/2016,4949833,484.47,Heritage Care Ltd,21702,Peoples Services Directorate,Home Care,G334
http://statistics.data.gov.uk/id/local-authority/00BF,London Borough of Sutton,29/05/2016,4950815,516.75,Heritage Care Ltd,21702,Peoples Services Directorate,Home Care,G334
http://statistics.data.gov.uk/id/local-authority/00BF,London Borough of Sutton,29/05/2016,4950817,484.47,Heritage Care Ltd,21702,Peoples Services Directorate,Home Care,G334
http://statistics.data.gov.uk/id/local-authority/00BF,London Borough of Sutton,24/03/2016,4948254,766.56,HF Trust Ltd,12131,Peoples Services Directorate,One to One Care,G335
http://statistics.data.gov.uk/id/local-authority/00BF,London Borough of Sutton,12/05/2016,4948255,"2,883.44",HF Trust Ltd,12131,Peoples Services Directorate,One to One Care,G335
http://statistics.data.gov.uk/id/local-authority/00BF,London Borough of Sutton,18/05/2016,4951615,766.56,HF Trust Ltd,12131,Peoples Services Directorate,One to One Care,G335
http://statistics.data.gov.uk/id/local-authority/00BF,London Borough of Sutton,17/06/2016,4952039,"2,566.24",HF Trust Ltd,12131,Peoples Services Directorate,Residential Care - Ext Provider,G310
http://statistics.data.gov.uk/id/local-authority/00BF,London Borough of Sutton,31/05/2016,4950483,"3,874.69",Higher Level Care (HLC),24443,Peoples Services Directorate,Approved Lodgings,H323
http://statistics.data.gov.uk/id/local-authority/00BF,London Borough of Sutton,31/05/2016,4950484,"4,428.35",Higher Level Care (HLC),24443,Peoples Services Directorate,Accommodation - Supported Living,H201
http://statistics.data.gov.uk/id/local-authority/00BF,London Borough of Sutton,31/05/2016,4950485,"4,317.37",Higher Level Care (HLC),24443,Peoples Services Directorate,Approved Lodgings,H323
http://statistics.data.gov.uk/id/local-authority/00BF,London Borough of Sutton,31/05/2016,4950542,"10,296.34",Higher Level Care (HLC),24443,Peoples Services Directorate,Approved Lodgings,H323
http://statistics.data.gov.uk/id/local-authority/00BF,London Borough of Sutton,30/06/2016,6885422,"4,317.37",Higher Level Care (HLC),24443,Peoples Services Directorate,Approved Lodgings,H323
http://statistics.data.gov.uk/id/local-authority/00BF,London Borough of Sutton,30/06/2016,6885423,"3,764.02",Higher Level Care (HLC),24443,Peoples Services Directorate,Approved Lodgings,H323
http://statistics.data.gov.uk/id/local-authority/00BF,London Borough of Sutton,22/06/2016,6885443,"4,178.10",Higher Level Care (HLC),24443,Peoples Services Directorate,Approved Lodgings,H323
http://statistics.data.gov.uk/id/local-authority/00BF,London Borough of Sutton,22/06/2016,6885444,"3,642.60",Higher Level Care (HLC),24443,Peoples Services Directorate,Approved Lodgings,H323
http://statistics.data.gov.uk/id/local-authority/00BF,London Borough of Sutton,06/06/2016,1219460,"4,146.12",Hillcrest Montessori,12101,Peoples Services Directorate,Non-Maintained Childrens' Nurseries - 3 Year Olds,G405
http://statistics.data.gov.uk/id/local-authority/00BF,London Borough of Sutton,07/06/2016,6884157,"3,010.92",Hill-Rom Ltd,99815,"Environment, Housing & Regeneration Directorate",Grants -Made,Y610
http://statistics.data.gov.uk/id/local-authority/00BF,London Borough of Sutton,20/06/2016,6885644,"57,049.00",HMRC,20593,Unknown Directorate,Creditors - Government Departments,X420
http://statistics.data.gov.uk/id/local-authority/00BF,London Borough of Sutton,05/11/2015,6885645,"3,401.00",HMRC,20593,Unknown Directorate,Creditors - Government Departments,X420
http://statistics.data.gov.uk/id/local-authority/00BF,London Borough of Sutton,17/06/2016,4951949,"6,565.76",HMT CARE LTD,16498,Peoples Services Directorate,Residential Care - Ext Provider,G310
http://statistics.data.gov.uk/id/local-authority/00BF,London Borough of Sutton,24/04/2016,6885162,"2,925.00",Holmdene Housing Ltd,27885,Peoples Services Directorate,Children Assessments,G329
http://statistics.data.gov.uk/id/local-authority/00BF,London Borough of Sutton,06/06/2016,1219461,"5,594.84",Holmwood Pre-School,12146,Peoples Services Directorate,Non-Maintained Childrens' Nurseries - 3 Year Olds,G405
http://statistics.data.gov.uk/id/local-authority/00BF,London Borough of Sutton,07/04/2016,6884798,832.00,Homecare Partners Ltd t/a Right At Home (Sutton & Epsom),24659,Peoples Services Directorate,Home Care,G334
http://statistics.data.gov.uk/id/local-authority/00BF,London Borough of Sutton,24/05/2016,6883941,455.00,Homes2let,28382,"Environment, Housing & Regeneration Directorate",Bed and Breakfast Accommodation,G400
http://statistics.data.gov.uk/id/local-authority/00BF,London Borough of Sutton,24/05/2016,6883942,455.00,Homes2let,28382,"Environment, Housing & Regeneration Directorate",Bed and Breakfast Accommodation,G400
http://statistics.data.gov.uk/id/local-authority/00BF,London Borough of Sutton,24/05/2016,6883946,455.00,Homes2let,28382,"Environment, Housing & Regeneration Directorate",Bed and Breakfast Accommodation,G400
http://statistics.data.gov.uk/id/local-authority/00BF,London Borough of Sutton,01/06/2016,6883950,455.00,Homes2let,28382,"Environment, Housing & Regeneration Directorate",Bed and Breakfast Accommodation,G400
http://statistics.data.gov.uk/id/local-authority/00BF,London Borough of Sutton,01/06/2016,6883951,455.00,Homes2let,28382,"Environment, Housing & Regeneration Directorate",Bed and Breakfast Accommodation,G400
http://statistics.data.gov.uk/id/local-authority/00BF,London Borough of Sutton,19/05/2016,6883962,455.00,Homes2let,28382,"Environment, Housing & Regeneration Directorate",Bed and Breakfast Accommodation,G400
http://statistics.data.gov.uk/id/local-authority/00BF,London Borough of Sutton,19/05/2016,6883963,455.00,Homes2let,28382,"Environment, Housing & Regeneration Directorate",Bed and Breakfast Accommodation,G400
http://statistics.data.gov.uk/id/local-authority/00BF,London Borough of Sutton,10/05/2016,6883977,455.00,Homes2let,28382,"Environment, Housing & Regeneration Directorate",Bed and Breakfast Accommodation,G400
http://statistics.data.gov.uk/id/local-authority/00BF,London Borough of Sutton,10/05/2016,6883978,455.00,Homes2let,28382,"Environment, Housing & Regeneration Directorate",Bed and Breakfast Accommodation,G400
http://statistics.data.gov.uk/id/local-authority/00BF,London Borough of Sutton,10/05/2016,6883982,455.00,Homes2let,28382,"Environment, Housing & Regeneration Directorate",Bed and Breakfast Accommodation,G400
http://statistics.data.gov.uk/id/local-authority/00BF,London Borough of Sutton,05/05/2016,6883991,455.00,Homes2let,28382,"Environment, Housing & Regeneration Directorate",Bed and Breakfast Accommodation,G400
http://statistics.data.gov.uk/id/local-authority/00BF,London Borough of Sutton,05/05/2016,6883997,455.00,Homes2let,28382,"Environment, Housing & Regeneration Directorate",Bed and Breakfast Accommodation,G400
http://statistics.data.gov.uk/id/local-authority/00BF,London Borough of Sutton,05/05/2016,6883999,455.00,Homes2let,28382,"Environment, Housing & Regeneration Directorate",Bed and Breakfast Accommodation,G400
http://statistics.data.gov.uk/id/local-authority/00BF,London Borough of Sutton,26/04/2016,6884176,455.00,Homes2let,28382,"Environment, Housing & Regeneration Directorate",Bed and Breakfast Accommodation,G400
http://statistics.data.gov.uk/id/local-authority/00BF,London Borough of Sutton,26/04/2016,6884177,455.00,Homes2let,28382,"Environment, Housing & Regeneration Directorate",Bed and Breakfast Accommodation,G400
http://statistics.data.gov.uk/id/local-authority/00BF,London Borough of Sutton,26/04/2016,6884179,455.00,Homes2let,28382,"Environment, Housing & Regeneration Directorate",Bed and Breakfast Accommodation,G400
http://statistics.data.gov.uk/id/local-authority/00BF,London Borough of Sutton,26/05/2016,4948590,"1,036.80",Home-Start Sutton,14429,Peoples Services Directorate,Provider Contract Payments,F470
http://statistics.data.gov.uk/id/local-authority/00BF,London Borough of Sutton,26/05/2016,4948598,"1,117.80",Home-Start Sutton,14429,Peoples Services Directorate,Provider Contract Payments,F470
http://statistics.data.gov.uk/id/local-authority/00BF,London Borough of Sutton,26/05/2016,4948600,842.40,Home-Start Sutton,14429,Peoples Services Directorate,Provider Contract Payments,F470
http://statistics.data.gov.uk/id/local-authority/00BF,London Borough of Sutton,26/05/2016,4948618,"1,263.60",Home-Start Sutton,14429,Peoples Services Directorate,Provider Contract Payments,F470
http://statistics.data.gov.uk/id/local-authority/00BF,London Borough of Sutton,17/06/2016,4951826,"2,449.24",Hope Park Trust Smith Bequest,26183,Peoples Services Directorate,Nursing Care - Ext Provider,G311
http://statistics.data.gov.uk/id/local-authority/00BF,London Borough of Sutton,18/03/2016,4951642,"1,071.43",Hopelit UK Ltd,12165,Peoples Services Directorate,Respite Care,G333
http://statistics.data.gov.uk/id/local-authority/00BF,London Borough of Sutton,17/06/2016,4951814,"3,520.00",Hopelit UK Ltd,12165,Peoples Services Directorate,Nursing Care - Short Term Placements,G328
http://statistics.data.gov.uk/id/local-authority/00BF,London Borough of Sutton,17/06/2016,4951831,"2,444.00",Hopelit UK Ltd,12165,Peoples Services Directorate,Nursing Care - Ext Provider,G311
http://statistics.data.gov.uk/id/local-authority/00BF,London Borough of Sutton,17/06/2016,4951837,"3,200.00",Hopelit UK Ltd,12165,Peoples Services Directorate,Nursing Care - Ext Provider,G311
http://statistics.data.gov.uk/id/local-authority/00BF,London Borough of Sutton,17/06/2016,4951841,"3,200.00",Hopelit UK Ltd,12165,Peoples Services Directorate,Nursing Care - Ext Provider,G311
http://statistics.data.gov.uk/id/local-authority/00BF,London Borough of Sutton,17/06/2016,4951842,"3,200.00",Hopelit UK Ltd,12165,Peoples Services Directorate,Nursing Care - Ext Provider,G311
http://statistics.data.gov.uk/id/local-authority/00BF,London Borough of Sutton,17/06/2016,4951999,"2,439.56",Hopelit UK Ltd,12165,Peoples Services Directorate,Nursing Care - Ext Provider,G311
http://statistics.data.gov.uk/id/local-authority/00BF,London Borough of Sutton,17/06/2016,4952071,"2,509.20",Hopelit UK Ltd,12165,Peoples Services Directorate,Nursing Care - Ext Provider,G311
http://statistics.data.gov.uk/id/local-authority/00BF,London Borough of Sutton,06/06/2016,1219391,"2,655.20",Hopscotch Day Nursery,12134,Peoples Services Directorate,Non-Maintained Childrens' Nurseries - 2 Year Olds,G404
http://statistics.data.gov.uk/id/local-authority/00BF,London Borough of Sutton,06/06/2016,1219462,"7,728.10",Hopscotch Day Nursery,12134,Peoples Services Directorate,Non-Maintained Childrens' Nurseries - 3 Year Olds,G405
http://statistics.data.gov.uk/id/local-authority/00BF,London Borough of Sutton,20/05/2016,4950486,"5,473.68",Horizon Care And Education Group Ltd,25498,Peoples Services Directorate,Residential Care-Children,G330
http://statistics.data.gov.uk/id/local-authority/00BF,London Borough of Sutton,01/06/2016,6884285,"5,478.10",Hounslow & Richmond Community Healthcare,25124,Peoples Services Directorate,Provider Contract Payments,F470
http://statistics.data.gov.uk/id/local-authority/00BF,London Borough of Sutton,30/06/2016,1220330,"3,125.00",Housing 21,12171,"Environment, Housing & Regeneration Directorate",Supporting People - Frail Elderly Services,H240
http://statistics.data.gov.uk/id/local-authority/00BF,London Borough of Sutton,01/05/2016,4949851,546.75,Housing 21,12171,Peoples Services Directorate,Home Care,G334
http://statistics.data.gov.uk/id/local-authority/00BF,London Borough of Sutton,01/05/2016,4949857,472.50,Housing 21,12171,Peoples Services Directorate,Home Care,G334
http://statistics.data.gov.uk/id/local-authority/00BF,London Borough of Sutton,01/05/2016,4949865,567.00,Housing 21,12171,Peoples Services Directorate,Home Care,G334
http://statistics.data.gov.uk/id/local-authority/00BF,London Borough of Sutton,24/05/2016,6884469,861.32,Housing 21,12171,Peoples Services Directorate,Rent - General,D650
http://statistics.data.gov.uk/id/local-authority/00BF,London Borough of Sutton,14/06/2016,6884947,430.66,Housing 21,12171,Peoples Services Directorate,Rent - General,D650
http://statistics.data.gov.uk/id/local-authority/00BF,London Borough of Sutton,20/04/2016,6882640,823.08,Housing for Women,26235,Peoples Services Directorate,C.C.A Rent & Utilities,H211
http://statistics.data.gov.uk/id/local-authority/00BF,London Borough of Sutton,11/05/2016,6882642,823.08,Housing for Women,26235,Peoples Services Directorate,C.C.A Rent & Utilities,H211
http://statistics.data.gov.uk/id/local-authority/00BF,London Borough of Sutton,09/06/2016,6884528,823.08,Housing for Women,26235,Peoples Services Directorate,C.C.A Rent & Utilities,H211
http://statistics.data.gov.uk/id/local-authority/00BF,London Borough of Sutton,06/06/2016,1219392,"5,853.80",Humpty Dumpty Pre-School,18634,Peoples Services Directorate,Non-Maintained Childrens' Nurseries - 2 Year Olds,G404
http://statistics.data.gov.uk/id/local-authority/00BF,London Borough of Sutton,06/06/2016,1219463,"14,767.00",Humpty Dumpty Pre-School,18634,Peoples Services Directorate,Non-Maintained Childrens' Nurseries - 3 Year Olds,G405
http://statistics.data.gov.uk/id/local-authority/00BF,London Borough of Sutton,15/06/2016,1219804,954.00,Humpty Dumpty Pre-School,18634,Peoples Services Directorate,PVI - Pupil Premium,G407
http://statistics.data.gov.uk/id/local-authority/00BF,London Borough of Sutton,27/03/2016,1219580,450.00,Huntercombe Granby (One) Ltd,29005,Peoples Services Directorate,Independent Schools,G325
http://statistics.data.gov.uk/id/local-authority/00BF,London Borough of Sutton,29/05/2016,1219582,450.00,Huntercombe Granby (One) Ltd,29005,Peoples Services Directorate,Independent Schools,G325
http://statistics.data.gov.uk/id/local-authority/00BF,London Borough of Sutton,17/06/2016,4951783,624.00,Hydefall Ltd T/A Sutton Court Care Centre,23013,Peoples Services Directorate,Nursing Care - 3rd party top up payment,G360
http://statistics.data.gov.uk/id/local-authority/00BF,London Borough of Sutton,17/06/2016,4951790,"3,400.00",Hydefall Ltd T/A Sutton Court Care Centre,23013,Peoples Services Directorate,Nursing Care - Ext Provider,G311
http://statistics.data.gov.uk/id/local-authority/00BF,London Borough of Sutton,17/06/2016,4951791,"3,400.00",Hydefall Ltd T/A Sutton Court Care Centre,23013,Peoples Services Directorate,Nursing Care - Ext Provider,G311
http://statistics.data.gov.uk/id/local-authority/00BF,London Borough of Sutton,17/06/2016,4951815,"2,444.00",Hydefall Ltd T/A Sutton Court Care Centre,23013,Peoples Services Directorate,Nursing Care - Ext Provider,G311
http://statistics.data.gov.uk/id/local-authority/00BF,London Borough of Sutton,17/06/2016,4951835,"3,303.24",Hydefall Ltd T/A Sutton Court Care Centre,23013,Peoples Services Directorate,Nursing Care - Ext Provider,G311
http://statistics.data.gov.uk/id/local-authority/00BF,London Borough of Sutton,17/06/2016,4951851,"2,467.96",Hydefall Ltd T/A Sutton Court Care Centre,23013,Peoples Services Directorate,Nursing Care - Ext Provider,G311
http://statistics.data.gov.uk/id/local-authority/00BF,London Borough of Sutton,17/06/2016,4951974,"1,963.28",Hydefall Ltd T/A Sutton Court Care Centre,23013,Peoples Services Directorate,Nursing Care - Ext Provider,G311
http://statistics.data.gov.uk/id/local-authority/00BF,London Borough of Sutton,17/06/2016,4951977,"3,340.00",Hydefall Ltd T/A Sutton Court Care Centre,23013,Peoples Services Directorate,Nursing Care - Ext Provider,G311
http://statistics.data.gov.uk/id/local-authority/00BF,London Borough of Sutton,17/06/2016,4952060,"2,459.12",Hydefall Ltd T/A Sutton Court Care Centre,23013,Peoples Services Directorate,Nursing Care - Ext Provider,G311
http://statistics.data.gov.uk/id/local-authority/00BF,London Borough of Sutton,17/06/2016,4952078,"2,406.84",Hydefall Ltd T/A Sutton Court Care Centre,23013,Peoples Services Directorate,Residential Care - Ext Provider,G310
http://statistics.data.gov.uk/id/local-authority/00BF,London Borough of Sutton,06/06/2016,6884741,"14,825.00",I & J Bushell Ltd,10695,"Environment, Housing & Regeneration Directorate",Materials - General,F100
http://statistics.data.gov.uk/id/local-authority/00BF,London Borough of Sutton,12/01/2016,6884651,"3,260.38",Icasework Ltd,23790,Chief Executive's Directorate,Fees - Computer Software,F384
http://statistics.data.gov.uk/id/local-authority/00BF,London Borough of Sutton,30/05/2016,6884338,"9,588.00",Icongrove Ltd,28854,"Environment, Housing & Regeneration Directorate",Temporary Protection - Homeless Persons,H300
http://statistics.data.gov.uk/id/local-authority/00BF,London Borough of Sutton,01/02/2016,6884174,875.00,In-Trac Training & Consultancy Ltd,12303,Peoples Services Directorate,Training - Course Fees,A520
http://statistics.data.gov.uk/id/local-authority/00BF,London Borough of Sutton,15/04/2016,6885810,"1,282.50",Imperial Polythene,22183,"Environment, Housing & Regeneration Directorate",Materials - General,F100
http://statistics.data.gov.uk/id/local-authority/00BF,London Borough of Sutton,25/04/2016,6885811,"2,030.40",Imperial Polythene,22183,"Environment, Housing & Regeneration Directorate",Materials - General,F100
http://statistics.data.gov.uk/id/local-authority/00BF,London Borough of Sutton,27/04/2016,6885812,"1,207.00",Imperial Polythene,22183,"Environment, Housing & Regeneration Directorate",Materials - General,F100
http://statistics.data.gov.uk/id/local-authority/00BF,London Borough of Sutton,19/05/2016,6885813,"1,999.20",Imperial Polythene,22183,"Environment, Housing & Regeneration Directorate",Materials - General,F100
http://statistics.data.gov.uk/id/local-authority/00BF,London Borough of Sutton,28/04/2016,6885814,"1,029.00",Imperial Polythene,22183,"Environment, Housing & Regeneration Directorate",Materials - General,F100
http://statistics.data.gov.uk/id/local-authority/00BF,London Borough of Sutton,12/05/2016,4951567,"5,571.30",Independence Homes,16042,Peoples Services Directorate,Supported Living - Ext Provider,G306
http://statistics.data.gov.uk/id/local-authority/00BF,London Borough of Sutton,17/06/2016,4952074,"7,940.80",Independence Homes,16042,Peoples Services Directorate,Residential Care - Ext Provider,G310
http://statistics.data.gov.uk/id/local-authority/00BF,London Borough of Sutton,17/06/2016,4952036,"4,281.20",Independent Lifestyle Options,19554,Peoples Services Directorate,Residential Care - Ext Provider,G310
http://statistics.data.gov.uk/id/local-authority/00BF,London Borough of Sutton,03/06/2016,1219824,"6,300.00",Independent Parental Special Education Advice,29007,Peoples Services Directorate,Miscellaneous Training Courses,F304
